Body Name,Body,Expense Area,Expense Type,Expense Code,Date Paid,Transaction Number,Amount,Category,Supplier Name,Registration Number,Supplier ID
North Lincolnshire Council,http://data.ordnancesurvey.co.uk/id/7000000000025623,Central Services To Public,Business Support Grants,6090,03/06/2020,5860258,"10,000.00",REVENUE,1st Brigg Scout Group,,CD025760
North Lincolnshire Council,http://data.ordnancesurvey.co.uk/id/7000000000025623,Childrens & Education,Home To School Transport,4201,17/06/2020,5865389,"69,276.50",REVENUE,2 Way Transport Ltd,6909369,TWO0002O
North Lincolnshire Council,http://data.ordnancesurvey.co.uk/id/7000000000025623,Adult Social Care,Exhibitions/Events,5709,19/06/2020,5866092,"2,159.27",REVENUE,402k Consultancy Limited,9865298,CON0127N
North Lincolnshire Council,http://data.ordnancesurvey.co.uk/id/7000000000025623,Central Services To Public,Business Support Grants,6090,10/06/2020,5863249,"10,000.00",REVENUE,40-30uk Ltd,,CD026040
North Lincolnshire Council,http://data.ordnancesurvey.co.uk/id/7000000000025623,Planning Services,Payments To Voluntary Orgs,6001,24/06/2020,5866697,332,REVENUE,5th Scunthorpe  Rainbows,,5TH0003H
North Lincolnshire Council,http://data.ordnancesurvey.co.uk/id/7000000000025623,Childrens & Education,Home To School Transport,4201,03/06/2020,5859608,"4,787.60",REVENUE,A1 Cars,,CAR0399R
North Lincolnshire Council,http://data.ordnancesurvey.co.uk/id/7000000000025623,Central Services To Public,Business Support Grants,6090,02/06/2020,5859681,"10,000.00",REVENUE,A1 Showrooms Auction House,,A1S0010S
North Lincolnshire Council,http://data.ordnancesurvey.co.uk/id/7000000000025623,Childrens & Education,Payments To Private Orgs,6002,12/06/2020,5863680,605.83,REVENUE,Aba Autism Journeys,,ABA0015A
North Lincolnshire Council,http://data.ordnancesurvey.co.uk/id/7000000000025623,Fin&Inv I&E,Repair & Maintenance Costs,3000,19/06/2020,5865757,441.45,REVENUE,Abey Plumbing & Heating Limited,,ABE0008E
North Lincolnshire Council,http://data.ordnancesurvey.co.uk/id/7000000000025623,Childrens & Education,Home To School Transport,4201,05/06/2020,5860785,"1,752.00",REVENUE,Abu'S Taxis,,ABU0005U
North Lincolnshire Council,http://data.ordnancesurvey.co.uk/id/7000000000025623,Childrens & Education,Payments To Private Orgs,6002,24/06/2020,5868529,"183,199.92",REVENUE,Act Fast North Lincolnshire,,ACT0036T
North Lincolnshire Council,http://data.ordnancesurvey.co.uk/id/7000000000025623,Childrens & Education,Payments To Private Orgs,6002,26/06/2020,5863781,686.4,REVENUE,Act Fast North Lincolnshire,,ACT0036T
North Lincolnshire Council,http://data.ordnancesurvey.co.uk/id/7000000000025623,Childrens & Education,Payments To Private Orgs,6002,26/06/2020,5863781,"34,483.02",REVENUE,Act Fast North Lincolnshire,,ACT0036T
North Lincolnshire Council,http://data.ordnancesurvey.co.uk/id/7000000000025623,Childrens & Education,Client Transport Costs,6092,05/06/2020,5860195,256,REVENUE,Actsure Ltd,2375365,FAS0002S
North Lincolnshire Council,http://data.ordnancesurvey.co.uk/id/7000000000025623,Childrens & Education,Client Transport Costs,6092,05/06/2020,5860332,623,REVENUE,Actsure Ltd,2375365,FAS0002S
North Lincolnshire Council,http://data.ordnancesurvey.co.uk/id/7000000000025623,Childrens & Education,Client Transport Costs,6092,05/06/2020,5860334,291.6,REVENUE,Actsure Ltd,2375365,FAS0002S
North Lincolnshire Council,http://data.ordnancesurvey.co.uk/id/7000000000025623,Childrens & Education,Client Transport Costs,6092,05/06/2020,5860335,256,REVENUE,Actsure Ltd,2375365,FAS0002S
North Lincolnshire Council,http://data.ordnancesurvey.co.uk/id/7000000000025623,Childrens & Education,Home To School Transport,4201,05/06/2020,5860792,224,REVENUE,Actsure Ltd,2375365,FAS0002S
North Lincolnshire Council,http://data.ordnancesurvey.co.uk/id/7000000000025623,Childrens & Education,Home To School Transport,4201,05/06/2020,5860800,313.6,REVENUE,Actsure Ltd,2375365,FAS0002S
North Lincolnshire Council,http://data.ordnancesurvey.co.uk/id/7000000000025623,Childrens & Education,Home To School Transport,4201,05/06/2020,5860803,256,REVENUE,Actsure Ltd,2375365,FAS0002S
North Lincolnshire Council,http://data.ordnancesurvey.co.uk/id/7000000000025623,Childrens & Education,Home To School Transport,4201,05/06/2020,5860808,341,REVENUE,Actsure Ltd,2375365,FAS0002S
North Lincolnshire Council,http://data.ordnancesurvey.co.uk/id/7000000000025623,Childrens & Education,Home To School Transport,4201,05/06/2020,5860813,496,REVENUE,Actsure Ltd,2375365,FAS0002S
North Lincolnshire Council,http://data.ordnancesurvey.co.uk/id/7000000000025623,Adult Social Care,Repair & Maintenance Costs,3000,17/06/2020,5865614,120,REVENUE,Acumen Solutions Ltd,3320506,ACU0004U
North Lincolnshire Council,http://data.ordnancesurvey.co.uk/id/7000000000025623,Adult Social Care,Repair & Maintenance Costs,3000,17/06/2020,5865637,30,REVENUE,Acumen Solutions Ltd,3320506,ACU0004U
North Lincolnshire Council,http://data.ordnancesurvey.co.uk/id/7000000000025623,Adult Social Care,Repair & Maintenance Costs,3000,19/06/2020,5865561,514.8,REVENUE,Acumen Solutions Ltd,3320506,ACU0004U
North Lincolnshire Council,http://data.ordnancesurvey.co.uk/id/7000000000025623,Adult Social Care,Repair & Maintenance Costs,3000,19/06/2020,5866248,904.8,REVENUE,Acumen Solutions Ltd,3320506,ACU0004U
North Lincolnshire Council,http://data.ordnancesurvey.co.uk/id/7000000000025623,Central Services To Public,Repair & Maintenance Costs,3000,17/06/2020,5865614,0,REVENUE,Acumen Solutions Ltd,3320506,ACU0004U
North Lincolnshire Council,http://data.ordnancesurvey.co.uk/id/7000000000025623,Central Services To Public,Repair & Maintenance Costs,3000,17/06/2020,5865637,0,REVENUE,Acumen Solutions Ltd,3320506,ACU0004U
North Lincolnshire Council,http://data.ordnancesurvey.co.uk/id/7000000000025623,Central Services To Public,Repair & Maintenance Costs,3000,19/06/2020,5866242,0,REVENUE,Acumen Solutions Ltd,3320506,ACU0004U
North Lincolnshire Council,http://data.ordnancesurvey.co.uk/id/7000000000025623,Central Services To Public,Repair & Maintenance Costs,3000,19/06/2020,5866244,0,REVENUE,Acumen Solutions Ltd,3320506,ACU0004U
North Lincolnshire Council,http://data.ordnancesurvey.co.uk/id/7000000000025623,Central Services To Public,Repair & Maintenance Costs,3000,19/06/2020,5866245,0,REVENUE,Acumen Solutions Ltd,3320506,ACU0004U
North Lincolnshire Council,http://data.ordnancesurvey.co.uk/id/7000000000025623,Central Services To Public,Repair & Maintenance Costs,3000,19/06/2020,5866246,0,REVENUE,Acumen Solutions Ltd,3320506,ACU0004U
North Lincolnshire Council,http://data.ordnancesurvey.co.uk/id/7000000000025623,Central Services To Public,Repair & Maintenance Costs,3000,19/06/2020,5866248,0,REVENUE,Acumen Solutions Ltd,3320506,ACU0004U
North Lincolnshire Council,http://data.ordnancesurvey.co.uk/id/7000000000025623,Central Services To Public,Repair & Maintenance Costs,3000,24/06/2020,5868385,0,REVENUE,Acumen Solutions Ltd,3320506,ACU0004U
North Lincolnshire Council,http://data.ordnancesurvey.co.uk/id/7000000000025623,Childrens & Education,Repair & Maintenance Costs,3000,17/06/2020,5865614,840,REVENUE,Acumen Solutions Ltd,3320506,ACU0004U
North Lincolnshire Council,http://data.ordnancesurvey.co.uk/id/7000000000025623,Childrens & Education,Repair & Maintenance Costs,3000,17/06/2020,5865614,60,REVENUE,Acumen Solutions Ltd,3320506,ACU0004U
North Lincolnshire Council,http://data.ordnancesurvey.co.uk/id/7000000000025623,Childrens & Education,Repair & Maintenance Costs,3000,17/06/2020,5865637,15,REVENUE,Acumen Solutions Ltd,3320506,ACU0004U
North Lincolnshire Council,http://data.ordnancesurvey.co.uk/id/7000000000025623,Childrens & Education,Repair & Maintenance Costs,3000,17/06/2020,5865637,210,REVENUE,Acumen Solutions Ltd,3320506,ACU0004U
North Lincolnshire Council,http://data.ordnancesurvey.co.uk/id/7000000000025623,Childrens & Education,Repair & Maintenance Costs,3000,19/06/2020,5865561,"1,140.34",REVENUE,Acumen Solutions Ltd,3320506,ACU0004U
North Lincolnshire Council,http://data.ordnancesurvey.co.uk/id/7000000000025623,Childrens & Education,Repair & Maintenance Costs,3000,19/06/2020,5866174,740,REVENUE,Acumen Solutions Ltd,3320506,ACU0004U
North Lincolnshire Council,http://data.ordnancesurvey.co.uk/id/7000000000025623,Childrens & Education,Repair & Maintenance Costs,3000,19/06/2020,5866245,301.6,REVENUE,Acumen Solutions Ltd,3320506,ACU0004U
North Lincolnshire Council,http://data.ordnancesurvey.co.uk/id/7000000000025623,Corporate And Democratic Core,Repair & Maintenance Costs,3000,17/06/2020,5865614,240,REVENUE,Acumen Solutions Ltd,3320506,ACU0004U
North Lincolnshire Council,http://data.ordnancesurvey.co.uk/id/7000000000025623,Corporate And Democratic Core,Repair & Maintenance Costs,3000,17/06/2020,5865637,30,REVENUE,Acumen Solutions Ltd,3320506,ACU0004U
North Lincolnshire Council,http://data.ordnancesurvey.co.uk/id/7000000000025623,Corporate And Democratic Core,Repair & Maintenance Costs,3000,17/06/2020,5865658,0,REVENUE,Acumen Solutions Ltd,3320506,ACU0004U
North Lincolnshire Council,http://data.ordnancesurvey.co.uk/id/7000000000025623,Corporate And Democratic Core,Repair & Maintenance Costs,3000,19/06/2020,5865561,172,REVENUE,Acumen Solutions Ltd,3320506,ACU0004U
North Lincolnshire Council,http://data.ordnancesurvey.co.uk/id/7000000000025623,Corporate And Democratic Core,Repair & Maintenance Costs,3000,19/06/2020,5866085,0,REVENUE,Acumen Solutions Ltd,3320506,ACU0004U
North Lincolnshire Council,http://data.ordnancesurvey.co.uk/id/7000000000025623,Corporate And Democratic Core,Repair & Maintenance Costs,3000,19/06/2020,5866090,0,REVENUE,Acumen Solutions Ltd,3320506,ACU0004U
North Lincolnshire Council,http://data.ordnancesurvey.co.uk/id/7000000000025623,Corporate And Democratic Core,Repair & Maintenance Costs,3000,19/06/2020,5866240,0,REVENUE,Acumen Solutions Ltd,3320506,ACU0004U
North Lincolnshire Council,http://data.ordnancesurvey.co.uk/id/7000000000025623,Corporate And Democratic Core,Repair & Maintenance Costs,3000,19/06/2020,5866241,0,REVENUE,Acumen Solutions Ltd,3320506,ACU0004U
North Lincolnshire Council,http://data.ordnancesurvey.co.uk/id/7000000000025623,Corporate And Democratic Core,Repair & Maintenance Costs,3000,24/06/2020,5866694,0,REVENUE,Acumen Solutions Ltd,3320506,ACU0004U
North Lincolnshire Council,http://data.ordnancesurvey.co.uk/id/7000000000025623,Culture & Related Services,Other Premises Costs,3390,19/06/2020,5866234,740,REVENUE,Acumen Solutions Ltd,3320506,ACU0004U
North Lincolnshire Council,http://data.ordnancesurvey.co.uk/id/7000000000025623,Culture & Related Services,Repair & Maintenance Costs,3000,17/06/2020,5865614,900,REVENUE,Acumen Solutions Ltd,3320506,ACU0004U
North Lincolnshire Council,http://data.ordnancesurvey.co.uk/id/7000000000025623,Culture & Related Services,Repair & Maintenance Costs,3000,17/06/2020,5865637,225,REVENUE,Acumen Solutions Ltd,3320506,ACU0004U
North Lincolnshire Council,http://data.ordnancesurvey.co.uk/id/7000000000025623,Culture & Related Services,Repair & Maintenance Costs,3000,17/06/2020,5865658,600,REVENUE,Acumen Solutions Ltd,3320506,ACU0004U
North Lincolnshire Council,http://data.ordnancesurvey.co.uk/id/7000000000025623,Culture & Related Services,Repair & Maintenance Costs,3000,19/06/2020,5865561,"1,574.23",REVENUE,Acumen Solutions Ltd,3320506,ACU0004U
North Lincolnshire Council,http://data.ordnancesurvey.co.uk/id/7000000000025623,Culture & Related Services,Repair & Maintenance Costs,3000,19/06/2020,5866164,740,REVENUE,Acumen Solutions Ltd,3320506,ACU0004U
North Lincolnshire Council,http://data.ordnancesurvey.co.uk/id/7000000000025623,Culture & Related Services,Repair & Maintenance Costs,3000,19/06/2020,5866242,904.8,REVENUE,Acumen Solutions Ltd,3320506,ACU0004U
North Lincolnshire Council,http://data.ordnancesurvey.co.uk/id/7000000000025623,Culture & Related Services,Repair & Maintenance Costs,3000,19/06/2020,5866246,"1,100.00",REVENUE,Acumen Solutions Ltd,3320506,ACU0004U
North Lincolnshire Council,http://data.ordnancesurvey.co.uk/id/7000000000025623,Culture & Related Services,Repair & Maintenance Costs,3000,24/06/2020,5868413,"5,030.40",REVENUE,Acumen Solutions Ltd,3320506,ACU0004U
North Lincolnshire Council,http://data.ordnancesurvey.co.uk/id/7000000000025623,Environmental & Regulatory Svs,Repair & Maintenance Costs,3000,17/06/2020,5865614,540,REVENUE,Acumen Solutions Ltd,3320506,ACU0004U
North Lincolnshire Council,http://data.ordnancesurvey.co.uk/id/7000000000025623,Environmental & Regulatory Svs,Repair & Maintenance Costs,3000,17/06/2020,5865637,150,REVENUE,Acumen Solutions Ltd,3320506,ACU0004U
North Lincolnshire Council,http://data.ordnancesurvey.co.uk/id/7000000000025623,Environmental & Regulatory Svs,Repair & Maintenance Costs,3000,19/06/2020,5865561,827.39,REVENUE,Acumen Solutions Ltd,3320506,ACU0004U
North Lincolnshire Council,http://data.ordnancesurvey.co.uk/id/7000000000025623,Fin&Inv I&E,Equipment Maint.& Repair,5003,17/06/2020,5865614,60,REVENUE,Acumen Solutions Ltd,3320506,ACU0004U
North Lincolnshire Council,http://data.ordnancesurvey.co.uk/id/7000000000025623,Fin&Inv I&E,Equipment Maint.& Repair,5003,17/06/2020,5865637,15,REVENUE,Acumen Solutions Ltd,3320506,ACU0004U
North Lincolnshire Council,http://data.ordnancesurvey.co.uk/id/7000000000025623,Fin&Inv I&E,Repair & Maintenance Costs,3000,19/06/2020,5866240,679.53,REVENUE,Acumen Solutions Ltd,3320506,ACU0004U
North Lincolnshire Council,http://data.ordnancesurvey.co.uk/id/7000000000025623,Highways & Transport,Repair & Maintenance Costs,3000,17/06/2020,5865614,60,REVENUE,Acumen Solutions Ltd,3320506,ACU0004U
North Lincolnshire Council,http://data.ordnancesurvey.co.uk/id/7000000000025623,Highways & Transport,Repair & Maintenance Costs,3000,17/06/2020,5865614,60,REVENUE,Acumen Solutions Ltd,3320506,ACU0004U
North Lincolnshire Council,http://data.ordnancesurvey.co.uk/id/7000000000025623,Highways & Transport,Repair & Maintenance Costs,3000,17/06/2020,5865637,15,REVENUE,Acumen Solutions Ltd,3320506,ACU0004U
North Lincolnshire Council,http://data.ordnancesurvey.co.uk/id/7000000000025623,Highways & Transport,Repair & Maintenance Costs,3000,17/06/2020,5865637,30,REVENUE,Acumen Solutions Ltd,3320506,ACU0004U
North Lincolnshire Council,http://data.ordnancesurvey.co.uk/id/7000000000025623,Highways & Transport,Repair & Maintenance Costs,3000,19/06/2020,5865561,197.65,REVENUE,Acumen Solutions Ltd,3320506,ACU0004U
North Lincolnshire Council,http://data.ordnancesurvey.co.uk/id/7000000000025623,Highways & Transport,Repair & Maintenance Costs,3000,19/06/2020,5866244,603.2,REVENUE,Acumen Solutions Ltd,3320506,ACU0004U
North Lincolnshire Council,http://data.ordnancesurvey.co.uk/id/7000000000025623,Highways & Transport,Repair & Maintenance Costs,3000,24/06/2020,5868385,290,REVENUE,Acumen Solutions Ltd,3320506,ACU0004U
North Lincolnshire Council,http://data.ordnancesurvey.co.uk/id/7000000000025623,Non Distributed Costs,Repair & Maintenance Costs,3000,17/06/2020,5865614,240,REVENUE,Acumen Solutions Ltd,3320506,ACU0004U
North Lincolnshire Council,http://data.ordnancesurvey.co.uk/id/7000000000025623,Non Distributed Costs,Repair & Maintenance Costs,3000,17/06/2020,5865637,60,REVENUE,Acumen Solutions Ltd,3320506,ACU0004U
North Lincolnshire Council,http://data.ordnancesurvey.co.uk/id/7000000000025623,Non Distributed Costs,Repair & Maintenance Costs,3000,24/06/2020,5866693,"1,404.00",REVENUE,Acumen Solutions Ltd,3320506,ACU0004U
North Lincolnshire Council,http://data.ordnancesurvey.co.uk/id/7000000000025623,Non Distributed Costs,Repair & Maintenance Costs,3000,24/06/2020,5866703,"1,863.60",REVENUE,Acumen Solutions Ltd,3320506,ACU0004U
North Lincolnshire Council,http://data.ordnancesurvey.co.uk/id/7000000000025623,Planning Services,Repair & Maintenance Costs,3000,17/06/2020,5865614,60,REVENUE,Acumen Solutions Ltd,3320506,ACU0004U
North Lincolnshire Council,http://data.ordnancesurvey.co.uk/id/7000000000025623,Planning Services,Repair & Maintenance Costs,3000,17/06/2020,5865637,15,REVENUE,Acumen Solutions Ltd,3320506,ACU0004U
North Lincolnshire Council,http://data.ordnancesurvey.co.uk/id/7000000000025623,Culture & Related Services,Telephone Rent/Calls,5403,01/07/2020,5871430,808.5,REVENUE,Adept 4 Managed It Limited,6056115,ADE0011E
North Lincolnshire Council,http://data.ordnancesurvey.co.uk/id/7000000000025623,Public Health,Payments To Health Providers,6019,12/06/2020,5863600,"14,474.42",REVENUE,Agencia Consulting Ltd,3448042,AGE0032E
North Lincolnshire Council,http://data.ordnancesurvey.co.uk/id/7000000000025623,Environmental & Regulatory Svs,Repair & Maintenance Costs,3000,12/06/2020,5863985,"1,315.00",REVENUE,Ahr Building Consultancy Ltd,,AED0001D
North Lincolnshire Council,http://data.ordnancesurvey.co.uk/id/7000000000025623,Environmental & Regulatory Svs,Repair & Maintenance Costs,3000,24/06/2020,5865411,665.21,REVENUE,Ahr Building Consultancy Ltd,,AED0001D
North Lincolnshire Council,http://data.ordnancesurvey.co.uk/id/7000000000025623,Central Services To Public,Business Support Grants,6090,10/06/2020,5863252,"10,000.00",REVENUE,Alanhar Trading Ltd,,CD026070
North Lincolnshire Council,http://data.ordnancesurvey.co.uk/id/7000000000025623,Childrens & Education,Payments To Private Orgs,6002,01/07/2020,5871746,630,REVENUE,Alford Primary School,,ALF0007F
North Lincolnshire Council,http://data.ordnancesurvey.co.uk/id/7000000000025623,Childrens & Education,Payments To Private Orgs,6002,10/06/2020,5862162,"1,922.30",REVENUE,Alison Fixter,,FIX0036X
North Lincolnshire Council,http://data.ordnancesurvey.co.uk/id/7000000000025623,Planning Services,Payments To Voluntary Orgs,6001,24/06/2020,5866700,466.2,REVENUE,Alkborough Cricket Club,,ALK0004K
North Lincolnshire Council,http://data.ordnancesurvey.co.uk/id/7000000000025623,Central Services To Public,Business Support Grants,6090,12/06/2020,5864396,"10,000.00",REVENUE,Alkborough Parish Council,,CD026410
North Lincolnshire Council,http://data.ordnancesurvey.co.uk/id/7000000000025623,Culture & Related Services,Other Supplies & Services,5799,26/06/2020,5870270,"4,056.00",REVENUE,Alkborough & Walcot Parish Council,,ALK0002K
North Lincolnshire Council,http://data.ordnancesurvey.co.uk/id/7000000000025623,Highways & Transport,Other Supplies & Services,5799,26/06/2020,5870271,"3,781.00",REVENUE,Alkborough & Walcot Parish Council,,ALK0002K
North Lincolnshire Council,http://data.ordnancesurvey.co.uk/id/7000000000025623,Adult Social Care,Gen Office Exp (Incl Postage),5603,19/06/2020,5866539,339.2,REVENUE,Allied Publicity Services (Manchester) Ltd,681528,APS0013S
North Lincolnshire Council,http://data.ordnancesurvey.co.uk/id/7000000000025623,Adult Social Care,Gen Office Exp (Incl Postage),5603,19/06/2020,5866581,528.4,REVENUE,Allied Publicity Services (Manchester) Ltd,681528,APS0013S
North Lincolnshire Council,http://data.ordnancesurvey.co.uk/id/7000000000025623,Adult Social Care,Payments To Voluntary Orgs,6001,03/06/2020,5859436,"26,720.00",REVENUE,Alzheimer'S Society,2115499,ALZ0008Z
North Lincolnshire Council,http://data.ordnancesurvey.co.uk/id/7000000000025623,Childrens & Education,Payments To Private Orgs,6002,10/06/2020,5862140,359.31,REVENUE,Amanda Batty,,BAT0081T
North Lincolnshire Council,http://data.ordnancesurvey.co.uk/id/7000000000025623,Childrens & Education,Payments To Private Orgs,6002,10/06/2020,5862163,"6,781.55",REVENUE,Amanda Foley,,FOL0034L
North Lincolnshire Council,http://data.ordnancesurvey.co.uk/id/7000000000025623,Adult Social Care,Payments To Private Orgs,6002,05/06/2020,5860130,"39,697.08",REVENUE,Amara Care,4459044,AMA0002A
North Lincolnshire Council,http://data.ordnancesurvey.co.uk/id/7000000000025623,Adult Social Care,Payments To Private Orgs,6002,05/06/2020,5860130,"7,509.96",REVENUE,Amara Care,4459044,AMA0002A
North Lincolnshire Council,http://data.ordnancesurvey.co.uk/id/7000000000025623,Adult Social Care,Payments To Private Orgs,6002,12/06/2020,5864010,"17,037.36",REVENUE,Amara Care,4459044,AMA0002A
North Lincolnshire Council,http://data.ordnancesurvey.co.uk/id/7000000000025623,Planning Services,Client Related Costs,5534,26/06/2020,5869392,583.14,REVENUE,Amazon Payments Uk Ltd,,AMA0016A
North Lincolnshire Council,http://data.ordnancesurvey.co.uk/id/7000000000025623,Culture & Related Services,Other Supplies & Services,5799,26/06/2020,5870273,"1,168.00",REVENUE,Amcotts Parish Council,,AMC0001C
North Lincolnshire Council,http://data.ordnancesurvey.co.uk/id/7000000000025623,Planning Services,Payments To Voluntary Orgs,6001,24/06/2020,5868416,"1,800.00",REVENUE,Amcotts Parish Council,,AMC0001C
North Lincolnshire Council,http://data.ordnancesurvey.co.uk/id/7000000000025623,Culture & Related Services,Heating Fuels,3104,10/06/2020,5862648,"1,751.68",REVENUE,Amp Biomass Fuels Ltd,5735950,AMP0041P
North Lincolnshire Council,http://data.ordnancesurvey.co.uk/id/7000000000025623,Culture & Related Services,Heating Fuels,3104,10/06/2020,5862649,"3,052.00",REVENUE,Amp Biomass Fuels Ltd,5735950,AMP0041P
North Lincolnshire Council,http://data.ordnancesurvey.co.uk/id/7000000000025623,Adult Social Care,Payments To Private Orgs,6002,05/06/2020,5860133,"3,364.20",REVENUE,Amphion Home Care Services Ltd,3480829,AMP0002P
North Lincolnshire Council,http://data.ordnancesurvey.co.uk/id/7000000000025623,Adult Social Care,Payments To Private Orgs,6002,05/06/2020,5860133,"102,146.91",REVENUE,Amphion Home Care Services Ltd,3480829,AMP0002P
North Lincolnshire Council,http://data.ordnancesurvey.co.uk/id/7000000000025623,Adult Social Care,Payments To Private Orgs,6002,12/06/2020,5864012,"40,846.78",REVENUE,Amphion Home Care Services Ltd,3480829,AMP0002P
North Lincolnshire Council,http://data.ordnancesurvey.co.uk/id/7000000000025623,Central Services To Public,Business Support Grants,6090,17/06/2020,5866126,"10,000.00",REVENUE,Ams Bobcat Ltd,,CD026920
North Lincolnshire Council,http://data.ordnancesurvey.co.uk/id/7000000000025623,Childrens & Education,Home To School Transport,4201,12/06/2020,5863618,"3,770.00",REVENUE,Amvale Medical Transport Ltd,,AMV0003V
North Lincolnshire Council,http://data.ordnancesurvey.co.uk/id/7000000000025623,Central Services To Public,Business Support Grants,6090,18/06/2020,5866605,"-10,000.00",REVENUE,A&M Wingate Ltd,,CD018700
North Lincolnshire Council,http://data.ordnancesurvey.co.uk/id/7000000000025623,Central Services To Public,Business Support Grants,6090,18/06/2020,5866615,"10,000.00",REVENUE,A&M Wingate Ltd,,CD018700
North Lincolnshire Council,http://data.ordnancesurvey.co.uk/id/7000000000025623,Central Services To Public,Business Support Grants,6090,11/06/2020,5863825,"10,000.00",REVENUE,Andrea'S Hilltop Cafe,,CD026360
North Lincolnshire Council,http://data.ordnancesurvey.co.uk/id/7000000000025623,Culture & Related Services,Other Supplies & Services,5799,26/06/2020,5870274,"1,687.00",REVENUE,Appleby Parish Council,,APP0006P
North Lincolnshire Council,http://data.ordnancesurvey.co.uk/id/7000000000025623,Highways & Transport,Other Supplies & Services,5799,26/06/2020,5870275,304,REVENUE,Appleby Parish Council,,APP0006P
North Lincolnshire Council,http://data.ordnancesurvey.co.uk/id/7000000000025623,Planning Services,Payments To Voluntary Orgs,6001,24/06/2020,5866708,345,REVENUE,Appleby Parish Council,,APP0006P
North Lincolnshire Council,http://data.ordnancesurvey.co.uk/id/7000000000025623,Childrens & Education,Payments To Private Orgs,6002,10/06/2020,5862132,"9,050.63",REVENUE,Apple Tree Day Nursery Ltd,,APP0007P
North Lincolnshire Council,http://data.ordnancesurvey.co.uk/id/7000000000025623,Childrens & Education,Payments To Private Orgs,6002,10/06/2020,5862133,"16,028.55",REVENUE,Apple Tree Day Nursery Ltd,,APP0024P
North Lincolnshire Council,http://data.ordnancesurvey.co.uk/id/7000000000025623,Environmental & Regulatory Svs,Equipment Maint.& Repair,5003,26/06/2020,5866768,"3,045.00",REVENUE,Apps Uk Ltd.,,APP0031P
North Lincolnshire Council,http://data.ordnancesurvey.co.uk/id/7000000000025623,Environmental & Regulatory Svs,Other Supplies & Services,5799,17/06/2020,5860116,310.42,REVENUE,Aquam Water Services Limited,,AQU0050U
North Lincolnshire Council,http://data.ordnancesurvey.co.uk/id/7000000000025623,Central Services To Public,Business Support Grants,6090,17/06/2020,5866120,"10,000.00",REVENUE,Aras Mahmoud,,CD026860
North Lincolnshire Council,http://data.ordnancesurvey.co.uk/id/7000000000025623,Childrens & Education,Payments To Private Orgs,6002,10/06/2020,5862134,403.74,REVENUE,Arc Childminding,,ARC0011C
North Lincolnshire Council,http://data.ordnancesurvey.co.uk/id/7000000000025623,Culture & Related Services,"Clothing, Uniforms & Laundry",5301,03/07/2020,5870255,285.83,REVENUE,Arco Ltd,133804,ARC0001C
North Lincolnshire Council,http://data.ordnancesurvey.co.uk/id/7000000000025623,Adult Social Care,Fixtures & Fittings,3350,24/06/2020,5867070,804,REVENUE,A & R Commercial Laundry Service Ltd,,ARC0024C
North Lincolnshire Council,http://data.ordnancesurvey.co.uk/id/7000000000025623,Childrens & Education,Home To School Transport,4201,05/06/2020,5860783,"3,020.00",REVENUE,Aria Cars,,ARI0002I
North Lincolnshire Council,http://data.ordnancesurvey.co.uk/id/7000000000025623,Housing Services,Other Supplies & Services,5799,24/06/2020,5868132,700,REVENUE,Arnold Parks Ltd,,ARN0007N
North Lincolnshire Council,http://data.ordnancesurvey.co.uk/id/7000000000025623,Central Services To Public,Business Support Grants,6090,03/06/2020,5860239,"10,000.00",REVENUE,A & S Gardening,,CD025570
North Lincolnshire Council,http://data.ordnancesurvey.co.uk/id/7000000000025623,Childrens & Education,Home To School Transport,4201,03/06/2020,5859605,"14,650.05",REVENUE,Ashby Cars Ltd,,ROQ0001Q
North Lincolnshire Council,http://data.ordnancesurvey.co.uk/id/7000000000025623,Childrens & Education,Home To School Transport,4201,03/06/2020,5859606,746.67,REVENUE,Ashby Cars Ltd,,ROQ0001Q
North Lincolnshire Council,http://data.ordnancesurvey.co.uk/id/7000000000025623,Central Services To Public,Business Support Grants,6090,11/06/2020,5863826,"10,000.00",REVENUE,Ashby Community Association,,CD026370
North Lincolnshire Council,http://data.ordnancesurvey.co.uk/id/7000000000025623,Childrens & Education,Home To School Transport,4201,05/06/2020,5860780,"11,586.00",REVENUE,Ash Taxis,,ASH0070H
North Lincolnshire Council,http://data.ordnancesurvey.co.uk/id/7000000000025623,Fin&Inv I&E,Telephone Rent/Calls,5403,19/06/2020,5866371,"1,600.00",REVENUE,Ask4 Business Ltd,3614661,ASK0163K
North Lincolnshire Council,http://data.ordnancesurvey.co.uk/id/7000000000025623,Fin&Inv I&E,Telephone Rent/Calls,5403,19/06/2020,5866372,456.75,REVENUE,Ask4 Business Ltd,3614661,ASK0163K
North Lincolnshire Council,http://data.ordnancesurvey.co.uk/id/7000000000025623,Corporate And Democratic Core,Other Supplies & Services,5799,04/04/2020,5861350,"-1,470.00",REVENUE,Association Of Democratic Services Officers,,ASS0017S
North Lincolnshire Council,http://data.ordnancesurvey.co.uk/id/7000000000025623,Corporate And Democratic Core,Payments To Private Orgs,6002,19/06/2020,5866587,"1,756.00",REVENUE,Assoc Of Director'S Of Children'S Serv Ltd,,ADC0023C
North Lincolnshire Council,http://data.ordnancesurvey.co.uk/id/7000000000025623,Corporate And Democratic Core,It Software-Maintenance,5053,15/07/2020,5867119,"22,000.00",REVENUE,Astun Technology Ltd,5410695,AST0040T
North Lincolnshire Council,http://data.ordnancesurvey.co.uk/id/7000000000025623,Environmental & Regulatory Svs,It Software-Maintenance,5053,15/07/2020,5867119,"8,000.00",REVENUE,Astun Technology Ltd,5410695,AST0040T
North Lincolnshire Council,http://data.ordnancesurvey.co.uk/id/7000000000025623,Adult Social Care,Payments To Private Orgs,6002,05/06/2020,5860136,"40,045.54",REVENUE,A.T.C.S. Ltd,5057212,ATC0006C
North Lincolnshire Council,http://data.ordnancesurvey.co.uk/id/7000000000025623,Adult Social Care,Payments To Private Orgs,6002,05/06/2020,5860136,"13,190.49",REVENUE,A.T.C.S. Ltd,5057212,ATC0006C
North Lincolnshire Council,http://data.ordnancesurvey.co.uk/id/7000000000025623,Adult Social Care,Payments To Private Orgs,6002,12/06/2020,5864014,"20,689.07",REVENUE,A.T.C.S. Ltd,5057212,ATC0006C
North Lincolnshire Council,http://data.ordnancesurvey.co.uk/id/7000000000025623,Childrens & Education,Other Professional Fees,5829,03/06/2020,5859661,208.89,REVENUE,Auscript Ltd,,AUS0006S
North Lincolnshire Council,http://data.ordnancesurvey.co.uk/id/7000000000025623,Adult Social Care,Payments To Private Orgs,6002,05/06/2020,5860137,"4,353.72",REVENUE,Autism Plus Accounts,,AUT0004T
North Lincolnshire Council,http://data.ordnancesurvey.co.uk/id/7000000000025623,Central Services To Public,Business Support Grants,6090,17/06/2020,5866112,"10,000.00",REVENUE,Auto Spares And Parts Limited,,CD026780
North Lincolnshire Council,http://data.ordnancesurvey.co.uk/id/7000000000025623,Childrens & Education,Home To School Transport,4201,10/06/2020,5862334,300,REVENUE,Axholme Taxis,,GLE0073E
North Lincolnshire Council,http://data.ordnancesurvey.co.uk/id/7000000000025623,Childrens & Education,Home To School Transport,4201,10/06/2020,5862336,581.4,REVENUE,Axholme Taxis,,GLE0073E
North Lincolnshire Council,http://data.ordnancesurvey.co.uk/id/7000000000025623,Childrens & Education,Home To School Transport,4201,10/06/2020,5862337,450,REVENUE,Axholme Taxis,,GLE0073E
North Lincolnshire Council,http://data.ordnancesurvey.co.uk/id/7000000000025623,Environmental & Regulatory Svs,Other Vehicle Costs,4005,10/06/2020,5862414,244.19,REVENUE,B A Bush & Sons  Ltd,,BUS0283S
North Lincolnshire Council,http://data.ordnancesurvey.co.uk/id/7000000000025623,Environmental & Regulatory Svs,Other Vehicle Costs,4005,17/06/2020,5865460,209.24,REVENUE,B A Bush & Sons  Ltd,,BUS0283S
North Lincolnshire Council,http://data.ordnancesurvey.co.uk/id/7000000000025623,Environmental & Regulatory Svs,Other Vehicle Costs,4005,17/06/2020,5865461,424,REVENUE,B A Bush & Sons  Ltd,,BUS0283S
North Lincolnshire Council,http://data.ordnancesurvey.co.uk/id/7000000000025623,Environmental & Regulatory Svs,Other Vehicle Costs,4005,24/06/2020,5868557,250,REVENUE,B A Bush & Sons  Ltd,,BUS0283S
North Lincolnshire Council,http://data.ordnancesurvey.co.uk/id/7000000000025623,Environmental & Regulatory Svs,Other Vehicle Costs,4005,24/06/2020,5868565,284.24,REVENUE,B A Bush & Sons  Ltd,,BUS0283S
North Lincolnshire Council,http://data.ordnancesurvey.co.uk/id/7000000000025623,Environmental & Regulatory Svs,Other Vehicle Costs,4005,24/06/2020,5868566,209.24,REVENUE,B A Bush & Sons  Ltd,,BUS0283S
North Lincolnshire Council,http://data.ordnancesurvey.co.uk/id/7000000000025623,Highways & Transport,Other Vehicle Costs,4005,10/06/2020,5862413,490,REVENUE,B A Bush & Sons  Ltd,,BUS0283S
North Lincolnshire Council,http://data.ordnancesurvey.co.uk/id/7000000000025623,Highways & Transport,Other Vehicle Costs,4005,10/06/2020,5862417,209.24,REVENUE,B A Bush & Sons  Ltd,,BUS0283S
North Lincolnshire Council,http://data.ordnancesurvey.co.uk/id/7000000000025623,Highways & Transport,Other Vehicle Costs,4005,10/06/2020,5862421,426,REVENUE,B A Bush & Sons  Ltd,,BUS0283S
North Lincolnshire Council,http://data.ordnancesurvey.co.uk/id/7000000000025623,Highways & Transport,Other Vehicle Costs,4005,24/06/2020,5868563,860.56,REVENUE,B A Bush & Sons  Ltd,,BUS0283S
North Lincolnshire Council,http://data.ordnancesurvey.co.uk/id/7000000000025623,Central Services To Public,Equipment Purchase,5001,02/06/2020,5859677,"121,500.00",REVENUE,Baca Workwear & Safety Ltd,,BAC0064C
North Lincolnshire Council,http://data.ordnancesurvey.co.uk/id/7000000000025623,Central Services To Public,Business Support Grants,6090,11/06/2020,5863814,"10,000.00",REVENUE,Barn Autos,,CD026250
North Lincolnshire Council,http://data.ordnancesurvey.co.uk/id/7000000000025623,Central Services To Public,Business Support Grants,6090,17/06/2020,5866113,"10,000.00",REVENUE,Barnetby Central Bowls Club,,CD026790
North Lincolnshire Council,http://data.ordnancesurvey.co.uk/id/7000000000025623,Culture & Related Services,Other Supplies & Services,5799,26/06/2020,5870277,"2,407.00",REVENUE,Barnetby-Le-Wold Parish Council,,BAR0023R
North Lincolnshire Council,http://data.ordnancesurvey.co.uk/id/7000000000025623,Highways & Transport,Other Supplies & Services,5799,26/06/2020,5870276,998,REVENUE,Barnetby-Le-Wold Parish Council,,BAR0023R
North Lincolnshire Council,http://data.ordnancesurvey.co.uk/id/7000000000025623,Childrens & Education,Payments To Private Orgs,6002,01/07/2020,5871338,357,REVENUE,Barnetby Under Fives Playgroup,,BAR0021R
North Lincolnshire Council,http://data.ordnancesurvey.co.uk/id/7000000000025623,Childrens & Education,Payments To Voluntary Orgs,6001,10/06/2020,5862138,"6,583.92",REVENUE,Barnetby Under Fives Playgroup,,BAR0021R
North Lincolnshire Council,http://data.ordnancesurvey.co.uk/id/7000000000025623,Central Services To Public,Business Support Grants,6090,03/06/2020,5860267,"10,000.00",REVENUE,Barnetby Village Hall,,CD025850
North Lincolnshire Council,http://data.ordnancesurvey.co.uk/id/7000000000025623,Central Services To Public,Repair & Maintenance Costs,3000,24/06/2020,5866706,0,REVENUE,Barrier Security,,BAR0421R
North Lincolnshire Council,http://data.ordnancesurvey.co.uk/id/7000000000025623,Fin&Inv I&E,Other Premises Costs,3390,05/06/2020,5860191,"2,775.00",REVENUE,Barrier Security,,BAR0421R
North Lincolnshire Council,http://data.ordnancesurvey.co.uk/id/7000000000025623,Fin&Inv I&E,Repair & Maintenance Costs,3000,03/06/2020,5859369,"2,775.00",REVENUE,Barrier Security,,BAR0421R
North Lincolnshire Council,http://data.ordnancesurvey.co.uk/id/7000000000025623,Fin&Inv I&E,Repair & Maintenance Costs,3000,24/06/2020,5866706,654.5,REVENUE,Barrier Security,,BAR0421R
North Lincolnshire Council,http://data.ordnancesurvey.co.uk/id/7000000000025623,Culture & Related Services,Other Supplies & Services,5799,26/06/2020,5870280,"4,938.00",REVENUE,Barrow On Humber Parish Council,,BAR0034R
North Lincolnshire Council,http://data.ordnancesurvey.co.uk/id/7000000000025623,Highways & Transport,Other Supplies & Services,5799,26/06/2020,5870279,528,REVENUE,Barrow On Humber Parish Council,,BAR0034R
North Lincolnshire Council,http://data.ordnancesurvey.co.uk/id/7000000000025623,Childrens & Education,Payments To Voluntary Orgs,6001,10/06/2020,5862139,"6,425.61",REVENUE,Barrow Preschool Playgroup,,BAR0072R
North Lincolnshire Council,http://data.ordnancesurvey.co.uk/id/7000000000025623,Central Services To Public,Business Support Grants,6090,15/06/2020,5865239,"10,000.00",REVENUE,Barton Building Contractors Ltd,,CD026620
North Lincolnshire Council,http://data.ordnancesurvey.co.uk/id/7000000000025623,Culture & Related Services,Other Supplies & Services,5799,26/06/2020,5870278,"7,200.00",REVENUE,Barton On Humber Town Council,,BAR0032R
North Lincolnshire Council,http://data.ordnancesurvey.co.uk/id/7000000000025623,Childrens & Education,Client Transport Costs,6092,10/06/2020,5861468,"9,068.47",REVENUE,Barton Tt Taxis Ltd,7405760,BAR0888R
North Lincolnshire Council,http://data.ordnancesurvey.co.uk/id/7000000000025623,Childrens & Education,Home To School Transport,4201,10/06/2020,5862329,600,REVENUE,Barton Tt Taxis Ltd,7405760,BAR0888R
North Lincolnshire Council,http://data.ordnancesurvey.co.uk/id/7000000000025623,Childrens & Education,Home To School Transport,4201,10/06/2020,5862330,384,REVENUE,Barton Tt Taxis Ltd,7405760,BAR0888R
North Lincolnshire Council,http://data.ordnancesurvey.co.uk/id/7000000000025623,Childrens & Education,Home To School Transport,4201,10/06/2020,5862340,240,REVENUE,Barton Tt Taxis Ltd,7405760,BAR0888R
North Lincolnshire Council,http://data.ordnancesurvey.co.uk/id/7000000000025623,Childrens & Education,Home To School Transport,4201,10/06/2020,5862341,"1,020.00",REVENUE,Barton Tt Taxis Ltd,7405760,BAR0888R
North Lincolnshire Council,http://data.ordnancesurvey.co.uk/id/7000000000025623,Central Services To Public,Business Support Grants,6090,10/06/2020,5863237,"10,000.00",REVENUE,Bcs Products Ltd,,CD025920
North Lincolnshire Council,http://data.ordnancesurvey.co.uk/id/7000000000025623,Central Services To Public,Business Support Grants,6090,17/06/2020,5866114,"10,000.00",REVENUE,B Danby & Co Ltd,,CD026800
North Lincolnshire Council,http://data.ordnancesurvey.co.uk/id/7000000000025623,Childrens & Education,Payments To Private Orgs,6002,17/06/2020,5865567,350,REVENUE,Bedspace Resource Ltd,,BED0049D
North Lincolnshire Council,http://data.ordnancesurvey.co.uk/id/7000000000025623,Childrens & Education,Payments To Private Orgs,6002,17/06/2020,5865570,375,REVENUE,Bedspace Resource Ltd,,BED0049D
North Lincolnshire Council,http://data.ordnancesurvey.co.uk/id/7000000000025623,Childrens & Education,Payments To Private Orgs,6002,17/06/2020,5865600,350,REVENUE,Bedspace Resource Ltd,,BED0049D
North Lincolnshire Council,http://data.ordnancesurvey.co.uk/id/7000000000025623,Childrens & Education,Payments To Private Orgs,6002,17/06/2020,5865603,375,REVENUE,Bedspace Resource Ltd,,BED0049D
North Lincolnshire Council,http://data.ordnancesurvey.co.uk/id/7000000000025623,Childrens & Education,Payments To Private Orgs,6002,24/06/2020,5866782,350,REVENUE,Bedspace Resource Ltd,,BED0049D
North Lincolnshire Council,http://data.ordnancesurvey.co.uk/id/7000000000025623,Childrens & Education,Payments To Private Orgs,6002,24/06/2020,5866783,350,REVENUE,Bedspace Resource Ltd,,BED0049D
North Lincolnshire Council,http://data.ordnancesurvey.co.uk/id/7000000000025623,Childrens & Education,Payments To Private Orgs,6002,24/06/2020,5866784,375,REVENUE,Bedspace Resource Ltd,,BED0049D
North Lincolnshire Council,http://data.ordnancesurvey.co.uk/id/7000000000025623,Childrens & Education,Payments To Private Orgs,6002,24/06/2020,5866785,375,REVENUE,Bedspace Resource Ltd,,BED0049D
North Lincolnshire Council,http://data.ordnancesurvey.co.uk/id/7000000000025623,Environmental & Regulatory Svs,Equipment Purchase,5001,19/06/2020,5863450,740,REVENUE,Beltec (Market Rasen) Ltd,3468561,BEL0298L
North Lincolnshire Council,http://data.ordnancesurvey.co.uk/id/7000000000025623,Culture & Related Services,Other Supplies & Services,5799,26/06/2020,5870281,"10,608.00",REVENUE,Belton Parish Council,,BEL0029L
North Lincolnshire Council,http://data.ordnancesurvey.co.uk/id/7000000000025623,Highways & Transport,Other Supplies & Services,5799,26/06/2020,5870282,"1,235.00",REVENUE,Belton Parish Council,,BEL0029L
North Lincolnshire Council,http://data.ordnancesurvey.co.uk/id/7000000000025623,Central Services To Public,Business Support Grants,6090,17/06/2020,5866111,"10,000.00",REVENUE,Belton Playing Fields Association,,CD026770
North Lincolnshire Council,http://data.ordnancesurvey.co.uk/id/7000000000025623,Childrens & Education,Payments To Voluntary Orgs,6001,10/06/2020,5862210,"3,750.75",REVENUE,Belwood Playgroup,,PLA0049A
North Lincolnshire Council,http://data.ordnancesurvey.co.uk/id/7000000000025623,Culture & Related Services,"Licenses, Subs & Memberships",5510,17/06/2020,5865538,"3,404.00",REVENUE,Bibliographic Data Services Ltd,154602,BIB0027B
North Lincolnshire Council,http://data.ordnancesurvey.co.uk/id/7000000000025623,Culture & Related Services,"Licenses, Subs & Memberships",5510,17/06/2020,5865695,"4,060.00",REVENUE,Bibliographic Data Services Ltd,154602,BIB0027B
North Lincolnshire Council,http://data.ordnancesurvey.co.uk/id/7000000000025623,"Culture,Env,Reg & Planning Cap",Other Costs,A085,19/06/2020,5866219,"7,459.98",CAPITAL,Biffa Waste Services Plc,946107,BIF0005F
North Lincolnshire Council,http://data.ordnancesurvey.co.uk/id/7000000000025623,Environmental & Regulatory Svs,Payments To Private Orgs,6002,01/07/2020,5869799,654.35,REVENUE,Biffa Waste Services Plc,946107,BIF0005F
North Lincolnshire Council,http://data.ordnancesurvey.co.uk/id/7000000000025623,Environmental & Regulatory Svs,Payments To Private Orgs,6002,01/07/2020,5870235,446.88,REVENUE,Biffa Waste Services Plc,946107,BIF0005F
North Lincolnshire Council,http://data.ordnancesurvey.co.uk/id/7000000000025623,Central Services To Public,Business Support Grants,6090,17/06/2020,5866106,"25,000.00",REVENUE,Bigclothing4u Limited,,CD026720
North Lincolnshire Council,http://data.ordnancesurvey.co.uk/id/7000000000025623,Environmental & Regulatory Svs,Other Professional Fees,5829,01/07/2020,5870706,"5,029.81",REVENUE,Biowise Ltd,4305295,BIO0014O
North Lincolnshire Council,http://data.ordnancesurvey.co.uk/id/7000000000025623,Environmental & Regulatory Svs,Payments To Private Orgs,6002,12/06/2020,5863449,"12,471.54",REVENUE,Biowise Ltd,4305295,BIO0014O
North Lincolnshire Council,http://data.ordnancesurvey.co.uk/id/7000000000025623,Environmental & Regulatory Svs,Payments To Private Orgs,6002,12/06/2020,5863679,"9,565.20",REVENUE,Biowise Ltd,4305295,BIO0014O
North Lincolnshire Council,http://data.ordnancesurvey.co.uk/id/7000000000025623,Environmental & Regulatory Svs,Payments To Private Orgs,6002,01/07/2020,5870244,"19,362.99",REVENUE,Biowise Ltd,4305295,BIO0014O
North Lincolnshire Council,http://data.ordnancesurvey.co.uk/id/7000000000025623,Environmental & Regulatory Svs,Payments To Private Orgs,6002,01/07/2020,5870706,"4,026.49",REVENUE,Biowise Ltd,4305295,BIO0014O
North Lincolnshire Council,http://data.ordnancesurvey.co.uk/id/7000000000025623,Childrens & Education,Payments To Private Orgs,6002,03/06/2020,5859578,"2,666.67",REVENUE,Bishop Burton College,,BIS0030S
North Lincolnshire Council,http://data.ordnancesurvey.co.uk/id/7000000000025623,Childrens & Education,Home To School Transport,4201,10/06/2020,5861743,"1,937.00",REVENUE,Black & White Coaches,,BLA0209A
North Lincolnshire Council,http://data.ordnancesurvey.co.uk/id/7000000000025623,Childrens & Education,Home To School Transport,4201,10/06/2020,5861744,"2,860.00",REVENUE,Black & White Coaches,,BLA0209A
North Lincolnshire Council,http://data.ordnancesurvey.co.uk/id/7000000000025623,Childrens & Education,Home To School Transport,4201,10/06/2020,5861745,"2,000.55",REVENUE,Black & White Coaches,,BLA0209A
North Lincolnshire Council,http://data.ordnancesurvey.co.uk/id/7000000000025623,Central Services To Public,Business Support Grants,6090,24/06/2020,5869495,"10,000.00",REVENUE,Blanshard Building Services Limited,,CD026970
North Lincolnshire Council,http://data.ordnancesurvey.co.uk/id/7000000000025623,Central Services To Public,Business Support Grants,6090,11/06/2020,5863811,"10,000.00",REVENUE,Blink Beauty Bar,,CD026220
North Lincolnshire Council,http://data.ordnancesurvey.co.uk/id/7000000000025623,Highways & Transport,Equipment Purchase,5001,19/06/2020,5864364,471.36,REVENUE,Blue Diamond S.T.L. Ltd,,BLU0002U
North Lincolnshire Council,http://data.ordnancesurvey.co.uk/id/7000000000025623,Public Health,Payments To Private Orgs,6002,03/06/2020,5859604,"20,133.33",REVENUE,Blue Door Support Service Cic,12409042,BLU0033U
North Lincolnshire Council,http://data.ordnancesurvey.co.uk/id/7000000000025623,Public Health,Payments To Private Orgs (Inv),6026,03/06/2020,5859708,"6,666.66",REVENUE,Blue Door Support Service Cic,12409042,BLU0033U
North Lincolnshire Council,http://data.ordnancesurvey.co.uk/id/7000000000025623,Public Health,Payments To Private Orgs (Inv),6026,24/06/2020,5866801,"6,666.66",REVENUE,Blue Door Support Service Cic,12409042,BLU0033U
North Lincolnshire Council,http://data.ordnancesurvey.co.uk/id/7000000000025623,Culture & Related Services,Equipment Hire/Rent,5002,05/06/2020,5860926,"1,177.49",REVENUE,Bnp Paribas Lease Group (Rentals),,BNP0002P
North Lincolnshire Council,http://data.ordnancesurvey.co.uk/id/7000000000025623,Environmental & Regulatory Svs,Equipment Maint.& Repair,5003,03/06/2020,5858054,"2,632.00",REVENUE,Bold Communications Ltd,,BOL0037L
North Lincolnshire Council,http://data.ordnancesurvey.co.uk/id/7000000000025623,Culture & Related Services,Books (Libraries+Schools Only),5005,10/06/2020,5860118,240.02,REVENUE,Bolinda Uk Ltd,5086231,BOL0130L
North Lincolnshire Council,http://data.ordnancesurvey.co.uk/id/7000000000025623,Culture & Related Services,Books (Libraries+Schools Only),5005,10/06/2020,5860119,257.57,REVENUE,Bolinda Uk Ltd,5086231,BOL0130L
North Lincolnshire Council,http://data.ordnancesurvey.co.uk/id/7000000000025623,Culture & Related Services,Books (Libraries+Schools Only),5005,10/06/2020,5860121,320.31,REVENUE,Bolinda Uk Ltd,5086231,BOL0130L
North Lincolnshire Council,http://data.ordnancesurvey.co.uk/id/7000000000025623,Culture & Related Services,Books (Libraries+Schools Only),5005,10/06/2020,5860122,333.14,REVENUE,Bolinda Uk Ltd,5086231,BOL0130L
North Lincolnshire Council,http://data.ordnancesurvey.co.uk/id/7000000000025623,Culture & Related Services,Books (Libraries+Schools Only),5005,10/06/2020,5860606,230.02,REVENUE,Bolinda Uk Ltd,5086231,BOL0130L
North Lincolnshire Council,http://data.ordnancesurvey.co.uk/id/7000000000025623,Culture & Related Services,Books (Libraries+Schools Only),5005,10/06/2020,5860665,708.56,REVENUE,Bolinda Uk Ltd,5086231,BOL0130L
North Lincolnshire Council,http://data.ordnancesurvey.co.uk/id/7000000000025623,Culture & Related Services,Books (Libraries+Schools Only),5005,10/06/2020,5860684,296.78,REVENUE,Bolinda Uk Ltd,5086231,BOL0130L
North Lincolnshire Council,http://data.ordnancesurvey.co.uk/id/7000000000025623,Culture & Related Services,Books (Libraries+Schools Only),5005,10/06/2020,5861072,"3,016.00",REVENUE,Bolinda Uk Ltd,5086231,BOL0130L
North Lincolnshire Council,http://data.ordnancesurvey.co.uk/id/7000000000025623,Culture & Related Services,Books (Libraries+Schools Only),5005,10/06/2020,5861215,256.25,REVENUE,Bolinda Uk Ltd,5086231,BOL0130L
North Lincolnshire Council,http://data.ordnancesurvey.co.uk/id/7000000000025623,Culture & Related Services,Books (Libraries+Schools Only),5005,10/06/2020,5862540,440.02,REVENUE,Bolinda Uk Ltd,5086231,BOL0130L
North Lincolnshire Council,http://data.ordnancesurvey.co.uk/id/7000000000025623,Culture & Related Services,Books (Libraries+Schools Only),5005,01/07/2020,5866794,313.18,REVENUE,Bolinda Uk Ltd,5086231,BOL0130L
North Lincolnshire Council,http://data.ordnancesurvey.co.uk/id/7000000000025623,Culture & Related Services,Books (Libraries+Schools Only),5005,08/07/2020,5870354,"1,000.00",REVENUE,Bolinda Uk Ltd,5086231,BOL0130L
North Lincolnshire Council,http://data.ordnancesurvey.co.uk/id/7000000000025623,Culture & Related Services,Books (Libraries+Schools Only),5005,08/07/2020,5870355,"1,000.00",REVENUE,Bolinda Uk Ltd,5086231,BOL0130L
North Lincolnshire Council,http://data.ordnancesurvey.co.uk/id/7000000000025623,Culture & Related Services,Other Supplies & Services,5799,26/06/2020,5870283,972,REVENUE,Bonby Parish Council,,BON0002N
North Lincolnshire Council,http://data.ordnancesurvey.co.uk/id/7000000000025623,Highways & Transport,Other Supplies & Services,5799,26/06/2020,5870284,338,REVENUE,Bonby Parish Council,,BON0002N
North Lincolnshire Council,http://data.ordnancesurvey.co.uk/id/7000000000025623,Childrens & Education,Payments To Voluntary Orgs,6001,10/06/2020,5862141,"3,896.61",REVENUE,Bonby Pre-School,,BON0005N
North Lincolnshire Council,http://data.ordnancesurvey.co.uk/id/7000000000025623,Central Services To Public,Business Support Grants,6090,12/06/2020,5864409,"10,000.00",REVENUE,Bonby Village Hall,,CD026540
North Lincolnshire Council,http://data.ordnancesurvey.co.uk/id/7000000000025623,Central Services To Public,Repair & Maintenance Costs,3000,24/06/2020,5868414,0,REVENUE,Boon Edam Limited,1877418,BOO0035O
North Lincolnshire Council,http://data.ordnancesurvey.co.uk/id/7000000000025623,Culture & Related Services,Repair & Maintenance Costs,3000,24/06/2020,5868414,598,REVENUE,Boon Edam Limited,1877418,BOO0035O
North Lincolnshire Council,http://data.ordnancesurvey.co.uk/id/7000000000025623,Central Services To Public,Business Support Grants,6090,10/06/2020,5863243,"10,000.00",REVENUE,Bottesford Bowls Club,,CD025980
North Lincolnshire Council,http://data.ordnancesurvey.co.uk/id/7000000000025623,Childrens & Education,Payments To Private Orgs,6002,10/06/2020,5862142,"8,223.17",REVENUE,Bottesford Bunnies Ltd,,BOT0226T
North Lincolnshire Council,http://data.ordnancesurvey.co.uk/id/7000000000025623,Planning Services,Payments To Voluntary Orgs,6001,24/06/2020,5866709,"1,347.00",REVENUE,Bottesford In Bloom,,BOT0034T
North Lincolnshire Council,http://data.ordnancesurvey.co.uk/id/7000000000025623,Culture & Related Services,Other Supplies & Services,5799,26/06/2020,5870285,"23,061.00",REVENUE,Bottesford Town Council,,BOT0001T
North Lincolnshire Council,http://data.ordnancesurvey.co.uk/id/7000000000025623,Central Services To Public,Business Support Grants,6090,03/06/2020,5860266,"10,000.00",REVENUE,Bottesford Village Hall Comm,,CD025840
North Lincolnshire Council,http://data.ordnancesurvey.co.uk/id/7000000000025623,Culture & Related Services,Materials,5004,01/07/2020,5869727,291,REVENUE,Boverton Nurseries Ltd,,BOV0010V
North Lincolnshire Council,http://data.ordnancesurvey.co.uk/id/7000000000025623,Central Services To Public,Business Support Grants,6090,10/06/2020,5863241,"10,000.00",REVENUE,Bri5 5ervices Ltd,,CD025960
North Lincolnshire Council,http://data.ordnancesurvey.co.uk/id/7000000000025623,Childrens & Education,Client Related Costs,5534,26/06/2020,5869785,369,REVENUE,Brigg Beds,,BRI0569I
North Lincolnshire Council,http://data.ordnancesurvey.co.uk/id/7000000000025623,Housing Services,Other Supplies & Services,5799,03/06/2020,5859423,630,REVENUE,Brigg Marina Ltd,8956768,BRI0977I
North Lincolnshire Council,http://data.ordnancesurvey.co.uk/id/7000000000025623,Housing Services,Other Supplies & Services,5799,03/06/2020,5859425,847,REVENUE,Brigg Marina Ltd,8956768,BRI0977I
North Lincolnshire Council,http://data.ordnancesurvey.co.uk/id/7000000000025623,Housing Services,Other Supplies & Services,5799,03/06/2020,5859426,434,REVENUE,Brigg Marina Ltd,8956768,BRI0977I
North Lincolnshire Council,http://data.ordnancesurvey.co.uk/id/7000000000025623,Housing Services,Other Supplies & Services,5799,10/06/2020,5862563,630,REVENUE,Brigg Marina Ltd,8956768,BRI0977I
North Lincolnshire Council,http://data.ordnancesurvey.co.uk/id/7000000000025623,Housing Services,Other Supplies & Services,5799,10/06/2020,5862564,847,REVENUE,Brigg Marina Ltd,8956768,BRI0977I
North Lincolnshire Council,http://data.ordnancesurvey.co.uk/id/7000000000025623,Housing Services,Other Supplies & Services,5799,10/06/2020,5862565,434,REVENUE,Brigg Marina Ltd,8956768,BRI0977I
North Lincolnshire Council,http://data.ordnancesurvey.co.uk/id/7000000000025623,Housing Services,Other Supplies & Services,5799,24/06/2020,5865395,248,REVENUE,Brigg Marina Ltd,8956768,BRI0977I
North Lincolnshire Council,http://data.ordnancesurvey.co.uk/id/7000000000025623,Housing Services,Other Supplies & Services,5799,24/06/2020,5865396,847,REVENUE,Brigg Marina Ltd,8956768,BRI0977I
North Lincolnshire Council,http://data.ordnancesurvey.co.uk/id/7000000000025623,Housing Services,Other Supplies & Services,5799,26/06/2020,5866688,483,REVENUE,Brigg Marina Ltd,8956768,BRI0977I
North Lincolnshire Council,http://data.ordnancesurvey.co.uk/id/7000000000025623,Culture & Related Services,Other Supplies & Services,5799,26/06/2020,5870287,"24,963.00",REVENUE,Brigg Town Council,,BRI0036I
North Lincolnshire Council,http://data.ordnancesurvey.co.uk/id/7000000000025623,Highways & Transport,Other Supplies & Services,5799,26/06/2020,5870288,"1,374.00",REVENUE,Brigg Town Council,,BRI0036I
North Lincolnshire Council,http://data.ordnancesurvey.co.uk/id/7000000000025623,Planning Services,Payments To Private Orgs,6002,24/06/2020,5865670,"322,975.29",REVENUE,Britcon (Scunthorpe) Ltd,,BRI0032I
North Lincolnshire Council,http://data.ordnancesurvey.co.uk/id/7000000000025623,Adult Social Care,Other Supplies & Services,5799,24/06/2020,5865741,600,REVENUE,British Dyslexia Association,1830587,BRI0203I
North Lincolnshire Council,http://data.ordnancesurvey.co.uk/id/7000000000025623,Corporate And Democratic Core,Telephone Rent/Calls,5403,03/06/2020,5859740,388.49,REVENUE,British Telecom Plc,1800000,BRI0020I
North Lincolnshire Council,http://data.ordnancesurvey.co.uk/id/7000000000025623,Central Services To Public,Business Support Grants,6090,12/06/2020,5864405,"10,000.00",REVENUE,Brook Lodge Country Cottage,,CD026500
North Lincolnshire Council,http://data.ordnancesurvey.co.uk/id/7000000000025623,Childrens & Education,Equipment Maint.& Repair,5003,19/06/2020,5866063,67.29,REVENUE,Brook & Mayo Ltd,4625674,BRO0686O
North Lincolnshire Council,http://data.ordnancesurvey.co.uk/id/7000000000025623,Childrens & Education,Repair & Maintenance Costs,3000,19/06/2020,5866063,806.5,REVENUE,Brook & Mayo Ltd,4625674,BRO0686O
North Lincolnshire Council,http://data.ordnancesurvey.co.uk/id/7000000000025623,Culture & Related Services,Repair & Maintenance Costs,3000,17/06/2020,5865218,"2,153.05",REVENUE,Brook & Mayo Ltd,4625674,BRO0686O
North Lincolnshire Council,http://data.ordnancesurvey.co.uk/id/7000000000025623,Culture & Related Services,Repair & Maintenance Costs,3000,19/06/2020,5866063,779.96,REVENUE,Brook & Mayo Ltd,4625674,BRO0686O
North Lincolnshire Council,http://data.ordnancesurvey.co.uk/id/7000000000025623,Culture & Related Services,Repair & Maintenance Costs,3000,24/06/2020,5867117,700.93,REVENUE,Brook & Mayo Ltd,4625674,BRO0686O
North Lincolnshire Council,http://data.ordnancesurvey.co.uk/id/7000000000025623,Environmental & Regulatory Svs,Repair & Maintenance Costs,3000,17/06/2020,5865219,330,REVENUE,Brook & Mayo Ltd,4625674,BRO0686O
North Lincolnshire Council,http://data.ordnancesurvey.co.uk/id/7000000000025623,Environmental & Regulatory Svs,Repair & Maintenance Costs,3000,19/06/2020,5866063,64.86,REVENUE,Brook & Mayo Ltd,4625674,BRO0686O
North Lincolnshire Council,http://data.ordnancesurvey.co.uk/id/7000000000025623,Central Services To Public,Business Support Grants,6090,03/06/2020,5860263,"25,000.00",REVENUE,Broughton Town Council,,CD025810
North Lincolnshire Council,http://data.ordnancesurvey.co.uk/id/7000000000025623,Central Services To Public,Business Support Grants,6090,03/06/2020,5860262,"10,000.00",REVENUE,Broughton Village Hall,,CD025800
North Lincolnshire Council,http://data.ordnancesurvey.co.uk/id/7000000000025623,Culture & Related Services,Vehicle Repairs,4004,03/07/2020,5870256,720.26,REVENUE,Burdens Group Ltd,,BUR0253R
North Lincolnshire Council,http://data.ordnancesurvey.co.uk/id/7000000000025623,Central Services To Public,Business Support Grants,6090,03/06/2020,5860236,"10,000.00",REVENUE,Burning Dreams,,CD025540
North Lincolnshire Council,http://data.ordnancesurvey.co.uk/id/7000000000025623,Culture & Related Services,Other Supplies & Services,5799,26/06/2020,5870289,823,REVENUE,Burringham Parish Council,,BUR0003R
North Lincolnshire Council,http://data.ordnancesurvey.co.uk/id/7000000000025623,Childrens & Education,Payments To Voluntary Orgs,6001,10/06/2020,5862145,"8,185.07",REVENUE,Burton Play,,BUR0352R
North Lincolnshire Council,http://data.ordnancesurvey.co.uk/id/7000000000025623,Culture & Related Services,Other Supplies & Services,5799,26/06/2020,5870291,"9,812.00",REVENUE,Burton Upon Stather Parish Council,,BUR0011R
North Lincolnshire Council,http://data.ordnancesurvey.co.uk/id/7000000000025623,Childrens & Education,Payments To Private Orgs,6002,10/06/2020,5862146,"9,308.53",REVENUE,Busi Bodies Day Nursery,,BUS0015S
North Lincolnshire Council,http://data.ordnancesurvey.co.uk/id/7000000000025623,Childrens & Education,Payments To Private Orgs,6002,10/06/2020,5862147,635.4,REVENUE,Busy Bea Childminding,,BUS0165S
North Lincolnshire Council,http://data.ordnancesurvey.co.uk/id/7000000000025623,Central Services To Public,Business Support Grants,6090,17/06/2020,5866110,"10,000.00",REVENUE,Cadney Cum Howsham Village Hall,,CD026760
North Lincolnshire Council,http://data.ordnancesurvey.co.uk/id/7000000000025623,Central Services To Public,Business Support Grants,6090,10/06/2020,5863265,"10,000.00",REVENUE,Cafe Natura,,CD026200
North Lincolnshire Council,http://data.ordnancesurvey.co.uk/id/7000000000025623,Childrens & Education,Payments To Private Orgs,6002,24/06/2020,5868528,"2,916.67",REVENUE,Caistor Grammar School,,CAI0008I
North Lincolnshire Council,http://data.ordnancesurvey.co.uk/id/7000000000025623,Central Services To Public,Repair & Maintenance Costs,3000,19/06/2020,5866570,0,REVENUE,Calandine Lifts Ltd,5541807,CAL0008L
North Lincolnshire Council,http://data.ordnancesurvey.co.uk/id/7000000000025623,Culture & Related Services,Equipment Maint.& Repair,5003,19/06/2020,5866570,230,REVENUE,Calandine Lifts Ltd,5541807,CAL0008L
North Lincolnshire Council,http://data.ordnancesurvey.co.uk/id/7000000000025623,Central Services To Public,Business Support Grants,6090,18/06/2020,5866616,"10,000.00",REVENUE,Cambridge Avenue Pharmacy,,CAM0269M
North Lincolnshire Council,http://data.ordnancesurvey.co.uk/id/7000000000025623,Childrens & Education,Payments To Private Orgs,6002,03/06/2020,5859576,"2,033.00",REVENUE,Cambridge Park Academy,,CAM0127M
North Lincolnshire Council,http://data.ordnancesurvey.co.uk/id/7000000000025623,Corporate And Democratic Core,Gen Office Exp (Incl Postage),5603,03/06/2020,5859433,"3,915.32",REVENUE,Capita Business Services Ltd,2299747,CAP0021P
North Lincolnshire Council,http://data.ordnancesurvey.co.uk/id/7000000000025623,Corporate And Democratic Core,Gen Office Exp (Incl Postage),5603,10/06/2020,5862347,"4,224.50",REVENUE,Capita Business Services Ltd,2299747,CAP0021P
North Lincolnshire Council,http://data.ordnancesurvey.co.uk/id/7000000000025623,Corporate And Democratic Core,It Software-Purchase,5051,17/06/2020,5865718,"7,112.50",REVENUE,Capita Business Services Ltd,2299747,CAP0021P
North Lincolnshire Council,http://data.ordnancesurvey.co.uk/id/7000000000025623,Culture & Related Services,Equipment Purchase,5001,12/06/2020,5863851,310,REVENUE,Cardiac Science Holdings Uk Ltd,4768341,CAR0491R
North Lincolnshire Council,http://data.ordnancesurvey.co.uk/id/7000000000025623,Adult Social Care,Payments To Private Orgs,6002,05/06/2020,5860138,"1,211.00",REVENUE,Care Plus Care Ltd,,CAR0337R
North Lincolnshire Council,http://data.ordnancesurvey.co.uk/id/7000000000025623,Adult Social Care,Payments To Private Orgs,6002,12/06/2020,5864016,"1,586.26",REVENUE,Care Plus Care Ltd,,CAR0337R
North Lincolnshire Council,http://data.ordnancesurvey.co.uk/id/7000000000025623,Adult Social Care,Payments To Private Orgs,6002,03/06/2020,5860155,320,REVENUE,Care Plus Care Uk Ltd,,ISF0002F
North Lincolnshire Council,http://data.ordnancesurvey.co.uk/id/7000000000025623,Adult Social Care,Payments To Private Orgs,6002,05/06/2020,5860139,"2,730.00",REVENUE,Care Plus Care (Uk) Ltd (Isle),,CAR0542R
North Lincolnshire Council,http://data.ordnancesurvey.co.uk/id/7000000000025623,Adult Social Care,Payments To Private Orgs,6002,12/06/2020,5864017,"1,736.40",REVENUE,Care Plus Care (Uk) Ltd (Isle),,CAR0542R
North Lincolnshire Council,http://data.ordnancesurvey.co.uk/id/7000000000025623,Adult Social Care,Payments To Private Orgs,6002,03/06/2020,5860156,"1,741.00",REVENUE,Carers' Support Centre,,ISF0003F
North Lincolnshire Council,http://data.ordnancesurvey.co.uk/id/7000000000025623,Adult Social Care,Payments To Private Orgs,6002,12/06/2020,5864015,"2,142.43",REVENUE,Carers' Support Centre,,CAR0131R
North Lincolnshire Council,http://data.ordnancesurvey.co.uk/id/7000000000025623,Childrens & Education,Payments To Private Orgs,6002,10/06/2020,5862227,449.55,REVENUE,Carla Stebbing,,STE0336E
North Lincolnshire Council,http://data.ordnancesurvey.co.uk/id/7000000000025623,Childrens & Education,Payments To Private Orgs,6002,10/06/2020,5862208,962.45,REVENUE,Carlie Peake,,PEA0152A
North Lincolnshire Council,http://data.ordnancesurvey.co.uk/id/7000000000025623,Culture & Related Services,Fuel,4001,17/06/2020,5859742,458.28,REVENUE,Carlton Fuels,4168225,CAR0127R
North Lincolnshire Council,http://data.ordnancesurvey.co.uk/id/7000000000025623,Culture & Related Services,Fuel,4001,26/06/2020,5868333,602.4,REVENUE,Carlton Fuels,4168225,CAR0127R
North Lincolnshire Council,http://data.ordnancesurvey.co.uk/id/7000000000025623,Environmental & Regulatory Svs,Fuel,4001,26/06/2020,5866739,"1,164.60",REVENUE,Carlton Fuels,4168225,CAR0127R
North Lincolnshire Council,http://data.ordnancesurvey.co.uk/id/7000000000025623,Highways & Transport,Fuel,4001,10/06/2020,5862426,"28,147.00",REVENUE,Carlton Fuels,4168225,CAR0127R
North Lincolnshire Council,http://data.ordnancesurvey.co.uk/id/7000000000025623,Highways & Transport,Fuel,4001,19/06/2020,5860863,267.33,REVENUE,Carlton Fuels,4168225,CAR0127R
North Lincolnshire Council,http://data.ordnancesurvey.co.uk/id/7000000000025623,Highways & Transport,Fuel,4001,01/07/2020,5870552,"29,550.50",REVENUE,Carlton Fuels,4168225,CAR0127R
North Lincolnshire Council,http://data.ordnancesurvey.co.uk/id/7000000000025623,Childrens & Education,Payments To Private Orgs,6002,26/06/2020,5869375,"2,600.00",REVENUE,Caroline Taylor,,TAY0213Y
North Lincolnshire Council,http://data.ordnancesurvey.co.uk/id/7000000000025623,Childrens & Education,Payments To Private Orgs,6002,10/06/2020,5862150,"4,490.35",REVENUE,Castledyke Ltd,,CAS0095S
North Lincolnshire Council,http://data.ordnancesurvey.co.uk/id/7000000000025623,Adult Social Care,Course Fees/Training,2002,17/06/2020,5865243,-50,REVENUE,Cat Csh Card Imprest,,NOR0754R
North Lincolnshire Council,http://data.ordnancesurvey.co.uk/id/7000000000025623,Adult Social Care,Equipment Purchase,5001,17/06/2020,5865243,176.39,REVENUE,Cat Csh Card Imprest,,NOR0754R
North Lincolnshire Council,http://data.ordnancesurvey.co.uk/id/7000000000025623,Adult Social Care,Equipment Purchase,5001,17/06/2020,5865243,65,REVENUE,Cat Csh Card Imprest,,NOR0754R
North Lincolnshire Council,http://data.ordnancesurvey.co.uk/id/7000000000025623,Childrens & Education,Gen Office Exp (Incl Postage),5603,17/06/2020,5865243,83.34,REVENUE,Cat Csh Card Imprest,,NOR0754R
North Lincolnshire Council,http://data.ordnancesurvey.co.uk/id/7000000000025623,Childrens & Education,"Licenses, Subs & Memberships",5510,17/06/2020,5865243,100,REVENUE,Cat Csh Card Imprest,,NOR0754R
North Lincolnshire Council,http://data.ordnancesurvey.co.uk/id/7000000000025623,Corporate And Democratic Core,Gen Office Exp (Incl Postage),5603,17/06/2020,5865243,72.4,REVENUE,Cat Csh Card Imprest,,NOR0754R
North Lincolnshire Council,http://data.ordnancesurvey.co.uk/id/7000000000025623,Corporate And Democratic Core,Other Supplies & Services,5799,17/06/2020,5865243,137.4,REVENUE,Cat Csh Card Imprest,,NOR0754R
North Lincolnshire Council,http://data.ordnancesurvey.co.uk/id/7000000000025623,Housing Services,Other Supplies & Services,5799,17/06/2020,5865243,"1,249.80",REVENUE,Cat Csh Card Imprest,,NOR0754R
North Lincolnshire Council,http://data.ordnancesurvey.co.uk/id/7000000000025623,Planning Services,Other Supplies & Services,5799,17/06/2020,5865243,30,REVENUE,Cat Csh Card Imprest,,NOR0754R
North Lincolnshire Council,http://data.ordnancesurvey.co.uk/id/7000000000025623,Fin&Inv I&E,Cleaning Costs/ Materials,3301,19/06/2020,5866593,441.99,REVENUE,Cathedral Leasing Ltd,,CAT0020T
North Lincolnshire Council,http://data.ordnancesurvey.co.uk/id/7000000000025623,Central Services To Public,Business Support Grants,6090,10/06/2020,5863251,"10,000.00",REVENUE,C&C Transport (Scunthorpe) Ltd,,CD026060
North Lincolnshire Council,http://data.ordnancesurvey.co.uk/id/7000000000025623,Central Services To Public,Business Support Grants,6090,11/06/2020,5863823,"10,000.00",REVENUE,Celeb Accessories Ltd,,CD026340
North Lincolnshire Council,http://data.ordnancesurvey.co.uk/id/7000000000025623,Corporate And Democratic Core,It Software-Maintenance,5053,17/06/2020,5865528,"41,086.97",REVENUE,Celerity Ltd,4475496,CEL0063L
North Lincolnshire Council,http://data.ordnancesurvey.co.uk/id/7000000000025623,Adult Social Care,Cleaning Services & Contracts,3311,10/06/2020,5861412,782.33,REVENUE,Central Laundry Ltd,6765045,CEN0085N
North Lincolnshire Council,http://data.ordnancesurvey.co.uk/id/7000000000025623,Adult Social Care,Payments To Private Orgs,6002,24/06/2020,5868548,851.44,REVENUE,Central Laundry Ltd,6765045,CEN0085N
North Lincolnshire Council,http://data.ordnancesurvey.co.uk/id/7000000000025623,Adult Social Care,Payments To Health Providers,6019,10/04/2020,5863620,-749.12,REVENUE,Central Surgery,,DIC0005C
North Lincolnshire Council,http://data.ordnancesurvey.co.uk/id/7000000000025623,Culture & Related Services,Other Professional Fees,5829,05/06/2020,5860923,800,REVENUE,Champions Uk Plc,4247448,CHA0499A
North Lincolnshire Council,http://data.ordnancesurvey.co.uk/id/7000000000025623,Culture & Related Services,Other Professional Fees,5829,05/06/2020,5860924,475,REVENUE,Champions Uk Plc,4247448,CHA0499A
North Lincolnshire Council,http://data.ordnancesurvey.co.uk/id/7000000000025623,Fin&Inv I&E,Other Supplies & Services,5799,05/06/2020,5860189,800,REVENUE,Champ Ltd,,CHA0374A
North Lincolnshire Council,http://data.ordnancesurvey.co.uk/id/7000000000025623,Childrens & Education,"Licenses, Subs & Memberships",5510,01/07/2020,5870696,900,REVENUE,Charanga Ltd,,CHA0486A
North Lincolnshire Council,http://data.ordnancesurvey.co.uk/id/7000000000025623,Highways & Transport,Stock Purchases & Adjustments,5030,03/06/2020,5849214,"1,705.68",REVENUE,Charles Endirect Ltd,,CHA0183A
North Lincolnshire Council,http://data.ordnancesurvey.co.uk/id/7000000000025623,Environmental & Regulatory Svs,Equipment Purchase,5001,01/07/2020,5870703,412.5,REVENUE,Chemsafe (Yorks) Ltd,,CHE0011E
North Lincolnshire Council,http://data.ordnancesurvey.co.uk/id/7000000000025623,Adult Social Care,Payments To Private Orgs,6002,05/06/2020,5860140,"3,361.46",REVENUE,Chestnut Homecare Ltd,,CHE0222E
North Lincolnshire Council,http://data.ordnancesurvey.co.uk/id/7000000000025623,Adult Social Care,Payments To Private Orgs,6002,05/06/2020,5860140,"1,307.04",REVENUE,Chestnut Homecare Ltd,,CHE0222E
North Lincolnshire Council,http://data.ordnancesurvey.co.uk/id/7000000000025623,Adult Social Care,Payments To Private Orgs,6002,12/06/2020,5864019,"2,143.51",REVENUE,Chestnut Homecare Ltd,,CHE0222E
North Lincolnshire Council,http://data.ordnancesurvey.co.uk/id/7000000000025623,Childrens & Education,Rents,3201,19/06/2020,5866087,634,REVENUE,Chevington Finance & Leasing Ltd,,CHE0162E
North Lincolnshire Council,http://data.ordnancesurvey.co.uk/id/7000000000025623,Central Services To Public,Business Support Grants,6090,11/06/2020,5863819,"10,000.00",REVENUE,Chicago Classic,,CD026300
North Lincolnshire Council,http://data.ordnancesurvey.co.uk/id/7000000000025623,Childrens & Education,Other Professional Fees,5829,10/06/2020,5862653,399.75,REVENUE,Christopher Barton,,BAR0895R
North Lincolnshire Council,http://data.ordnancesurvey.co.uk/id/7000000000025623,Childrens & Education,Advertising & Publicity,5610,24/06/2020,5868405,315,REVENUE,Chronicle Publications Limited,,CHR0026R
North Lincolnshire Council,http://data.ordnancesurvey.co.uk/id/7000000000025623,Childrens & Education,Advertising & Publicity,5610,24/06/2020,5868406,315,REVENUE,Chronicle Publications Limited,,CHR0026R
North Lincolnshire Council,http://data.ordnancesurvey.co.uk/id/7000000000025623,Childrens & Education,Payments To Private Orgs,6002,10/06/2020,5861104,"5,314.33",REVENUE,Chrysalis Consortium,,CHR0024R
North Lincolnshire Council,http://data.ordnancesurvey.co.uk/id/7000000000025623,Adult Social Care,Repair & Maintenance Costs,3000,03/06/2020,5859378,39.5,REVENUE,Chubb  Fire & Security Ltd,524469,SHO0001O
North Lincolnshire Council,http://data.ordnancesurvey.co.uk/id/7000000000025623,Adult Social Care,Repair & Maintenance Costs,3000,19/06/2020,5866620,39.5,REVENUE,Chubb  Fire & Security Ltd,524469,SHO0001O
North Lincolnshire Council,http://data.ordnancesurvey.co.uk/id/7000000000025623,Central Services To Public,Repair & Maintenance Costs,3000,03/06/2020,5859377,0,REVENUE,Chubb  Fire & Security Ltd,524469,SHO0001O
North Lincolnshire Council,http://data.ordnancesurvey.co.uk/id/7000000000025623,Central Services To Public,Repair & Maintenance Costs,3000,03/06/2020,5859378,0,REVENUE,Chubb  Fire & Security Ltd,524469,SHO0001O
North Lincolnshire Council,http://data.ordnancesurvey.co.uk/id/7000000000025623,Central Services To Public,Repair & Maintenance Costs,3000,19/06/2020,5866620,0,REVENUE,Chubb  Fire & Security Ltd,524469,SHO0001O
North Lincolnshire Council,http://data.ordnancesurvey.co.uk/id/7000000000025623,Central Services To Public,Repair & Maintenance Costs,3000,24/06/2020,5868507,0,REVENUE,Chubb  Fire & Security Ltd,524469,SHO0001O
North Lincolnshire Council,http://data.ordnancesurvey.co.uk/id/7000000000025623,Childrens & Education,Repair & Maintenance Costs,3000,24/06/2020,5868507,248.65,REVENUE,Chubb  Fire & Security Ltd,524469,SHO0001O
North Lincolnshire Council,http://data.ordnancesurvey.co.uk/id/7000000000025623,Corporate And Democratic Core,Repair & Maintenance Costs,3000,03/06/2020,5859375,0,REVENUE,Chubb  Fire & Security Ltd,524469,SHO0001O
North Lincolnshire Council,http://data.ordnancesurvey.co.uk/id/7000000000025623,Corporate And Democratic Core,Repair & Maintenance Costs,3000,03/06/2020,5859378,63.76,REVENUE,Chubb  Fire & Security Ltd,524469,SHO0001O
North Lincolnshire Council,http://data.ordnancesurvey.co.uk/id/7000000000025623,Corporate And Democratic Core,Repair & Maintenance Costs,3000,19/06/2020,5866620,63.76,REVENUE,Chubb  Fire & Security Ltd,524469,SHO0001O
North Lincolnshire Council,http://data.ordnancesurvey.co.uk/id/7000000000025623,Culture & Related Services,Repair & Maintenance Costs,3000,03/06/2020,5859377,95.65,REVENUE,Chubb  Fire & Security Ltd,524469,SHO0001O
North Lincolnshire Council,http://data.ordnancesurvey.co.uk/id/7000000000025623,Culture & Related Services,Repair & Maintenance Costs,3000,03/06/2020,5859378,257.87,REVENUE,Chubb  Fire & Security Ltd,524469,SHO0001O
North Lincolnshire Council,http://data.ordnancesurvey.co.uk/id/7000000000025623,Culture & Related Services,Repair & Maintenance Costs,3000,19/06/2020,5866620,257.87,REVENUE,Chubb  Fire & Security Ltd,524469,SHO0001O
North Lincolnshire Council,http://data.ordnancesurvey.co.uk/id/7000000000025623,Non Distributed Costs,Repair & Maintenance Costs,3000,03/06/2020,5859378,118.5,REVENUE,Chubb  Fire & Security Ltd,524469,SHO0001O
North Lincolnshire Council,http://data.ordnancesurvey.co.uk/id/7000000000025623,Non Distributed Costs,Repair & Maintenance Costs,3000,19/06/2020,5866620,118.5,REVENUE,Chubb  Fire & Security Ltd,524469,SHO0001O
North Lincolnshire Council,http://data.ordnancesurvey.co.uk/id/7000000000025623,Corporate And Democratic Core,"Licenses, Subs & Memberships",5510,03/06/2020,5859632,"6,300.00",REVENUE,Cipfa Business Ltd,,CIP0003P
North Lincolnshire Council,http://data.ordnancesurvey.co.uk/id/7000000000025623,Fin&Inv I&E,Course Fees/Training,2002,19/06/2020,5866661,"1,890.00",REVENUE,Cipfa Business Ltd,,CIP0003P
North Lincolnshire Council,http://data.ordnancesurvey.co.uk/id/7000000000025623,Culture & Related Services,Other Premises Costs,3390,10/06/2020,5861384,322.76,REVENUE,Citron Hygiene Ltd,3056469,CAN0001N
North Lincolnshire Council,http://data.ordnancesurvey.co.uk/id/7000000000025623,Adult Social Care,Payments To Health Providers,6019,12/06/2020,5863622,599,REVENUE,City Health Care Partnership Cic,,HUL0022L
North Lincolnshire Council,http://data.ordnancesurvey.co.uk/id/7000000000025623,Adult Social Care,Other Supplies & Services,5799,01/07/2020,5869786,"4,081.25",REVENUE,Civica Uk Ltd,1628868,CIV0010V
North Lincolnshire Council,http://data.ordnancesurvey.co.uk/id/7000000000025623,Housing Services,Other Supplies & Services,5799,26/06/2020,5865621,826,REVENUE,Clamart Ltd,,CLA0599A
North Lincolnshire Council,http://data.ordnancesurvey.co.uk/id/7000000000025623,Housing Services,Other Supplies & Services,5799,01/07/2020,5865622,826,REVENUE,Clamart Ltd,,CLA0599A
North Lincolnshire Council,http://data.ordnancesurvey.co.uk/id/7000000000025623,Housing Services,Other Supplies & Services,5799,01/07/2020,5865626,826,REVENUE,Clamart Ltd,,CLA0599A
North Lincolnshire Council,http://data.ordnancesurvey.co.uk/id/7000000000025623,Housing Services,Other Supplies & Services,5799,01/07/2020,5865635,826,REVENUE,Clamart Ltd,,CLA0599A
North Lincolnshire Council,http://data.ordnancesurvey.co.uk/id/7000000000025623,Housing Services,Other Supplies & Services,5799,01/07/2020,5865638,826,REVENUE,Clamart Ltd,,CLA0599A
North Lincolnshire Council,http://data.ordnancesurvey.co.uk/id/7000000000025623,Housing Services,Other Supplies & Services,5799,01/07/2020,5865640,826,REVENUE,Clamart Ltd,,CLA0599A
North Lincolnshire Council,http://data.ordnancesurvey.co.uk/id/7000000000025623,Adult Social Care,Payments To Private Orgs,6002,05/06/2020,5860143,231.56,REVENUE,Clarity Homecare Ltd,,CLA0252A
North Lincolnshire Council,http://data.ordnancesurvey.co.uk/id/7000000000025623,Adult Social Care,Payments To Private Orgs,6002,05/06/2020,5860143,"20,631.19",REVENUE,Clarity Homecare Ltd,,CLA0252A
North Lincolnshire Council,http://data.ordnancesurvey.co.uk/id/7000000000025623,Adult Social Care,Payments To Private Orgs,6002,12/06/2020,5864021,"5,758.95",REVENUE,Clarity Homecare Ltd,,CLA0252A
North Lincolnshire Council,http://data.ordnancesurvey.co.uk/id/7000000000025623,Childrens & Education,It Software-Maintenance,5053,03/06/2020,5859355,"4,450.00",REVENUE,Clear Skies Software Ltd,3943189,SHE0018E
North Lincolnshire Council,http://data.ordnancesurvey.co.uk/id/7000000000025623,Childrens & Education,Rail & Other Fares,4121,30/06/2020,5861319,-269,REVENUE,Click Travel Limited,3770815,CLI0015I
North Lincolnshire Council,http://data.ordnancesurvey.co.uk/id/7000000000025623,Corporate And Democratic Core,Rail & Other Fares,4121,30/06/2020,5861319,-51.7,REVENUE,Click Travel Limited,3770815,CLI0015I
North Lincolnshire Council,http://data.ordnancesurvey.co.uk/id/7000000000025623,Adult Social Care,Payments To Private Orgs,6002,10/06/2020,5859662,"13,569.60",REVENUE,Cloverleaf Advocacy 2000 Ltd,,CLO0101O
North Lincolnshire Council,http://data.ordnancesurvey.co.uk/id/7000000000025623,Adult Social Care,Payments To Private Orgs,6002,10/06/2020,5859663,"13,569.60",REVENUE,Cloverleaf Advocacy 2000 Ltd,,CLO0101O
North Lincolnshire Council,http://data.ordnancesurvey.co.uk/id/7000000000025623,Adult Social Care,Payments To Private Orgs,6002,10/06/2020,5861049,"2,291.67",REVENUE,Cloverleaf Advocacy 2000 Ltd,,CLO0101O
North Lincolnshire Council,http://data.ordnancesurvey.co.uk/id/7000000000025623,Adult Social Care,Payments To Private Orgs,6002,10/06/2020,5861051,"2,291.67",REVENUE,Cloverleaf Advocacy 2000 Ltd,,CLO0101O
North Lincolnshire Council,http://data.ordnancesurvey.co.uk/id/7000000000025623,Childrens & Education,Materials,5004,24/06/2020,5868575,616,REVENUE,Clugston Distribution Services Ltd,5517733,CLU0013U
North Lincolnshire Council,http://data.ordnancesurvey.co.uk/id/7000000000025623,Highways & Transport,Other Vehicle Costs,4005,19/06/2020,5866162,"4,000.00",REVENUE,Clugston Distribution Services Ltd,5517733,CLU0013U
North Lincolnshire Council,http://data.ordnancesurvey.co.uk/id/7000000000025623,Environmental & Regulatory Svs,Vehicle Hire,4101,01/07/2020,5870554,"3,000.00",REVENUE,Cms Hire Ltd,,COO0073O
North Lincolnshire Council,http://data.ordnancesurvey.co.uk/id/7000000000025623,Environmental & Regulatory Svs,Vehicle Hire,4101,01/07/2020,5870555,"3,000.00",REVENUE,Cms Hire Ltd,,COO0073O
North Lincolnshire Council,http://data.ordnancesurvey.co.uk/id/7000000000025623,Housing Services,Other Supplies & Services,5799,05/06/2020,5859389,"1,575.00",REVENUE,Cog Community Ltd,,COG0023G
North Lincolnshire Council,http://data.ordnancesurvey.co.uk/id/7000000000025623,Adult Social Care,Pay - Agency,131,05/06/2020,5860201,"1,499.89",REVENUE,Comensura Ltd,4085767,COM0313M
North Lincolnshire Council,http://data.ordnancesurvey.co.uk/id/7000000000025623,Adult Social Care,Pay - Agency,131,05/06/2020,5860201,"14,260.78",REVENUE,Comensura Ltd,4085767,COM0313M
North Lincolnshire Council,http://data.ordnancesurvey.co.uk/id/7000000000025623,Adult Social Care,Pay - Agency,131,05/06/2020,5860209,"19,134.87",REVENUE,Comensura Ltd,4085767,COM0313M
North Lincolnshire Council,http://data.ordnancesurvey.co.uk/id/7000000000025623,Adult Social Care,Pay - Agency,131,05/06/2020,5860209,"1,140.12",REVENUE,Comensura Ltd,4085767,COM0313M
North Lincolnshire Council,http://data.ordnancesurvey.co.uk/id/7000000000025623,Adult Social Care,Pay - Agency,131,17/06/2020,5864038,"14,315.36",REVENUE,Comensura Ltd,4085767,COM0313M
North Lincolnshire Council,http://data.ordnancesurvey.co.uk/id/7000000000025623,Adult Social Care,Pay - Agency,131,17/06/2020,5864038,"21,850.64",REVENUE,Comensura Ltd,4085767,COM0313M
North Lincolnshire Council,http://data.ordnancesurvey.co.uk/id/7000000000025623,Adult Social Care,Pay - Agency,131,19/06/2020,5866548,"16,322.57",REVENUE,Comensura Ltd,4085767,COM0313M
North Lincolnshire Council,http://data.ordnancesurvey.co.uk/id/7000000000025623,Adult Social Care,Pay - Agency,131,19/06/2020,5866548,"4,698.01",REVENUE,Comensura Ltd,4085767,COM0313M
North Lincolnshire Council,http://data.ordnancesurvey.co.uk/id/7000000000025623,Adult Social Care,Pay - Agency,131,26/06/2020,5870345,"29,192.93",REVENUE,Comensura Ltd,4085767,COM0313M
North Lincolnshire Council,http://data.ordnancesurvey.co.uk/id/7000000000025623,Adult Social Care,Pay - Agency,131,26/06/2020,5870345,"8,335.13",REVENUE,Comensura Ltd,4085767,COM0313M
North Lincolnshire Council,http://data.ordnancesurvey.co.uk/id/7000000000025623,Childrens & Education,Pay - Agency,131,05/06/2020,5860201,"1,650.00",REVENUE,Comensura Ltd,4085767,COM0313M
North Lincolnshire Council,http://data.ordnancesurvey.co.uk/id/7000000000025623,Childrens & Education,Pay - Agency,131,05/06/2020,5860209,318.66,REVENUE,Comensura Ltd,4085767,COM0313M
North Lincolnshire Council,http://data.ordnancesurvey.co.uk/id/7000000000025623,Childrens & Education,Pay - Agency,131,05/06/2020,5860209,"1,342.00",REVENUE,Comensura Ltd,4085767,COM0313M
North Lincolnshire Council,http://data.ordnancesurvey.co.uk/id/7000000000025623,Childrens & Education,Pay - Agency,131,17/06/2020,5864038,"1,650.00",REVENUE,Comensura Ltd,4085767,COM0313M
North Lincolnshire Council,http://data.ordnancesurvey.co.uk/id/7000000000025623,Childrens & Education,Pay - Agency,131,17/06/2020,5864038,569.52,REVENUE,Comensura Ltd,4085767,COM0313M
North Lincolnshire Council,http://data.ordnancesurvey.co.uk/id/7000000000025623,Childrens & Education,Pay - Agency,131,19/06/2020,5866548,339,REVENUE,Comensura Ltd,4085767,COM0313M
North Lincolnshire Council,http://data.ordnancesurvey.co.uk/id/7000000000025623,Childrens & Education,Pay - Agency,131,19/06/2020,5866548,"1,650.00",REVENUE,Comensura Ltd,4085767,COM0313M
North Lincolnshire Council,http://data.ordnancesurvey.co.uk/id/7000000000025623,Childrens & Education,Pay - Agency,131,26/06/2020,5870345,339,REVENUE,Comensura Ltd,4085767,COM0313M
North Lincolnshire Council,http://data.ordnancesurvey.co.uk/id/7000000000025623,Childrens & Education,Pay - Agency,131,26/06/2020,5870345,"1,650.00",REVENUE,Comensura Ltd,4085767,COM0313M
North Lincolnshire Council,http://data.ordnancesurvey.co.uk/id/7000000000025623,Corporate And Democratic Core,Pay - Agency,131,05/06/2020,5860201,"1,925.42",REVENUE,Comensura Ltd,4085767,COM0313M
North Lincolnshire Council,http://data.ordnancesurvey.co.uk/id/7000000000025623,Corporate And Democratic Core,Pay - Agency,131,05/06/2020,5860209,"4,452.45",REVENUE,Comensura Ltd,4085767,COM0313M
North Lincolnshire Council,http://data.ordnancesurvey.co.uk/id/7000000000025623,Corporate And Democratic Core,Pay - Agency,131,17/06/2020,5864038,"2,926.27",REVENUE,Comensura Ltd,4085767,COM0313M
North Lincolnshire Council,http://data.ordnancesurvey.co.uk/id/7000000000025623,Corporate And Democratic Core,Pay - Agency,131,19/06/2020,5866548,"2,665.87",REVENUE,Comensura Ltd,4085767,COM0313M
North Lincolnshire Council,http://data.ordnancesurvey.co.uk/id/7000000000025623,Corporate And Democratic Core,Pay - Agency,131,26/06/2020,5870345,"2,748.64",REVENUE,Comensura Ltd,4085767,COM0313M
North Lincolnshire Council,http://data.ordnancesurvey.co.uk/id/7000000000025623,Environmental & Regulatory Svs,Pay - Agency,131,05/06/2020,5860201,"1,860.88",REVENUE,Comensura Ltd,4085767,COM0313M
North Lincolnshire Council,http://data.ordnancesurvey.co.uk/id/7000000000025623,Environmental & Regulatory Svs,Pay - Agency,131,05/06/2020,5860201,"1,338.42",REVENUE,Comensura Ltd,4085767,COM0313M
North Lincolnshire Council,http://data.ordnancesurvey.co.uk/id/7000000000025623,Environmental & Regulatory Svs,Pay - Agency,131,05/06/2020,5860209,"2,406.63",REVENUE,Comensura Ltd,4085767,COM0313M
North Lincolnshire Council,http://data.ordnancesurvey.co.uk/id/7000000000025623,Environmental & Regulatory Svs,Pay - Agency,131,05/06/2020,5860209,"1,631.63",REVENUE,Comensura Ltd,4085767,COM0313M
North Lincolnshire Council,http://data.ordnancesurvey.co.uk/id/7000000000025623,Environmental & Regulatory Svs,Pay - Agency,131,17/06/2020,5864038,"4,213.28",REVENUE,Comensura Ltd,4085767,COM0313M
North Lincolnshire Council,http://data.ordnancesurvey.co.uk/id/7000000000025623,Environmental & Regulatory Svs,Pay - Agency,131,17/06/2020,5864038,"1,171.12",REVENUE,Comensura Ltd,4085767,COM0313M
North Lincolnshire Council,http://data.ordnancesurvey.co.uk/id/7000000000025623,Environmental & Regulatory Svs,Pay - Agency,131,19/06/2020,5866548,590.4,REVENUE,Comensura Ltd,4085767,COM0313M
North Lincolnshire Council,http://data.ordnancesurvey.co.uk/id/7000000000025623,Environmental & Regulatory Svs,Pay - Agency,131,19/06/2020,5866548,"3,772.65",REVENUE,Comensura Ltd,4085767,COM0313M
North Lincolnshire Council,http://data.ordnancesurvey.co.uk/id/7000000000025623,Environmental & Regulatory Svs,Pay - Agency,131,26/06/2020,5870345,"3,934.81",REVENUE,Comensura Ltd,4085767,COM0313M
North Lincolnshire Council,http://data.ordnancesurvey.co.uk/id/7000000000025623,Environmental & Regulatory Svs,Pay - Agency,131,26/06/2020,5870345,"1,667.72",REVENUE,Comensura Ltd,4085767,COM0313M
North Lincolnshire Council,http://data.ordnancesurvey.co.uk/id/7000000000025623,Highways & Transport,Pay - Agency,131,05/06/2020,5860201,"1,422.04",REVENUE,Comensura Ltd,4085767,COM0313M
North Lincolnshire Council,http://data.ordnancesurvey.co.uk/id/7000000000025623,Highways & Transport,Pay - Agency,131,05/06/2020,5860209,"1,520.98",REVENUE,Comensura Ltd,4085767,COM0313M
North Lincolnshire Council,http://data.ordnancesurvey.co.uk/id/7000000000025623,Highways & Transport,Pay - Agency,131,17/06/2020,5864038,"1,415.13",REVENUE,Comensura Ltd,4085767,COM0313M
North Lincolnshire Council,http://data.ordnancesurvey.co.uk/id/7000000000025623,Highways & Transport,Pay - Agency,131,26/06/2020,5870345,"1,520.98",REVENUE,Comensura Ltd,4085767,COM0313M
North Lincolnshire Council,http://data.ordnancesurvey.co.uk/id/7000000000025623,Non Distributed Costs,Pay - Agency,131,05/06/2020,5860201,0,REVENUE,Comensura Ltd,4085767,COM0313M
North Lincolnshire Council,http://data.ordnancesurvey.co.uk/id/7000000000025623,Non Distributed Costs,Pay - Agency,131,05/06/2020,5860209,0,REVENUE,Comensura Ltd,4085767,COM0313M
North Lincolnshire Council,http://data.ordnancesurvey.co.uk/id/7000000000025623,Non Distributed Costs,Pay - Agency,131,17/06/2020,5864038,0,REVENUE,Comensura Ltd,4085767,COM0313M
North Lincolnshire Council,http://data.ordnancesurvey.co.uk/id/7000000000025623,Non Distributed Costs,Pay - Agency,131,26/06/2020,5870345,"1,520.96",REVENUE,Comensura Ltd,4085767,COM0313M
North Lincolnshire Council,http://data.ordnancesurvey.co.uk/id/7000000000025623,Public Health,Pay - Agency,131,17/06/2020,5864038,"5,263.22",REVENUE,Comensura Ltd,4085767,COM0313M
North Lincolnshire Council,http://data.ordnancesurvey.co.uk/id/7000000000025623,Public Health,Pay - Agency,131,19/06/2020,5866548,716.71,REVENUE,Comensura Ltd,4085767,COM0313M
North Lincolnshire Council,http://data.ordnancesurvey.co.uk/id/7000000000025623,Public Health,Pay - Agency,131,26/06/2020,5870345,716.71,REVENUE,Comensura Ltd,4085767,COM0313M
North Lincolnshire Council,http://data.ordnancesurvey.co.uk/id/7000000000025623,Childrens & Education,Payments To Private Orgs,6002,24/06/2020,5868537,465,REVENUE,Community Accord,,COM0298M
North Lincolnshire Council,http://data.ordnancesurvey.co.uk/id/7000000000025623,Central Services To Public,Business Support Grants,6090,10/06/2020,5863260,"10,000.00",REVENUE,Community Heritage Arts & Media Project Ltd,,CD026150
North Lincolnshire Council,http://data.ordnancesurvey.co.uk/id/7000000000025623,Central Services To Public,Business Support Grants,6090,10/06/2020,5863261,"10,000.00",REVENUE,Community Heritage Arts & Media Project Ltd,,CD026160
North Lincolnshire Council,http://data.ordnancesurvey.co.uk/id/7000000000025623,Childrens & Education,It Software-Maintenance,5053,05/06/2020,5860915,962.13,REVENUE,Conduent Parking Enforcement Sol. Ltd,2840514,SPU0004U
North Lincolnshire Council,http://data.ordnancesurvey.co.uk/id/7000000000025623,Childrens & Education,It Software-Maintenance,5053,05/06/2020,5860916,980.13,REVENUE,Conduent Parking Enforcement Sol. Ltd,2840514,SPU0004U
North Lincolnshire Council,http://data.ordnancesurvey.co.uk/id/7000000000025623,Childrens & Education,It Software-Maintenance,5053,05/06/2020,5860918,"1,004.63",REVENUE,Conduent Parking Enforcement Sol. Ltd,2840514,SPU0004U
North Lincolnshire Council,http://data.ordnancesurvey.co.uk/id/7000000000025623,Childrens & Education,It Software-Maintenance,5053,12/06/2020,5860919,"1,004.63",REVENUE,Conduent Parking Enforcement Sol. Ltd,2840514,SPU0004U
North Lincolnshire Council,http://data.ordnancesurvey.co.uk/id/7000000000025623,Highways & Transport,It Software-Purchase,5051,19/06/2020,5863725,433.08,REVENUE,Conduent Parking Enforcement Sol. Ltd,2840514,SPU0004U
North Lincolnshire Council,http://data.ordnancesurvey.co.uk/id/7000000000025623,Childrens & Education,Payments To Private Orgs,6002,10/06/2020,5862152,"8,594.63",REVENUE,Coneygarth Farm Day Nursery,,CON0013N
North Lincolnshire Council,http://data.ordnancesurvey.co.uk/id/7000000000025623,Childrens & Education,Equipment Purchase,5001,12/06/2020,5862250,"5,000.45",REVENUE,Connevans Limited,,CON0120N
North Lincolnshire Council,http://data.ordnancesurvey.co.uk/id/7000000000025623,Adult Social Care,Gas,3101,12/06/2020,5860476,274.53,REVENUE,Corona Energy Retail 4 Ltd,,COR0300R
North Lincolnshire Council,http://data.ordnancesurvey.co.uk/id/7000000000025623,Adult Social Care,Gas,3101,12/06/2020,5860478,563.66,REVENUE,Corona Energy Retail 4 Ltd,,COR0300R
North Lincolnshire Council,http://data.ordnancesurvey.co.uk/id/7000000000025623,Adult Social Care,Gas,3101,12/06/2020,5860502,290.2,REVENUE,Corona Energy Retail 4 Ltd,,COR0300R
North Lincolnshire Council,http://data.ordnancesurvey.co.uk/id/7000000000025623,Adult Social Care,Gas,3101,12/06/2020,5860503,391.21,REVENUE,Corona Energy Retail 4 Ltd,,COR0300R
North Lincolnshire Council,http://data.ordnancesurvey.co.uk/id/7000000000025623,Adult Social Care,Gas,3101,01/07/2020,5868259,303.91,REVENUE,Corona Energy Retail 4 Ltd,,COR0300R
North Lincolnshire Council,http://data.ordnancesurvey.co.uk/id/7000000000025623,Adult Social Care,Gas,3101,01/07/2020,5868261,437.33,REVENUE,Corona Energy Retail 4 Ltd,,COR0300R
North Lincolnshire Council,http://data.ordnancesurvey.co.uk/id/7000000000025623,Adult Social Care,Gas,3101,01/07/2020,5868284,223.27,REVENUE,Corona Energy Retail 4 Ltd,,COR0300R
North Lincolnshire Council,http://data.ordnancesurvey.co.uk/id/7000000000025623,Adult Social Care,Gas,3101,01/07/2020,5868285,308.37,REVENUE,Corona Energy Retail 4 Ltd,,COR0300R
North Lincolnshire Council,http://data.ordnancesurvey.co.uk/id/7000000000025623,Childrens & Education,Gas,3101,12/06/2020,5860458,480.38,REVENUE,Corona Energy Retail 4 Ltd,,COR0300R
North Lincolnshire Council,http://data.ordnancesurvey.co.uk/id/7000000000025623,Childrens & Education,Gas,3101,12/06/2020,5860505,245.71,REVENUE,Corona Energy Retail 4 Ltd,,COR0300R
North Lincolnshire Council,http://data.ordnancesurvey.co.uk/id/7000000000025623,Childrens & Education,Gas,3101,12/06/2020,5860514,302.47,REVENUE,Corona Energy Retail 4 Ltd,,COR0300R
North Lincolnshire Council,http://data.ordnancesurvey.co.uk/id/7000000000025623,Childrens & Education,Gas,3101,01/07/2020,5868202,276.25,REVENUE,Corona Energy Retail 4 Ltd,,COR0300R
North Lincolnshire Council,http://data.ordnancesurvey.co.uk/id/7000000000025623,Childrens & Education,Gas,3101,01/07/2020,5868241,332.14,REVENUE,Corona Energy Retail 4 Ltd,,COR0300R
North Lincolnshire Council,http://data.ordnancesurvey.co.uk/id/7000000000025623,Childrens & Education,Gas,3101,01/07/2020,5868295,209.46,REVENUE,Corona Energy Retail 4 Ltd,,COR0300R
North Lincolnshire Council,http://data.ordnancesurvey.co.uk/id/7000000000025623,Corporate And Democratic Core,Gas,3101,12/06/2020,5860461,"1,533.53",REVENUE,Corona Energy Retail 4 Ltd,,COR0300R
North Lincolnshire Council,http://data.ordnancesurvey.co.uk/id/7000000000025623,Corporate And Democratic Core,Gas,3101,12/06/2020,5860507,487.59,REVENUE,Corona Energy Retail 4 Ltd,,COR0300R
North Lincolnshire Council,http://data.ordnancesurvey.co.uk/id/7000000000025623,Corporate And Democratic Core,Gas,3101,01/07/2020,5868244,891.66,REVENUE,Corona Energy Retail 4 Ltd,,COR0300R
North Lincolnshire Council,http://data.ordnancesurvey.co.uk/id/7000000000025623,Corporate And Democratic Core,Gas,3101,01/07/2020,5868289,364.79,REVENUE,Corona Energy Retail 4 Ltd,,COR0300R
North Lincolnshire Council,http://data.ordnancesurvey.co.uk/id/7000000000025623,Culture & Related Services,Gas,3101,12/06/2020,5860378,336.21,REVENUE,Corona Energy Retail 4 Ltd,,COR0300R
North Lincolnshire Council,http://data.ordnancesurvey.co.uk/id/7000000000025623,Culture & Related Services,Gas,3101,12/06/2020,5860434,"1,018.59",REVENUE,Corona Energy Retail 4 Ltd,,COR0300R
North Lincolnshire Council,http://data.ordnancesurvey.co.uk/id/7000000000025623,Culture & Related Services,Gas,3101,12/06/2020,5860452,"2,068.71",REVENUE,Corona Energy Retail 4 Ltd,,COR0300R
North Lincolnshire Council,http://data.ordnancesurvey.co.uk/id/7000000000025623,Culture & Related Services,Gas,3101,12/06/2020,5860455,"1,012.53",REVENUE,Corona Energy Retail 4 Ltd,,COR0300R
North Lincolnshire Council,http://data.ordnancesurvey.co.uk/id/7000000000025623,Culture & Related Services,Gas,3101,12/06/2020,5860483,328.51,REVENUE,Corona Energy Retail 4 Ltd,,COR0300R
North Lincolnshire Council,http://data.ordnancesurvey.co.uk/id/7000000000025623,Culture & Related Services,Gas,3101,12/06/2020,5860494,384.26,REVENUE,Corona Energy Retail 4 Ltd,,COR0300R
North Lincolnshire Council,http://data.ordnancesurvey.co.uk/id/7000000000025623,Culture & Related Services,Gas,3101,12/06/2020,5860510,"1,625.89",REVENUE,Corona Energy Retail 4 Ltd,,COR0300R
North Lincolnshire Council,http://data.ordnancesurvey.co.uk/id/7000000000025623,Culture & Related Services,Gas,3101,12/06/2020,5860517,288.49,REVENUE,Corona Energy Retail 4 Ltd,,COR0300R
North Lincolnshire Council,http://data.ordnancesurvey.co.uk/id/7000000000025623,Culture & Related Services,Gas,3101,01/07/2020,5868206,233.37,REVENUE,Corona Energy Retail 4 Ltd,,COR0300R
North Lincolnshire Council,http://data.ordnancesurvey.co.uk/id/7000000000025623,Culture & Related Services,Gas,3101,01/07/2020,5868217,916.59,REVENUE,Corona Energy Retail 4 Ltd,,COR0300R
North Lincolnshire Council,http://data.ordnancesurvey.co.uk/id/7000000000025623,Culture & Related Services,Gas,3101,01/07/2020,5868235,"1,634.47",REVENUE,Corona Energy Retail 4 Ltd,,COR0300R
North Lincolnshire Council,http://data.ordnancesurvey.co.uk/id/7000000000025623,Culture & Related Services,Gas,3101,01/07/2020,5868266,233.49,REVENUE,Corona Energy Retail 4 Ltd,,COR0300R
North Lincolnshire Council,http://data.ordnancesurvey.co.uk/id/7000000000025623,Culture & Related Services,Gas,3101,01/07/2020,5868290,546.92,REVENUE,Corona Energy Retail 4 Ltd,,COR0300R
North Lincolnshire Council,http://data.ordnancesurvey.co.uk/id/7000000000025623,Environmental & Regulatory Svs,Gas,3101,12/06/2020,5860500,317.51,REVENUE,Corona Energy Retail 4 Ltd,,COR0300R
North Lincolnshire Council,http://data.ordnancesurvey.co.uk/id/7000000000025623,Environmental & Regulatory Svs,Gas,3101,12/06/2020,5860511,303.25,REVENUE,Corona Energy Retail 4 Ltd,,COR0300R
North Lincolnshire Council,http://data.ordnancesurvey.co.uk/id/7000000000025623,Environmental & Regulatory Svs,Gas,3101,12/06/2020,5860512,"1,929.71",REVENUE,Corona Energy Retail 4 Ltd,,COR0300R
North Lincolnshire Council,http://data.ordnancesurvey.co.uk/id/7000000000025623,Environmental & Regulatory Svs,Gas,3101,01/07/2020,5868291,210.85,REVENUE,Corona Energy Retail 4 Ltd,,COR0300R
North Lincolnshire Council,http://data.ordnancesurvey.co.uk/id/7000000000025623,Environmental & Regulatory Svs,Gas,3101,01/07/2020,5868293,"1,846.88",REVENUE,Corona Energy Retail 4 Ltd,,COR0300R
North Lincolnshire Council,http://data.ordnancesurvey.co.uk/id/7000000000025623,Fin&Inv I&E,Gas,3101,12/06/2020,5860440,210.71,REVENUE,Corona Energy Retail 4 Ltd,,COR0300R
North Lincolnshire Council,http://data.ordnancesurvey.co.uk/id/7000000000025623,Fin&Inv I&E,Gas,3101,12/06/2020,5860456,252.06,REVENUE,Corona Energy Retail 4 Ltd,,COR0300R
North Lincolnshire Council,http://data.ordnancesurvey.co.uk/id/7000000000025623,Highways & Transport,Gas,3101,12/06/2020,5860490,366.25,REVENUE,Corona Energy Retail 4 Ltd,,COR0300R
North Lincolnshire Council,http://data.ordnancesurvey.co.uk/id/7000000000025623,Highways & Transport,Gas,3101,01/07/2020,5868273,299.22,REVENUE,Corona Energy Retail 4 Ltd,,COR0300R
North Lincolnshire Council,http://data.ordnancesurvey.co.uk/id/7000000000025623,Non Distributed Costs,Gas,3101,12/06/2020,5860489,337.46,REVENUE,Corona Energy Retail 4 Ltd,,COR0300R
North Lincolnshire Council,http://data.ordnancesurvey.co.uk/id/7000000000025623,Non Distributed Costs,Gas,3101,12/06/2020,5860496,677.22,REVENUE,Corona Energy Retail 4 Ltd,,COR0300R
North Lincolnshire Council,http://data.ordnancesurvey.co.uk/id/7000000000025623,Non Distributed Costs,Gas,3101,12/06/2020,5860516,247.37,REVENUE,Corona Energy Retail 4 Ltd,,COR0300R
North Lincolnshire Council,http://data.ordnancesurvey.co.uk/id/7000000000025623,Non Distributed Costs,Gas,3101,01/07/2020,5868272,235.85,REVENUE,Corona Energy Retail 4 Ltd,,COR0300R
North Lincolnshire Council,http://data.ordnancesurvey.co.uk/id/7000000000025623,Non Distributed Costs,Gas,3101,01/07/2020,5868278,463.48,REVENUE,Corona Energy Retail 4 Ltd,,COR0300R
North Lincolnshire Council,http://data.ordnancesurvey.co.uk/id/7000000000025623,Childrens & Education,Client Related Costs,5534,24/06/2020,5868381,"1,285.50",REVENUE,Country Kids Nursery,,COU0312U
North Lincolnshire Council,http://data.ordnancesurvey.co.uk/id/7000000000025623,Central Services To Public,Equipment Purchase,5001,17/06/2020,5860944,"18,000.00",REVENUE,Countrywide Healthcare Supplies Ltd,3209242,COU0041U
North Lincolnshire Council,http://data.ordnancesurvey.co.uk/id/7000000000025623,Central Services To Public,Equipment Purchase,5001,17/06/2020,5865758,"-18,000.00",REVENUE,Countrywide Healthcare Supplies Ltd,3209242,COU0041U
North Lincolnshire Council,http://data.ordnancesurvey.co.uk/id/7000000000025623,Central Services To Public,Equipment Purchase,5001,18/06/2020,5866363,"18,000.00",REVENUE,Countrywide Healthcare Supplies Ltd,3209242,COU0041U
North Lincolnshire Council,http://data.ordnancesurvey.co.uk/id/7000000000025623,Central Services To Public,Business Support Grants,6090,12/06/2020,5864398,"10,000.00",REVENUE,Cove Farm,,CD026430
North Lincolnshire Council,http://data.ordnancesurvey.co.uk/id/7000000000025623,Central Services To Public,Business Support Grants,6090,10/06/2020,5863256,"10,000.00",REVENUE,C Prince T/A Longbow Properties,,CD026110
North Lincolnshire Council,http://data.ordnancesurvey.co.uk/id/7000000000025623,Adult Social Care,Payments To Private Orgs,6002,05/06/2020,5860145,944.45,REVENUE,Creative Support,,CRE0144E
North Lincolnshire Council,http://data.ordnancesurvey.co.uk/id/7000000000025623,Adult Social Care,Payments To Private Orgs,6002,05/06/2020,5860146,"108,238.99",REVENUE,Creative Support,,CRE0144E
North Lincolnshire Council,http://data.ordnancesurvey.co.uk/id/7000000000025623,Adult Social Care,Payments To Private Orgs,6002,05/06/2020,5860146,"1,418.68",REVENUE,Creative Support,,CRE0144E
North Lincolnshire Council,http://data.ordnancesurvey.co.uk/id/7000000000025623,Adult Social Care,Payments To Private Orgs,6002,12/06/2020,5864022,"45,548.89",REVENUE,Creative Support,,CRE0144E
North Lincolnshire Council,http://data.ordnancesurvey.co.uk/id/7000000000025623,Adult Social Care,Payments To Private Orgs,6002,03/06/2020,5860159,"4,338.88",REVENUE,Creative Support Ltd,,ISF0013F
North Lincolnshire Council,http://data.ordnancesurvey.co.uk/id/7000000000025623,Environmental & Regulatory Svs,Other Premises Costs,3390,24/06/2020,5866738,215,REVENUE,Crestwood Environmental Ltd,6544898,CRE0250E
North Lincolnshire Council,http://data.ordnancesurvey.co.uk/id/7000000000025623,Central Services To Public,Business Support Grants,6090,10/06/2020,5863258,"10,000.00",REVENUE,Crooked Billet,,CD026130
North Lincolnshire Council,http://data.ordnancesurvey.co.uk/id/7000000000025623,Adult Social Care,Fees & Charges Income,9002,24/06/2020,5867416,-122.56,REVENUE,Crosby Brokerage,,DP31913
North Lincolnshire Council,http://data.ordnancesurvey.co.uk/id/7000000000025623,Childrens & Education,Home To School Transport,4201,05/06/2020,5860815,"1,189.00",REVENUE,Crosby Cabz,,CRO0242O
North Lincolnshire Council,http://data.ordnancesurvey.co.uk/id/7000000000025623,Childrens & Education,Home To School Transport,4201,05/06/2020,5860817,"1,311.00",REVENUE,Crosby Cabz,,CRO0242O
North Lincolnshire Council,http://data.ordnancesurvey.co.uk/id/7000000000025623,Childrens & Education,Home To School Transport,4201,05/06/2020,5860837,675,REVENUE,Crosby Cabz,,CRO0242O
North Lincolnshire Council,http://data.ordnancesurvey.co.uk/id/7000000000025623,Childrens & Education,Home To School Transport,4201,05/06/2020,5860840,810,REVENUE,Crosby Cabz,,CRO0242O
North Lincolnshire Council,http://data.ordnancesurvey.co.uk/id/7000000000025623,Childrens & Education,Home To School Transport,4201,05/06/2020,5860849,540,REVENUE,Crosby Cabz,,CRO0242O
North Lincolnshire Council,http://data.ordnancesurvey.co.uk/id/7000000000025623,Childrens & Education,Home To School Transport,4201,05/06/2020,5860850,"1,350.00",REVENUE,Crosby Cabz,,CRO0242O
North Lincolnshire Council,http://data.ordnancesurvey.co.uk/id/7000000000025623,Childrens & Education,Home To School Transport,4201,05/06/2020,5860869,900,REVENUE,Crosby Cabz,,CRO0242O
North Lincolnshire Council,http://data.ordnancesurvey.co.uk/id/7000000000025623,Childrens & Education,Home To School Transport,4201,05/06/2020,5860870,585,REVENUE,Crosby Cabz,,CRO0242O
North Lincolnshire Council,http://data.ordnancesurvey.co.uk/id/7000000000025623,Childrens & Education,Home To School Transport,4201,05/06/2020,5860897,702,REVENUE,Crosby Cabz,,CRO0242O
North Lincolnshire Council,http://data.ordnancesurvey.co.uk/id/7000000000025623,Childrens & Education,Home To School Transport,4201,05/06/2020,5860900,540,REVENUE,Crosby Cabz,,CRO0242O
North Lincolnshire Council,http://data.ordnancesurvey.co.uk/id/7000000000025623,Childrens & Education,Home To School Transport,4201,05/06/2020,5860903,630,REVENUE,Crosby Cabz,,CRO0242O
North Lincolnshire Council,http://data.ordnancesurvey.co.uk/id/7000000000025623,Childrens & Education,Home To School Transport,4201,05/06/2020,5860905,742.5,REVENUE,Crosby Cabz,,CRO0242O
North Lincolnshire Council,http://data.ordnancesurvey.co.uk/id/7000000000025623,Childrens & Education,Home To School Transport,4201,05/06/2020,5860910,568.8,REVENUE,Crosby Cabz,,CRO0242O
North Lincolnshire Council,http://data.ordnancesurvey.co.uk/id/7000000000025623,Culture & Related Services,Other Supplies & Services,5799,26/06/2020,5870292,"16,737.00",REVENUE,Crowle And Ealand Town Council,,CRO0250O
North Lincolnshire Council,http://data.ordnancesurvey.co.uk/id/7000000000025623,Highways & Transport,Other Supplies & Services,5799,26/06/2020,5870293,905,REVENUE,Crowle And Ealand Town Council,,CRO0250O
North Lincolnshire Council,http://data.ordnancesurvey.co.uk/id/7000000000025623,Planning Services,Payments To Voluntary Orgs,6001,05/06/2020,5860320,"13,500.00",REVENUE,Crowle Boxing Club,,CD018270
North Lincolnshire Council,http://data.ordnancesurvey.co.uk/id/7000000000025623,Culture & Related Services,Other Supplies & Services,5799,24/06/2020,5866732,"1,570.46",REVENUE,Crowle Peatland Railway,,CRO0463O
North Lincolnshire Council,http://data.ordnancesurvey.co.uk/id/7000000000025623,Culture & Related Services,Other Supplies & Services,5799,24/06/2020,5868411,270.04,REVENUE,Crowle Peatland Railway,,CRO0463O
North Lincolnshire Council,http://data.ordnancesurvey.co.uk/id/7000000000025623,Central Services To Public,Business Support Grants,6090,17/06/2020,5866116,"10,000.00",REVENUE,"Crowle Peatland Railway, Peat Works,",,CD026820
North Lincolnshire Council,http://data.ordnancesurvey.co.uk/id/7000000000025623,Childrens & Education,Payments To Private Orgs,6002,10/06/2020,5862153,"21,425.35",REVENUE,Crowle Primary Academy,,CRO0346O
North Lincolnshire Council,http://data.ordnancesurvey.co.uk/id/7000000000025623,Childrens & Education,Payments To Private Orgs,6002,24/06/2020,5868530,"3,083.33",REVENUE,Crowle Primary Academy,,CRO0346O
North Lincolnshire Council,http://data.ordnancesurvey.co.uk/id/7000000000025623,Childrens & Education,Payments To Private Orgs,6002,01/07/2020,5871751,630,REVENUE,Crowle Primary Academy,,CRO0346O
North Lincolnshire Council,http://data.ordnancesurvey.co.uk/id/7000000000025623,Childrens & Education,Payments To Private Orgs,6002,01/07/2020,5871752,630,REVENUE,Crowle Primary Academy,,CRO0346O
North Lincolnshire Council,http://data.ordnancesurvey.co.uk/id/7000000000025623,Adult Social Care,Repair & Maintenance Costs,3000,24/06/2020,5866779,129,REVENUE,C S L (Dualcom) Ltd,3155883,CSL0003L
North Lincolnshire Council,http://data.ordnancesurvey.co.uk/id/7000000000025623,Central Services To Public,Repair & Maintenance Costs,3000,03/06/2020,5859491,0,REVENUE,C S L (Dualcom) Ltd,3155883,CSL0003L
North Lincolnshire Council,http://data.ordnancesurvey.co.uk/id/7000000000025623,Central Services To Public,Repair & Maintenance Costs,3000,24/06/2020,5866779,0,REVENUE,C S L (Dualcom) Ltd,3155883,CSL0003L
North Lincolnshire Council,http://data.ordnancesurvey.co.uk/id/7000000000025623,Childrens & Education,Repair & Maintenance Costs,3000,03/06/2020,5859491,129,REVENUE,C S L (Dualcom) Ltd,3155883,CSL0003L
North Lincolnshire Council,http://data.ordnancesurvey.co.uk/id/7000000000025623,Childrens & Education,Repair & Maintenance Costs,3000,03/06/2020,5859491,129,REVENUE,C S L (Dualcom) Ltd,3155883,CSL0003L
North Lincolnshire Council,http://data.ordnancesurvey.co.uk/id/7000000000025623,Childrens & Education,Repair & Maintenance Costs,3000,24/06/2020,5866779,387,REVENUE,C S L (Dualcom) Ltd,3155883,CSL0003L
North Lincolnshire Council,http://data.ordnancesurvey.co.uk/id/7000000000025623,Childrens & Education,Repair & Maintenance Costs,3000,24/06/2020,5866779,318,REVENUE,C S L (Dualcom) Ltd,3155883,CSL0003L
North Lincolnshire Council,http://data.ordnancesurvey.co.uk/id/7000000000025623,Corporate And Democratic Core,Repair & Maintenance Costs,3000,03/06/2020,5859491,0,REVENUE,C S L (Dualcom) Ltd,3155883,CSL0003L
North Lincolnshire Council,http://data.ordnancesurvey.co.uk/id/7000000000025623,Corporate And Democratic Core,Repair & Maintenance Costs,3000,24/06/2020,5866779,129,REVENUE,C S L (Dualcom) Ltd,3155883,CSL0003L
North Lincolnshire Council,http://data.ordnancesurvey.co.uk/id/7000000000025623,Culture & Related Services,Repair & Maintenance Costs,3000,03/06/2020,5859491,387,REVENUE,C S L (Dualcom) Ltd,3155883,CSL0003L
North Lincolnshire Council,http://data.ordnancesurvey.co.uk/id/7000000000025623,Culture & Related Services,Repair & Maintenance Costs,3000,24/06/2020,5866779,903,REVENUE,C S L (Dualcom) Ltd,3155883,CSL0003L
North Lincolnshire Council,http://data.ordnancesurvey.co.uk/id/7000000000025623,Fin&Inv I&E,Repair & Maintenance Costs,3000,24/06/2020,5866779,129,REVENUE,C S L (Dualcom) Ltd,3155883,CSL0003L
North Lincolnshire Council,http://data.ordnancesurvey.co.uk/id/7000000000025623,Non Distributed Costs,Repair & Maintenance Costs,3000,03/06/2020,5859491,258,REVENUE,C S L (Dualcom) Ltd,3155883,CSL0003L
North Lincolnshire Council,http://data.ordnancesurvey.co.uk/id/7000000000025623,Highways & Transport,Equipment Maint.& Repair,5003,17/06/2020,5865462,"2,318.25",REVENUE,Ctrack Ltd,4643588,CTR0001R
North Lincolnshire Council,http://data.ordnancesurvey.co.uk/id/7000000000025623,Highways & Transport,Other Vehicle Costs,4005,01/07/2020,5870557,"2,277.00",REVENUE,Ctrack Ltd,4643588,CTR0001R
North Lincolnshire Council,http://data.ordnancesurvey.co.uk/id/7000000000025623,Central Services To Public,Business Support Grants,6090,12/06/2020,5864408,"10,000.00",REVENUE,Cts Motorsport Ltd,,CD026530
North Lincolnshire Council,http://data.ordnancesurvey.co.uk/id/7000000000025623,Central Services To Public,Business Support Grants,6090,11/06/2020,5863812,"10,000.00",REVENUE,Cube Fitted Furniture,,CD026230
North Lincolnshire Council,http://data.ordnancesurvey.co.uk/id/7000000000025623,Central Services To Public,Business Support Grants,6090,10/06/2020,5863245,"10,000.00",REVENUE,Cw Bell,,CD026000
North Lincolnshire Council,http://data.ordnancesurvey.co.uk/id/7000000000025623,Childrens & Education,Payments To Private Orgs,6002,03/06/2020,5859532,"2,926.00",REVENUE,Cygnet (Nw) Ltd,4059699,CYG0006G
North Lincolnshire Council,http://data.ordnancesurvey.co.uk/id/7000000000025623,Central Services To Public,Business Support Grants,6090,12/06/2020,5864394,"10,000.00",REVENUE,David Alcock,,CD026390
North Lincolnshire Council,http://data.ordnancesurvey.co.uk/id/7000000000025623,Central Services To Public,Business Support Grants,6090,24/06/2020,5869499,"10,000.00",REVENUE,David Sewell,,CD027010
North Lincolnshire Council,http://data.ordnancesurvey.co.uk/id/7000000000025623,Culture & Related Services,Repair & Maintenance Costs,3000,03/06/2020,5858260,471,REVENUE,Delta Security Systems Ltd,6373017,DEL0004L
North Lincolnshire Council,http://data.ordnancesurvey.co.uk/id/7000000000025623,Culture & Related Services,Repair & Maintenance Costs,3000,03/06/2020,5858269,471,REVENUE,Delta Security Systems Ltd,6373017,DEL0004L
North Lincolnshire Council,http://data.ordnancesurvey.co.uk/id/7000000000025623,Childrens & Education,Payments To Private Orgs,6002,03/06/2020,5859527,"11,383.33",REVENUE,Demeter House (England) Ltd,5774107,DEM0021M
North Lincolnshire Council,http://data.ordnancesurvey.co.uk/id/7000000000025623,Childrens & Education,Payments To Private Orgs,6002,03/06/2020,5859528,"16,853.33",REVENUE,Demeter House (England) Ltd,5774107,DEM0021M
North Lincolnshire Council,http://data.ordnancesurvey.co.uk/id/7000000000025623,Childrens & Education,Payments To Private Orgs,6002,10/06/2020,5862154,"4,481.40",REVENUE,Demeter House (England) Ltd,5774107,DEM0021M
North Lincolnshire Council,http://data.ordnancesurvey.co.uk/id/7000000000025623,Childrens & Education,Payments To Private Orgs,6002,24/06/2020,5868533,"8,691.67",REVENUE,Demeter House (England) Ltd,5774107,DEM0021M
North Lincolnshire Council,http://data.ordnancesurvey.co.uk/id/7000000000025623,Central Services To Public,Business Support Grants,6090,03/06/2020,5860249,"10,000.00",REVENUE,Diamond Jubilee Town Hall,,CD025670
North Lincolnshire Council,http://data.ordnancesurvey.co.uk/id/7000000000025623,Central Services To Public,Equipment Purchase,5001,02/06/2020,5859678,"49,875.00",REVENUE,Digital Exchange,3098563,DIG0074G
North Lincolnshire Council,http://data.ordnancesurvey.co.uk/id/7000000000025623,Central Services To Public,Equipment Purchase,5001,02/06/2020,5859685,"21,375.00",REVENUE,Digital Exchange,3098563,DIG0074G
North Lincolnshire Council,http://data.ordnancesurvey.co.uk/id/7000000000025623,Central Services To Public,Equipment Purchase,5001,02/06/2020,5859689,"5,530.00",REVENUE,Digital Exchange,3098563,DIG0074G
North Lincolnshire Council,http://data.ordnancesurvey.co.uk/id/7000000000025623,Corporate And Democratic Core,Other Professional Fees,5829,17/06/2020,5864557,"9,882.00",REVENUE,Digital First Solutions Ltd,9715905,DFS0003S
North Lincolnshire Council,http://data.ordnancesurvey.co.uk/id/7000000000025623,Environmental & Regulatory Svs,Materials,5004,10/06/2020,5862432,"1,230.80",REVENUE,Direct Commercial Veh.Serv.Ltd,2267244,DIR0001R
North Lincolnshire Council,http://data.ordnancesurvey.co.uk/id/7000000000025623,Fin&Inv I&E,Electricity,3102,19/06/2020,5866598,"2,916.85",REVENUE,Directions Dance Cic,,DIR0120R
North Lincolnshire Council,http://data.ordnancesurvey.co.uk/id/7000000000025623,Fin&Inv I&E,Repair & Maintenance Costs,3000,08/07/2020,5869787,375,REVENUE,Djm Consultancy,4539626,DJM0002M
North Lincolnshire Council,http://data.ordnancesurvey.co.uk/id/7000000000025623,Childrens & Education,Payments To Private Orgs,6002,10/06/2020,5862178,"2,013.75",REVENUE,D Johns,,JOH0680H
North Lincolnshire Council,http://data.ordnancesurvey.co.uk/id/7000000000025623,Central Services To Public,Business Support Grants,6090,02/06/2020,5859683,"25,000.00",REVENUE,Djs Retail Ltd,,DJS0022S
North Lincolnshire Council,http://data.ordnancesurvey.co.uk/id/7000000000025623,Childrens & Education,Home To School Transport,4201,10/06/2020,5862331,"4,860.00",REVENUE,D J Taxis Scunthorpe,,DJT0001T
North Lincolnshire Council,http://data.ordnancesurvey.co.uk/id/7000000000025623,Childrens & Education,Payments To Private Orgs,6002,03/06/2020,5859680,"27,266.67",REVENUE,Doncaster Deaf Trust,,DON0228N
North Lincolnshire Council,http://data.ordnancesurvey.co.uk/id/7000000000025623,Childrens & Education,Payments To Private Orgs,6002,03/06/2020,5859682,"8,487.00",REVENUE,Doncaster Deaf Trust,,DON0228N
North Lincolnshire Council,http://data.ordnancesurvey.co.uk/id/7000000000025623,Childrens & Education,Payments To Private Orgs,6002,10/06/2020,5862155,731.46,REVENUE,Donna Ducker Childminding,,DUC0041C
North Lincolnshire Council,http://data.ordnancesurvey.co.uk/id/7000000000025623,Childrens & Education,Payments To Private Orgs,6002,24/06/2020,5867074,"7,513.32",REVENUE,Do-Re-Mi Nursery,,WIN0044N
North Lincolnshire Council,http://data.ordnancesurvey.co.uk/id/7000000000025623,Childrens & Education,Payments To Private Orgs,6002,17/06/2020,5865605,"19,999.34",REVENUE,Dove Adolescent Care,,DOV0001V
North Lincolnshire Council,http://data.ordnancesurvey.co.uk/id/7000000000025623,Adult Social Care,Repair & Maintenance Costs,3000,12/06/2020,5863797,240,REVENUE,Drainmaster (Uk) Ltd,3802760,DRA0028A
North Lincolnshire Council,http://data.ordnancesurvey.co.uk/id/7000000000025623,Highways & Transport,Materials,5004,01/07/2020,5870559,763.74,REVENUE,Draytons Auto Centre,,DRA0300A
North Lincolnshire Council,http://data.ordnancesurvey.co.uk/id/7000000000025623,Childrens & Education,Legal Fees,5823,26/06/2020,5869789,363,REVENUE,Dr F R J Hinde,,HIN0169N
North Lincolnshire Council,http://data.ordnancesurvey.co.uk/id/7000000000025623,Adult Social Care Capital,Other Costs,A085,05/06/2020,5860127,754,CAPITAL,Drive Devilbiss Healthcare Limited,4301005,DRI0008I
North Lincolnshire Council,http://data.ordnancesurvey.co.uk/id/7000000000025623,Adult Social Care Capital,Other Costs,A085,10/06/2020,5860126,627.3,CAPITAL,Drive Devilbiss Healthcare Limited,4301005,DRI0008I
North Lincolnshire Council,http://data.ordnancesurvey.co.uk/id/7000000000025623,Adult Social Care Capital,Other Costs,A085,24/06/2020,5867065,392.4,CAPITAL,Drive Devilbiss Healthcare Limited,4301005,DRI0008I
North Lincolnshire Council,http://data.ordnancesurvey.co.uk/id/7000000000025623,Adult Social Care Capital,Other Costs,A085,01/07/2020,5867063,705,CAPITAL,Drive Devilbiss Healthcare Limited,4301005,DRI0008I
North Lincolnshire Council,http://data.ordnancesurvey.co.uk/id/7000000000025623,Highways & Transport,Other Supplies & Services,5799,10/06/2020,5862433,257.4,REVENUE,Drivercheck,SC292381,DRI0078I
North Lincolnshire Council,http://data.ordnancesurvey.co.uk/id/7000000000025623,Adult Social Care,Other Professional Fees,5829,12/06/2020,5861028,721.6,REVENUE,Dr Steven Hopkins,,HOP0053P
North Lincolnshire Council,http://data.ordnancesurvey.co.uk/id/7000000000025623,Adult Social Care,Other Professional Fees,5829,19/06/2020,5865412,729.2,REVENUE,Dr Steven Hopkins,,HOP0053P
North Lincolnshire Council,http://data.ordnancesurvey.co.uk/id/7000000000025623,Environmental & Regulatory Svs,Other Professional Fees,5829,10/06/2020,5861046,"2,520.00",REVENUE,Dr T Mahmood Anwar,,MAH0003H
North Lincolnshire Council,http://data.ordnancesurvey.co.uk/id/7000000000025623,Highways & Transport,Equipment Purchase,5001,17/06/2020,5859420,864,REVENUE,Duro Yokota Limited,,DUR0010R
North Lincolnshire Council,http://data.ordnancesurvey.co.uk/id/7000000000025623,Central Services To Public,Business Support Grants,6090,12/06/2020,5864404,"10,000.00",REVENUE,Eadens Ltd,,CD026490
North Lincolnshire Council,http://data.ordnancesurvey.co.uk/id/7000000000025623,Culture & Related Services,Other Supplies & Services,5799,05/06/2020,5859814,"18,750.00",REVENUE,E A Littlewood,,LIT0008T
North Lincolnshire Council,http://data.ordnancesurvey.co.uk/id/7000000000025623,Central Services To Public,Business Support Grants,6090,03/06/2020,5860234,"10,000.00",REVENUE,East Butterwick Recreation Ground Committee,,CD025520
North Lincolnshire Council,http://data.ordnancesurvey.co.uk/id/7000000000025623,Central Services To Public,Business Support Grants,6090,17/06/2020,5866127,"10,000.00",REVENUE,Eastoft Community Welfare Association,,CD026930
North Lincolnshire Council,http://data.ordnancesurvey.co.uk/id/7000000000025623,Childrens & Education,Payments To Private Orgs,6002,10/06/2020,5862156,392.85,REVENUE,Eastoft Little Legs,,EAS0282S
North Lincolnshire Council,http://data.ordnancesurvey.co.uk/id/7000000000025623,Culture & Related Services,Other Supplies & Services,5799,26/06/2020,5870294,"1,276.00",REVENUE,Eastoft Parish Council,,EAS0124S
North Lincolnshire Council,http://data.ordnancesurvey.co.uk/id/7000000000025623,Planning Services,Payments To Voluntary Orgs,6001,17/06/2020,5865636,300,REVENUE,Eastoft Parish Council,,EAS0124S
North Lincolnshire Council,http://data.ordnancesurvey.co.uk/id/7000000000025623,Central Services To Public,Gen Office Exp (Incl Postage),5603,12/06/2020,5863728,"1,026.32",REVENUE,East Riding Of Yorkshire Council,,EAS0126S
North Lincolnshire Council,http://data.ordnancesurvey.co.uk/id/7000000000025623,Childrens & Education,Other Supplies & Services,5799,26/06/2020,5867108,"2,000.00",REVENUE,East Riding Of Yorkshire Council,,EAS0012S
North Lincolnshire Council,http://data.ordnancesurvey.co.uk/id/7000000000025623,Childrens & Education,Payments To Other La'S,6003,24/06/2020,5868526,"6,786.54",REVENUE,East Riding Of Yorkshire Council,,EAS0012S
North Lincolnshire Council,http://data.ordnancesurvey.co.uk/id/7000000000025623,Childrens & Education,Payments To Private Orgs,6002,01/07/2020,5871753,630,REVENUE,East Riding Of Yorkshire Council,,EAS0126S
North Lincolnshire Council,http://data.ordnancesurvey.co.uk/id/7000000000025623,Corporate And Democratic Core,Payments To Private Orgs,6002,05/06/2020,5860206,"25,158.53",REVENUE,East Riding Of Yorkshire Council,,EAS0126S
North Lincolnshire Council,http://data.ordnancesurvey.co.uk/id/7000000000025623,Highways & Transport,Concessionary Fares,6010,05/06/2020,5859771,"4,000.00",REVENUE,East Yorkshire Motor Services Ltd,216628,EAS0120S
North Lincolnshire Council,http://data.ordnancesurvey.co.uk/id/7000000000025623,Central Services To Public,Business Support Grants,6090,10/06/2020,5863259,"10,000.00",REVENUE,Eclipse World Limited,,CD026140
North Lincolnshire Council,http://data.ordnancesurvey.co.uk/id/7000000000025623,Childrens & Education,Payments To Private Orgs,6002,01/07/2020,5871754,630,REVENUE,Edith Moorhouse Primary School,7966500,EDI0010I
North Lincolnshire Council,http://data.ordnancesurvey.co.uk/id/7000000000025623,Childrens & Education,Course Fees/Training,2002,05/06/2020,5860215,"1,000.00",REVENUE,Eileen Murphy Consultants,,MUR0043R
North Lincolnshire Council,http://data.ordnancesurvey.co.uk/id/7000000000025623,Central Services To Public,Business Support Grants,6090,03/06/2020,5860272,"10,000.00",REVENUE,Elegance Antiques,,CD025900
North Lincolnshire Council,http://data.ordnancesurvey.co.uk/id/7000000000025623,Adult Social Care,Payments To Private Orgs,6002,03/06/2020,5860157,134.4,REVENUE,Elite Care Solutions Ltd,,ISF0009F
North Lincolnshire Council,http://data.ordnancesurvey.co.uk/id/7000000000025623,Adult Social Care,Payments To Private Orgs,6002,03/06/2020,5860157,"2,447.20",REVENUE,Elite Care Solutions Ltd,,ISF0009F
North Lincolnshire Council,http://data.ordnancesurvey.co.uk/id/7000000000025623,Environmental & Regulatory Svs,Other Professional Fees,5829,24/06/2020,5866747,"2,822.68",REVENUE,Ellgia Scunthorpe,860123,BEL0170L
North Lincolnshire Council,http://data.ordnancesurvey.co.uk/id/7000000000025623,Environmental & Regulatory Svs,Other Professional Fees,5829,24/06/2020,5866758,"2,298.12",REVENUE,Ellgia Scunthorpe,860123,BEL0170L
North Lincolnshire Council,http://data.ordnancesurvey.co.uk/id/7000000000025623,Environmental & Regulatory Svs,Payments To Private Orgs,6002,24/06/2020,5866744,"13,117.08",REVENUE,Ellgia Scunthorpe,860123,BEL0170L
North Lincolnshire Council,http://data.ordnancesurvey.co.uk/id/7000000000025623,Environmental & Regulatory Svs,Payments To Private Orgs,6002,24/06/2020,5866769,275.9,REVENUE,Ellgia Scunthorpe,860123,BEL0170L
North Lincolnshire Council,http://data.ordnancesurvey.co.uk/id/7000000000025623,Environmental & Regulatory Svs,Payments To Private Orgs,6002,24/06/2020,5866772,"1,502.64",REVENUE,Ellgia Scunthorpe,860123,BEL0170L
North Lincolnshire Council,http://data.ordnancesurvey.co.uk/id/7000000000025623,Environmental & Regulatory Svs,Payments To Private Orgs,6002,01/07/2020,5866743,450,REVENUE,Ellgia Scunthorpe,860123,BEL0170L
North Lincolnshire Council,http://data.ordnancesurvey.co.uk/id/7000000000025623,Environmental & Regulatory Svs,Payments To Private Orgs,6002,01/07/2020,5870236,"16,318.96",REVENUE,Ellgia Scunthorpe,860123,BEL0170L
North Lincolnshire Council,http://data.ordnancesurvey.co.uk/id/7000000000025623,Environmental & Regulatory Svs,Payments To Private Orgs,6002,01/07/2020,5870708,999.4,REVENUE,Ellgia Scunthorpe,860123,BEL0170L
North Lincolnshire Council,http://data.ordnancesurvey.co.uk/id/7000000000025623,Environmental & Regulatory Svs,Payments To Private Orgs,6002,01/07/2020,5870710,599.64,REVENUE,Ellgia Scunthorpe,860123,BEL0170L
North Lincolnshire Council,http://data.ordnancesurvey.co.uk/id/7000000000025623,Culture & Related Services,Other Supplies & Services,5799,26/06/2020,5870296,"3,036.00",REVENUE,Elsham Parish Council,,ELS0002S
North Lincolnshire Council,http://data.ordnancesurvey.co.uk/id/7000000000025623,Corporate And Democratic Core,"Licenses, Subs & Memberships",5510,24/06/2020,5866284,"2,539.92",REVENUE,Emap Publishing Ltd,,EMA0020A
North Lincolnshire Council,http://data.ordnancesurvey.co.uk/id/7000000000025623,Adult Social Care,Payments To Private Orgs,6002,03/06/2020,5860162,"1,675.00",REVENUE,Emerald Care Services (North Lincs) Ltd,,ISF0026F
North Lincolnshire Council,http://data.ordnancesurvey.co.uk/id/7000000000025623,Adult Social Care,Payments To Private Orgs,6002,05/06/2020,5860150,557.9,REVENUE,Emerald Care Services (North Lincs) Ltd,8136830,EME0032E
North Lincolnshire Council,http://data.ordnancesurvey.co.uk/id/7000000000025623,Adult Social Care,Payments To Private Orgs,6002,05/06/2020,5860151,"40,889.46",REVENUE,Emerald Care Services (North Lincs) Ltd,8136830,EME0032E
North Lincolnshire Council,http://data.ordnancesurvey.co.uk/id/7000000000025623,Adult Social Care,Payments To Private Orgs,6002,05/06/2020,5860151,"1,824.00",REVENUE,Emerald Care Services (North Lincs) Ltd,8136830,EME0032E
North Lincolnshire Council,http://data.ordnancesurvey.co.uk/id/7000000000025623,Adult Social Care,Payments To Private Orgs,6002,12/06/2020,5864024,"8,218.26",REVENUE,Emerald Care Services (North Lincs) Ltd,8136830,EME0032E
North Lincolnshire Council,http://data.ordnancesurvey.co.uk/id/7000000000025623,Central Services To Public,Business Support Grants,6090,15/06/2020,5865238,"10,000.00",REVENUE,Emerald Care Services (North Lincs) Ltd,,CD026610
North Lincolnshire Council,http://data.ordnancesurvey.co.uk/id/7000000000025623,Childrens & Education,Payments To Private Orgs,6002,10/06/2020,5862279,437,REVENUE,Emerald Care Services (North Lincs) Ltd,8136830,EME0032E
North Lincolnshire Council,http://data.ordnancesurvey.co.uk/id/7000000000025623,Childrens & Education,Payments To Private Orgs,6002,10/06/2020,5862280,361,REVENUE,Emerald Care Services (North Lincs) Ltd,8136830,EME0032E
North Lincolnshire Council,http://data.ordnancesurvey.co.uk/id/7000000000025623,Central Services To Public,Provisions,5201,03/06/2020,5859738,339.87,REVENUE,Emergency Finthree,,NOR2002R
North Lincolnshire Council,http://data.ordnancesurvey.co.uk/id/7000000000025623,Central Services To Public,Provisions,5201,17/06/2020,5865552,385.62,REVENUE,Emergency Finthree,,NOR2002R
North Lincolnshire Council,http://data.ordnancesurvey.co.uk/id/7000000000025623,Central Services To Public,Provisions,5201,01/07/2020,5871564,336.58,REVENUE,Emergency Finthree,,NOR2002R
North Lincolnshire Council,http://data.ordnancesurvey.co.uk/id/7000000000025623,Childrens & Education,Payments To Private Orgs,6002,10/06/2020,5862151,512.58,REVENUE,Emma C  Cobb,,COB0002B
North Lincolnshire Council,http://data.ordnancesurvey.co.uk/id/7000000000025623,Culture & Related Services,"Licenses, Subs & Memberships",5510,07/08/2020,5862409,"2,940.00",REVENUE,Encyclopaedia Britannica (Uk) Ltd,,ENC0020C
North Lincolnshire Council,http://data.ordnancesurvey.co.uk/id/7000000000025623,Corporate And Democratic Core,Repair & Maintenance Costs,3000,03/06/2020,5859531,"3,238.75",REVENUE,End2end Services Limited,,END0042D
North Lincolnshire Council,http://data.ordnancesurvey.co.uk/id/7000000000025623,Childrens & Education,Payments To Private Orgs,6002,01/07/2020,5870626,833,REVENUE,Engineering Utc Northern Lincolnshire,,ENG0084G
North Lincolnshire Council,http://data.ordnancesurvey.co.uk/id/7000000000025623,Environmental & Regulatory Svs,Other Supplies & Services,5799,17/06/2020,5865394,"1,500.00",REVENUE,Enitial,2589078,ENI0002I
North Lincolnshire Council,http://data.ordnancesurvey.co.uk/id/7000000000025623,Culture & Related Services,Other Supplies & Services,5799,12/06/2020,5860864,212.78,REVENUE,Envirotec,,ENV0092V
North Lincolnshire Council,http://data.ordnancesurvey.co.uk/id/7000000000025623,Central Services To Public,Business Support Grants,6090,03/06/2020,5860237,"10,000.00",REVENUE,Envy Hair And Beauty,,CD025550
North Lincolnshire Council,http://data.ordnancesurvey.co.uk/id/7000000000025623,Central Services To Public,Business Support Grants,6090,10/06/2020,5863253,"10,000.00",REVENUE,Epworth Mechanics' Institute Library,,CD026080
North Lincolnshire Council,http://data.ordnancesurvey.co.uk/id/7000000000025623,Childrens & Education,Payments To Private Orgs,6002,17/06/2020,5862157,"24,302.07",REVENUE,Epworth Primary Academy,,EPW0006W
North Lincolnshire Council,http://data.ordnancesurvey.co.uk/id/7000000000025623,Childrens & Education,Payments To Private Orgs,6002,24/06/2020,5868527,"6,995.83",REVENUE,Epworth Primary Academy,,EPW0006W
North Lincolnshire Council,http://data.ordnancesurvey.co.uk/id/7000000000025623,Childrens & Education,Home To School Transport,4201,03/06/2020,5859612,813.75,REVENUE,Epworth Taxis Ltd,8601067,EPW0003W
North Lincolnshire Council,http://data.ordnancesurvey.co.uk/id/7000000000025623,Childrens & Education,Home To School Transport,4201,03/06/2020,5859615,963.75,REVENUE,Epworth Taxis Ltd,8601067,EPW0003W
North Lincolnshire Council,http://data.ordnancesurvey.co.uk/id/7000000000025623,Childrens & Education,Home To School Transport,4201,03/06/2020,5859616,600,REVENUE,Epworth Taxis Ltd,8601067,EPW0003W
North Lincolnshire Council,http://data.ordnancesurvey.co.uk/id/7000000000025623,Childrens & Education,Home To School Transport,4201,03/06/2020,5859618,582.75,REVENUE,Epworth Taxis Ltd,8601067,EPW0003W
North Lincolnshire Council,http://data.ordnancesurvey.co.uk/id/7000000000025623,Childrens & Education,Home To School Transport,4201,03/06/2020,5859620,600,REVENUE,Epworth Taxis Ltd,8601067,EPW0003W
North Lincolnshire Council,http://data.ordnancesurvey.co.uk/id/7000000000025623,Childrens & Education,Home To School Transport,4201,03/06/2020,5859621,551.2,REVENUE,Epworth Taxis Ltd,8601067,EPW0003W
North Lincolnshire Council,http://data.ordnancesurvey.co.uk/id/7000000000025623,Childrens & Education,Home To School Transport,4201,03/06/2020,5859622,870,REVENUE,Epworth Taxis Ltd,8601067,EPW0003W
North Lincolnshire Council,http://data.ordnancesurvey.co.uk/id/7000000000025623,Childrens & Education,Home To School Transport,4201,03/06/2020,5859624,342.3,REVENUE,Epworth Taxis Ltd,8601067,EPW0003W
North Lincolnshire Council,http://data.ordnancesurvey.co.uk/id/7000000000025623,Childrens & Education,Payments To Voluntary Orgs,6001,10/06/2020,5862158,"4,267.35",REVENUE,Epworth Thurlow Pre-School,,EPW0018W
North Lincolnshire Council,http://data.ordnancesurvey.co.uk/id/7000000000025623,Central Services To Public,Business Support Grants,6090,15/06/2020,5865235,"10,000.00",REVENUE,Europa Technia Ltd,,CD026580
North Lincolnshire Council,http://data.ordnancesurvey.co.uk/id/7000000000025623,Central Services To Public,Business Support Grants,6090,12/06/2020,5864395,"10,000.00",REVENUE,European Spraydry Technologies Llp,,CD026400
North Lincolnshire Council,http://data.ordnancesurvey.co.uk/id/7000000000025623,Environmental & Regulatory Svs,It Software-Maintenance,5053,19/06/2020,5865744,"6,504.00",REVENUE,Exegesis Sdm Ltd,,EXE0011E
North Lincolnshire Council,http://data.ordnancesurvey.co.uk/id/7000000000025623,Environmental & Regulatory Svs,Other Premises Costs,3390,03/06/2020,5858299,"2,440.00",REVENUE,Eye Watch Security Ltd,4480210,EYE0006E
North Lincolnshire Council,http://data.ordnancesurvey.co.uk/id/7000000000025623,Environmental & Regulatory Svs,Other Premises Costs,3390,03/06/2020,5858486,600,REVENUE,Eye Watch Security Ltd,4480210,EYE0006E
North Lincolnshire Council,http://data.ordnancesurvey.co.uk/id/7000000000025623,Fin&Inv I&E,Other Supplies & Services,5799,10/06/2020,5862601,557.75,REVENUE,Eye Watch Security Ltd,4480210,EYE0006E
North Lincolnshire Council,http://data.ordnancesurvey.co.uk/id/7000000000025623,Childrens & Education,Course Fees/Training,2002,05/06/2020,5860899,600,REVENUE,Faculty Of Sport And Exercise Medicine Uk,,FAC0006C
North Lincolnshire Council,http://data.ordnancesurvey.co.uk/id/7000000000025623,Central Services To Public,Business Support Grants,6090,10/06/2020,5863262,"25,000.00",REVENUE,Fair Share Group T/A Highseal Manufacturing,,CD026170
North Lincolnshire Council,http://data.ordnancesurvey.co.uk/id/7000000000025623,Environmental & Regulatory Svs,Materials,5004,01/07/2020,5870560,"1,081.51",REVENUE,Faun Zoeller (Uk) Ltd,751804,FAU0006U
North Lincolnshire Council,http://data.ordnancesurvey.co.uk/id/7000000000025623,Central Services To Public,Business Support Grants,6090,03/06/2020,5860240,"10,000.00",REVENUE,Fieldside Boarding Kennels,,CD025580
North Lincolnshire Council,http://data.ordnancesurvey.co.uk/id/7000000000025623,Childrens & Education,Payments To Private Orgs,6002,10/06/2020,5862161,"14,718.35",REVENUE,Fieldview Day Nursery,,FIE0045E
North Lincolnshire Council,http://data.ordnancesurvey.co.uk/id/7000000000025623,Childrens & Education,Payments To Private Orgs,6002,17/06/2020,5864471,320,REVENUE,First Class Tailored Solutions Ltd,7819183,FIR0124R
North Lincolnshire Council,http://data.ordnancesurvey.co.uk/id/7000000000025623,Childrens & Education,Payments To Private Orgs,6002,17/06/2020,5864472,328,REVENUE,First Class Tailored Solutions Ltd,7819183,FIR0124R
North Lincolnshire Council,http://data.ordnancesurvey.co.uk/id/7000000000025623,Childrens & Education,Payments To Private Orgs,6002,17/06/2020,5864487,220,REVENUE,First Class Tailored Solutions Ltd,7819183,FIR0124R
North Lincolnshire Council,http://data.ordnancesurvey.co.uk/id/7000000000025623,Childrens & Education,Payments To Private Orgs,6002,17/06/2020,5864490,220,REVENUE,First Class Tailored Solutions Ltd,7819183,FIR0124R
North Lincolnshire Council,http://data.ordnancesurvey.co.uk/id/7000000000025623,Childrens & Education,Payments To Private Orgs,6002,19/06/2020,5866227,320,REVENUE,First Class Tailored Solutions Ltd,7819183,FIR0124R
North Lincolnshire Council,http://data.ordnancesurvey.co.uk/id/7000000000025623,Childrens & Education,Payments To Private Orgs,6002,19/06/2020,5866230,220,REVENUE,First Class Tailored Solutions Ltd,7819183,FIR0124R
North Lincolnshire Council,http://data.ordnancesurvey.co.uk/id/7000000000025623,Childrens & Education,Payments To Private Orgs,6002,19/06/2020,5866232,320,REVENUE,First Class Tailored Solutions Ltd,7819183,FIR0124R
North Lincolnshire Council,http://data.ordnancesurvey.co.uk/id/7000000000025623,Childrens & Education,Payments To Private Orgs,6002,01/07/2020,5870369,220,REVENUE,First Class Tailored Solutions Ltd,7819183,FIR0124R
North Lincolnshire Council,http://data.ordnancesurvey.co.uk/id/7000000000025623,Childrens & Education,Payments To Private Orgs,6002,01/07/2020,5870536,320,REVENUE,First Class Tailored Solutions Ltd,7819183,FIR0124R
North Lincolnshire Council,http://data.ordnancesurvey.co.uk/id/7000000000025623,Childrens & Education,Payments To Private Orgs,6002,10/06/2020,5861037,"3,516.95",REVENUE,Five Rivers Child Care Ltd,,FIV0006V
North Lincolnshire Council,http://data.ordnancesurvey.co.uk/id/7000000000025623,Highways & Transport,Equipment Hire/Rent,5002,17/06/2020,5865465,368.25,REVENUE,Fleetclean Ltd,1381865,FLE0007E
North Lincolnshire Council,http://data.ordnancesurvey.co.uk/id/7000000000025623,Childrens & Education,Materials,5004,10/06/2020,5862436,439.63,REVENUE,Fleet Factors Ltd,1231325,FLE0026E
North Lincolnshire Council,http://data.ordnancesurvey.co.uk/id/7000000000025623,Childrens & Education,Materials,5004,10/06/2020,5862459,449.24,REVENUE,Fleet Factors Ltd,1231325,FLE0026E
North Lincolnshire Council,http://data.ordnancesurvey.co.uk/id/7000000000025623,Childrens & Education,Materials,5004,12/06/2020,5862490,217.86,REVENUE,Fleet Factors Ltd,1231325,FLE0026E
North Lincolnshire Council,http://data.ordnancesurvey.co.uk/id/7000000000025623,Childrens & Education,Materials,5004,17/06/2020,5865489,286.98,REVENUE,Fleet Factors Ltd,1231325,FLE0026E
North Lincolnshire Council,http://data.ordnancesurvey.co.uk/id/7000000000025623,Childrens & Education,Materials,5004,03/07/2020,5870594,657.6,REVENUE,Fleet Factors Ltd,1231325,FLE0026E
North Lincolnshire Council,http://data.ordnancesurvey.co.uk/id/7000000000025623,Culture & Related Services,Materials,5004,12/06/2020,5862482,354.55,REVENUE,Fleet Factors Ltd,1231325,FLE0026E
North Lincolnshire Council,http://data.ordnancesurvey.co.uk/id/7000000000025623,Culture & Related Services,Materials,5004,12/06/2020,5862495,400.81,REVENUE,Fleet Factors Ltd,1231325,FLE0026E
North Lincolnshire Council,http://data.ordnancesurvey.co.uk/id/7000000000025623,Culture & Related Services,Materials,5004,17/06/2020,5865471,929.9,REVENUE,Fleet Factors Ltd,1231325,FLE0026E
North Lincolnshire Council,http://data.ordnancesurvey.co.uk/id/7000000000025623,Culture & Related Services,Materials,5004,19/06/2020,5865488,"1,211.15",REVENUE,Fleet Factors Ltd,1231325,FLE0026E
North Lincolnshire Council,http://data.ordnancesurvey.co.uk/id/7000000000025623,Culture & Related Services,Materials,5004,24/06/2020,5868598,298.46,REVENUE,Fleet Factors Ltd,1231325,FLE0026E
North Lincolnshire Council,http://data.ordnancesurvey.co.uk/id/7000000000025623,Culture & Related Services,Materials,5004,26/06/2020,5868611,228.94,REVENUE,Fleet Factors Ltd,1231325,FLE0026E
North Lincolnshire Council,http://data.ordnancesurvey.co.uk/id/7000000000025623,Culture & Related Services,Materials,5004,26/06/2020,5868615,676.2,REVENUE,Fleet Factors Ltd,1231325,FLE0026E
North Lincolnshire Council,http://data.ordnancesurvey.co.uk/id/7000000000025623,Culture & Related Services,Materials,5004,03/07/2020,5870597,354.19,REVENUE,Fleet Factors Ltd,1231325,FLE0026E
North Lincolnshire Council,http://data.ordnancesurvey.co.uk/id/7000000000025623,Environmental & Regulatory Svs,Materials,5004,10/06/2020,5862469,"1,156.39",REVENUE,Fleet Factors Ltd,1231325,FLE0026E
North Lincolnshire Council,http://data.ordnancesurvey.co.uk/id/7000000000025623,Environmental & Regulatory Svs,Materials,5004,10/06/2020,5862472,335.61,REVENUE,Fleet Factors Ltd,1231325,FLE0026E
North Lincolnshire Council,http://data.ordnancesurvey.co.uk/id/7000000000025623,Environmental & Regulatory Svs,Materials,5004,12/06/2020,5862489,314.47,REVENUE,Fleet Factors Ltd,1231325,FLE0026E
North Lincolnshire Council,http://data.ordnancesurvey.co.uk/id/7000000000025623,Environmental & Regulatory Svs,Materials,5004,12/06/2020,5862491,875,REVENUE,Fleet Factors Ltd,1231325,FLE0026E
North Lincolnshire Council,http://data.ordnancesurvey.co.uk/id/7000000000025623,Environmental & Regulatory Svs,Materials,5004,12/06/2020,5862496,988.03,REVENUE,Fleet Factors Ltd,1231325,FLE0026E
North Lincolnshire Council,http://data.ordnancesurvey.co.uk/id/7000000000025623,Environmental & Regulatory Svs,Materials,5004,17/06/2020,5865473,"1,238.00",REVENUE,Fleet Factors Ltd,1231325,FLE0026E
North Lincolnshire Council,http://data.ordnancesurvey.co.uk/id/7000000000025623,Environmental & Regulatory Svs,Materials,5004,17/06/2020,5865474,233.07,REVENUE,Fleet Factors Ltd,1231325,FLE0026E
North Lincolnshire Council,http://data.ordnancesurvey.co.uk/id/7000000000025623,Environmental & Regulatory Svs,Materials,5004,17/06/2020,5865480,"2,386.13",REVENUE,Fleet Factors Ltd,1231325,FLE0026E
North Lincolnshire Council,http://data.ordnancesurvey.co.uk/id/7000000000025623,Environmental & Regulatory Svs,Materials,5004,17/06/2020,5865482,309.48,REVENUE,Fleet Factors Ltd,1231325,FLE0026E
North Lincolnshire Council,http://data.ordnancesurvey.co.uk/id/7000000000025623,Environmental & Regulatory Svs,Materials,5004,17/06/2020,5865483,915,REVENUE,Fleet Factors Ltd,1231325,FLE0026E
North Lincolnshire Council,http://data.ordnancesurvey.co.uk/id/7000000000025623,Environmental & Regulatory Svs,Materials,5004,17/06/2020,5865490,402.41,REVENUE,Fleet Factors Ltd,1231325,FLE0026E
North Lincolnshire Council,http://data.ordnancesurvey.co.uk/id/7000000000025623,Environmental & Regulatory Svs,Materials,5004,17/06/2020,5865494,292.3,REVENUE,Fleet Factors Ltd,1231325,FLE0026E
North Lincolnshire Council,http://data.ordnancesurvey.co.uk/id/7000000000025623,Environmental & Regulatory Svs,Materials,5004,17/06/2020,5865499,213,REVENUE,Fleet Factors Ltd,1231325,FLE0026E
North Lincolnshire Council,http://data.ordnancesurvey.co.uk/id/7000000000025623,Environmental & Regulatory Svs,Materials,5004,19/06/2020,5865485,"1,905.87",REVENUE,Fleet Factors Ltd,1231325,FLE0026E
North Lincolnshire Council,http://data.ordnancesurvey.co.uk/id/7000000000025623,Environmental & Regulatory Svs,Materials,5004,24/06/2020,5868593,589.52,REVENUE,Fleet Factors Ltd,1231325,FLE0026E
North Lincolnshire Council,http://data.ordnancesurvey.co.uk/id/7000000000025623,Environmental & Regulatory Svs,Materials,5004,24/06/2020,5868605,215.1,REVENUE,Fleet Factors Ltd,1231325,FLE0026E
North Lincolnshire Council,http://data.ordnancesurvey.co.uk/id/7000000000025623,Environmental & Regulatory Svs,Materials,5004,24/06/2020,5868606,296.7,REVENUE,Fleet Factors Ltd,1231325,FLE0026E
North Lincolnshire Council,http://data.ordnancesurvey.co.uk/id/7000000000025623,Environmental & Regulatory Svs,Materials,5004,24/06/2020,5868608,"1,137.90",REVENUE,Fleet Factors Ltd,1231325,FLE0026E
North Lincolnshire Council,http://data.ordnancesurvey.co.uk/id/7000000000025623,Environmental & Regulatory Svs,Materials,5004,26/06/2020,5868620,661.66,REVENUE,Fleet Factors Ltd,1231325,FLE0026E
North Lincolnshire Council,http://data.ordnancesurvey.co.uk/id/7000000000025623,Environmental & Regulatory Svs,Materials,5004,26/06/2020,5868624,390,REVENUE,Fleet Factors Ltd,1231325,FLE0026E
North Lincolnshire Council,http://data.ordnancesurvey.co.uk/id/7000000000025623,Environmental & Regulatory Svs,Materials,5004,01/07/2020,5870573,295,REVENUE,Fleet Factors Ltd,1231325,FLE0026E
North Lincolnshire Council,http://data.ordnancesurvey.co.uk/id/7000000000025623,Environmental & Regulatory Svs,Materials,5004,01/07/2020,5870576,230.34,REVENUE,Fleet Factors Ltd,1231325,FLE0026E
North Lincolnshire Council,http://data.ordnancesurvey.co.uk/id/7000000000025623,Environmental & Regulatory Svs,Materials,5004,01/07/2020,5870587,444.5,REVENUE,Fleet Factors Ltd,1231325,FLE0026E
North Lincolnshire Council,http://data.ordnancesurvey.co.uk/id/7000000000025623,Environmental & Regulatory Svs,Materials,5004,01/07/2020,5870588,404.66,REVENUE,Fleet Factors Ltd,1231325,FLE0026E
North Lincolnshire Council,http://data.ordnancesurvey.co.uk/id/7000000000025623,Environmental & Regulatory Svs,Materials,5004,03/07/2020,5870564,259.66,REVENUE,Fleet Factors Ltd,1231325,FLE0026E
North Lincolnshire Council,http://data.ordnancesurvey.co.uk/id/7000000000025623,Environmental & Regulatory Svs,Materials,5004,03/07/2020,5870592,263.11,REVENUE,Fleet Factors Ltd,1231325,FLE0026E
North Lincolnshire Council,http://data.ordnancesurvey.co.uk/id/7000000000025623,Highways & Transport,Equipment Maint.& Repair,5003,01/07/2020,5870585,261.6,REVENUE,Fleet Factors Ltd,1231325,FLE0026E
North Lincolnshire Council,http://data.ordnancesurvey.co.uk/id/7000000000025623,Highways & Transport,Fuel,4001,10/06/2020,5862450,754,REVENUE,Fleet Factors Ltd,1231325,FLE0026E
North Lincolnshire Council,http://data.ordnancesurvey.co.uk/id/7000000000025623,Highways & Transport,Fuel,4001,01/07/2020,5870575,580,REVENUE,Fleet Factors Ltd,1231325,FLE0026E
North Lincolnshire Council,http://data.ordnancesurvey.co.uk/id/7000000000025623,Highways & Transport,Materials,5004,10/06/2020,5862438,565.73,REVENUE,Fleet Factors Ltd,1231325,FLE0026E
North Lincolnshire Council,http://data.ordnancesurvey.co.uk/id/7000000000025623,Highways & Transport,Materials,5004,10/06/2020,5862439,511.05,REVENUE,Fleet Factors Ltd,1231325,FLE0026E
North Lincolnshire Council,http://data.ordnancesurvey.co.uk/id/7000000000025623,Highways & Transport,Materials,5004,10/06/2020,5862440,419.71,REVENUE,Fleet Factors Ltd,1231325,FLE0026E
North Lincolnshire Council,http://data.ordnancesurvey.co.uk/id/7000000000025623,Highways & Transport,Materials,5004,10/06/2020,5862443,295.17,REVENUE,Fleet Factors Ltd,1231325,FLE0026E
North Lincolnshire Council,http://data.ordnancesurvey.co.uk/id/7000000000025623,Highways & Transport,Materials,5004,10/06/2020,5862445,265.76,REVENUE,Fleet Factors Ltd,1231325,FLE0026E
North Lincolnshire Council,http://data.ordnancesurvey.co.uk/id/7000000000025623,Highways & Transport,Materials,5004,10/06/2020,5862449,457.77,REVENUE,Fleet Factors Ltd,1231325,FLE0026E
North Lincolnshire Council,http://data.ordnancesurvey.co.uk/id/7000000000025623,Highways & Transport,Materials,5004,10/06/2020,5862461,451.69,REVENUE,Fleet Factors Ltd,1231325,FLE0026E
North Lincolnshire Council,http://data.ordnancesurvey.co.uk/id/7000000000025623,Highways & Transport,Materials,5004,12/06/2020,5862486,390,REVENUE,Fleet Factors Ltd,1231325,FLE0026E
North Lincolnshire Council,http://data.ordnancesurvey.co.uk/id/7000000000025623,Highways & Transport,Materials,5004,12/06/2020,5862488,"2,785.00",REVENUE,Fleet Factors Ltd,1231325,FLE0026E
North Lincolnshire Council,http://data.ordnancesurvey.co.uk/id/7000000000025623,Highways & Transport,Materials,5004,17/06/2020,5865475,910,REVENUE,Fleet Factors Ltd,1231325,FLE0026E
North Lincolnshire Council,http://data.ordnancesurvey.co.uk/id/7000000000025623,Highways & Transport,Materials,5004,26/06/2020,5868612,269.83,REVENUE,Fleet Factors Ltd,1231325,FLE0026E
North Lincolnshire Council,http://data.ordnancesurvey.co.uk/id/7000000000025623,Highways & Transport,Stock Purchases & Adjustments,5030,01/07/2020,5870561,"1,118.50",REVENUE,Fleet Factors Ltd,1231325,FLE0026E
North Lincolnshire Council,http://data.ordnancesurvey.co.uk/id/7000000000025623,Highways & Transport,Stock Purchases & Adjustments,5030,01/07/2020,5870589,274.8,REVENUE,Fleet Factors Ltd,1231325,FLE0026E
North Lincolnshire Council,http://data.ordnancesurvey.co.uk/id/7000000000025623,Highways & Transport,Vehicle Repairs,4004,24/06/2020,5868599,486.72,REVENUE,Fleet Factors Ltd,1231325,FLE0026E
North Lincolnshire Council,http://data.ordnancesurvey.co.uk/id/7000000000025623,Planning Services,Materials,5004,01/07/2020,5870558,224.87,REVENUE,Fmg Support (Rrrm) Ltd,,DEL0036L
North Lincolnshire Council,http://data.ordnancesurvey.co.uk/id/7000000000025623,Corporate And Democratic Core,It Software-Maintenance,5053,19/06/2020,5866547,"29,809.35",REVENUE,Fmp Hr & Payroll Software Ltd,9811970,BON0240N
North Lincolnshire Council,http://data.ordnancesurvey.co.uk/id/7000000000025623,Childrens & Education,Legal Fees,5823,26/06/2020,5869788,624,REVENUE,Foresight Clinical Services Ltd,6354163,FOR0132R
North Lincolnshire Council,http://data.ordnancesurvey.co.uk/id/7000000000025623,Highways & Transport,Other Vehicle Costs,4005,08/07/2020,5870599,316.88,REVENUE,Forktruck Solutions Ltd,4032332,FOR0059R
North Lincolnshire Council,http://data.ordnancesurvey.co.uk/id/7000000000025623,Highways & Transport,Other Vehicle Costs,4005,08/07/2020,5870600,330.89,REVENUE,Forktruck Solutions Ltd,4032332,FOR0059R
North Lincolnshire Council,http://data.ordnancesurvey.co.uk/id/7000000000025623,Childrens & Education,Payments To Private Orgs,6002,10/06/2020,5861027,"3,299.02",REVENUE,Foster Care Associates Limited,8273494,FOS0030S
North Lincolnshire Council,http://data.ordnancesurvey.co.uk/id/7000000000025623,Childrens & Education,Payments To Private Orgs,6002,10/06/2020,5861032,"10,223.18",REVENUE,Foster Care Associates Limited,8273494,FOS0030S
North Lincolnshire Council,http://data.ordnancesurvey.co.uk/id/7000000000025623,Childrens & Education,Payments To Private Orgs,6002,10/06/2020,5861106,"3,770.84",REVENUE,Fostering People Ltd,,FOS0214S
North Lincolnshire Council,http://data.ordnancesurvey.co.uk/id/7000000000025623,Childrens & Education,Payments To Private Orgs,6002,10/06/2020,5861143,"2,800.85",REVENUE,Fostering People Ltd,,FOS0214S
North Lincolnshire Council,http://data.ordnancesurvey.co.uk/id/7000000000025623,Childrens & Education,Payments To Private Orgs,6002,10/06/2020,5861033,"3,265.85",REVENUE,Fostering Solutions Ltd,,FOS0044S
North Lincolnshire Council,http://data.ordnancesurvey.co.uk/id/7000000000025623,Culture & Related Services,Materials,5004,26/06/2020,5868631,"1,975.00",REVENUE,Fox Auto Electrical Ltd,7903391,FOX0061X
North Lincolnshire Council,http://data.ordnancesurvey.co.uk/id/7000000000025623,Highways & Transport,Materials,5004,24/06/2020,5868625,366,REVENUE,Fox Auto Electrical Ltd,7903391,FOX0061X
North Lincolnshire Council,http://data.ordnancesurvey.co.uk/id/7000000000025623,Highways & Transport,Materials,5004,24/06/2020,5868626,221.5,REVENUE,Fox Auto Electrical Ltd,7903391,FOX0061X
North Lincolnshire Council,http://data.ordnancesurvey.co.uk/id/7000000000025623,Highways & Transport,Materials,5004,01/07/2020,5870602,221.5,REVENUE,Fox Auto Electrical Ltd,7903391,FOX0061X
North Lincolnshire Council,http://data.ordnancesurvey.co.uk/id/7000000000025623,Public Health,Other Vehicle Costs,4005,17/06/2020,5865503,834,REVENUE,Fox Auto Electrical Ltd,7903391,FOX0061X
North Lincolnshire Council,http://data.ordnancesurvey.co.uk/id/7000000000025623,Public Health,Payments To Private Orgs,6002,10/06/2020,5861102,"21,400.00",REVENUE,Framework Housing Association,,FRA0017A
North Lincolnshire Council,http://data.ordnancesurvey.co.uk/id/7000000000025623,Central Services To Public,Business Support Grants,6090,03/06/2020,5860260,"10,000.00",REVENUE,Fred Wooffitt Memorial Hall,,CD025780
North Lincolnshire Council,http://data.ordnancesurvey.co.uk/id/7000000000025623,Central Services To Public,Business Support Grants,6090,10/06/2020,5863238,"10,000.00",REVENUE,Freightmaster Blending & Warehousing Ltd,,CD025930
North Lincolnshire Council,http://data.ordnancesurvey.co.uk/id/7000000000025623,Central Services To Public,Business Support Grants,6090,15/06/2020,5865240,"10,000.00",REVENUE,Freshway Butcher & Bakery,,CD026630
North Lincolnshire Council,http://data.ordnancesurvey.co.uk/id/7000000000025623,Environmental & Regulatory Svs,Other Vehicle Costs,4005,12/06/2020,5862346,493.2,REVENUE,Fuchs Lubricants (Uk) Plc,935764,BAT0063T
North Lincolnshire Council,http://data.ordnancesurvey.co.uk/id/7000000000025623,Planning Services,Payments To Voluntary Orgs,6001,19/06/2020,5866172,692,REVENUE,Gambling Commission,,GAM0163M
North Lincolnshire Council,http://data.ordnancesurvey.co.uk/id/7000000000025623,Culture & Related Services,Other Supplies & Services,5799,26/06/2020,5870298,"1,845.00",REVENUE,Garthorpe & Fockerby Parish Council,,GAR0279R
North Lincolnshire Council,http://data.ordnancesurvey.co.uk/id/7000000000025623,Highways & Transport,Other Supplies & Services,5799,26/06/2020,5870299,282,REVENUE,Garthorpe & Fockerby Parish Council,,GAR0279R
North Lincolnshire Council,http://data.ordnancesurvey.co.uk/id/7000000000025623,Planning Services,Payments To Voluntary Orgs,6001,01/07/2020,5871345,"11,505.34",REVENUE,Garthorpe Sport & Community Centre,,LLO0032O
North Lincolnshire Council,http://data.ordnancesurvey.co.uk/id/7000000000025623,Central Services To Public,Business Support Grants,6090,03/06/2020,5860256,"10,000.00",REVENUE,Garthorpe Village Hall Committee,,CD025740
North Lincolnshire Council,http://data.ordnancesurvey.co.uk/id/7000000000025623,Childrens & Education,Payments To Private Orgs,6002,10/06/2020,5862207,"2,241.60",REVENUE,Gayle Parker,,PAR0491R
North Lincolnshire Council,http://data.ordnancesurvey.co.uk/id/7000000000025623,Environmental & Regulatory Svs,Materials,5004,19/06/2020,5866386,"1,358.64",REVENUE,G Empson & Sons Limited,1434924,EMP0019P
North Lincolnshire Council,http://data.ordnancesurvey.co.uk/id/7000000000025623,Highways & Transport,Stock Purchases & Adjustments,5030,19/06/2020,5865551,236.16,REVENUE,G Empson & Sons Limited,1434924,EMP0019P
North Lincolnshire Council,http://data.ordnancesurvey.co.uk/id/7000000000025623,Housing Services,Other Supplies & Services,5799,24/06/2020,5868125,450,REVENUE,REDACTED,,REDACTED
North Lincolnshire Council,http://data.ordnancesurvey.co.uk/id/7000000000025623,Housing Services,Other Supplies & Services,5799,24/06/2020,5868131,"3,600.00",REVENUE,REDACTED,,REDACTED
North Lincolnshire Council,http://data.ordnancesurvey.co.uk/id/7000000000025623,Central Services To Public,Business Support Grants,6090,03/06/2020,5860231,"10,000.00",REVENUE,Glenndale Cab Co,,CD025490
North Lincolnshire Council,http://data.ordnancesurvey.co.uk/id/7000000000025623,Corporate And Democratic Core,Fees & Charges Income,9002,10/06/2020,5862275,-44.07,REVENUE,G M B,,GMB0003B
North Lincolnshire Council,http://data.ordnancesurvey.co.uk/id/7000000000025623,Central Services To Public,Business Support Grants,6090,11/06/2020,5863822,"10,000.00",REVENUE,Goathill Equine Services,,CD026330
North Lincolnshire Council,http://data.ordnancesurvey.co.uk/id/7000000000025623,Central Services To Public,Business Support Grants,6090,03/06/2020,5860245,"10,000.00",REVENUE,Golf Balls 2 U,,CD025630
North Lincolnshire Council,http://data.ordnancesurvey.co.uk/id/7000000000025623,Childrens & Education,Payments To Private Orgs,6002,03/06/2020,5859587,780,REVENUE,Good Apple Independent School,,GOO0110O
North Lincolnshire Council,http://data.ordnancesurvey.co.uk/id/7000000000025623,Childrens & Education,Payments To Private Orgs,6002,03/06/2020,5859588,595,REVENUE,Good Apple Independent School,,GOO0110O
North Lincolnshire Council,http://data.ordnancesurvey.co.uk/id/7000000000025623,Childrens & Education,Payments To Private Orgs,6002,01/07/2020,5870540,975,REVENUE,Good Apple Independent School,,GOO0110O
North Lincolnshire Council,http://data.ordnancesurvey.co.uk/id/7000000000025623,Childrens & Education,Payments To Private Orgs,6002,01/07/2020,5870541,595,REVENUE,Good Apple Independent School,,GOO0110O
North Lincolnshire Council,http://data.ordnancesurvey.co.uk/id/7000000000025623,Childrens & Education,Payments To Private Orgs,6002,01/07/2020,5870543,"1,430.00",REVENUE,Good Apple Independent School,,GOO0110O
North Lincolnshire Council,http://data.ordnancesurvey.co.uk/id/7000000000025623,Childrens & Education,Payments To Private Orgs,6002,01/07/2020,5870548,"1,020.00",REVENUE,Good Apple Independent School,,GOO0110O
North Lincolnshire Council,http://data.ordnancesurvey.co.uk/id/7000000000025623,Central Services To Public,Business Support Grants,6090,17/06/2020,5866125,"25,000.00",REVENUE,Goodman Tps Ltd,,CD026910
North Lincolnshire Council,http://data.ordnancesurvey.co.uk/id/7000000000025623,Central Services To Public,Business Support Grants,6090,03/06/2020,5860252,"10,000.00",REVENUE,Goxhill Memorial Hall And Recreation Ground,,CD025700
North Lincolnshire Council,http://data.ordnancesurvey.co.uk/id/7000000000025623,Central Services To Public,Business Support Grants,6090,03/06/2020,5860269,"10,000.00",REVENUE,Goxhill Memorial Hall Bowls Club,,CD025870
North Lincolnshire Council,http://data.ordnancesurvey.co.uk/id/7000000000025623,Childrens & Education,Payments To Voluntary Orgs,6001,10/06/2020,5862166,334.53,REVENUE,Goxhill Out Of School Club,,GOX0020X
North Lincolnshire Council,http://data.ordnancesurvey.co.uk/id/7000000000025623,Culture & Related Services,Other Supplies & Services,5799,26/06/2020,5870300,"4,739.00",REVENUE,Goxhill Parish Council,,GOX0001X
North Lincolnshire Council,http://data.ordnancesurvey.co.uk/id/7000000000025623,Highways & Transport,Other Supplies & Services,5799,26/06/2020,5870301,753,REVENUE,Goxhill Parish Council,,GOX0001X
North Lincolnshire Council,http://data.ordnancesurvey.co.uk/id/7000000000025623,Childrens & Education,Payments To Private Orgs,6002,10/06/2020,5862165,"2,467.16",REVENUE,Goxhill Pre-School,,GOX0012X
North Lincolnshire Council,http://data.ordnancesurvey.co.uk/id/7000000000025623,Childrens & Education,Payments To Private Orgs,6002,01/07/2020,5871336,"1,220.80",REVENUE,Goxhill Pre-School,,GOX0012X
North Lincolnshire Council,http://data.ordnancesurvey.co.uk/id/7000000000025623,"Culture,Env,Reg & Planning Cap",Building/Construction,A082,12/06/2020,5864004,"20,704.30",CAPITAL,Grantham Industries Ltd T/A Gbm Demol & Earth,,GBM0001M
North Lincolnshire Council,http://data.ordnancesurvey.co.uk/id/7000000000025623,Adult Social Care,Payments To Private Orgs,6002,03/06/2020,5860163,"1,864.68",REVENUE,Gray Healthcare Ltd,,ISF0032F
North Lincolnshire Council,http://data.ordnancesurvey.co.uk/id/7000000000025623,Adult Social Care,Payments To Private Orgs,6002,12/06/2020,5864027,677.2,REVENUE,Gray Healthcare Ltd,,ISF0032F
North Lincolnshire Council,http://data.ordnancesurvey.co.uk/id/7000000000025623,Adult Social Care,Equipment Purchase,5001,12/06/2020,5859691,306,REVENUE,Guardian24,,GUA0032A
North Lincolnshire Council,http://data.ordnancesurvey.co.uk/id/7000000000025623,Central Services To Public,Business Support Grants,6090,03/06/2020,5860265,"25,000.00",REVENUE,Guild 750 Ltd,,CD025830
North Lincolnshire Council,http://data.ordnancesurvey.co.uk/id/7000000000025623,Childrens & Education,Payments To Voluntary Orgs,6001,10/06/2020,5862167,"4,184.23",REVENUE,Gunness & Burringham Playgroup,,GUN0025N
North Lincolnshire Council,http://data.ordnancesurvey.co.uk/id/7000000000025623,Culture & Related Services,Other Supplies & Services,5799,26/06/2020,5870302,"5,363.00",REVENUE,Gunness Parish Council,,GUN0001N
North Lincolnshire Council,http://data.ordnancesurvey.co.uk/id/7000000000025623,Highways & Transport,Other Supplies & Services,5799,26/06/2020,5870303,680,REVENUE,Gunness Parish Council,,GUN0001N
North Lincolnshire Council,http://data.ordnancesurvey.co.uk/id/7000000000025623,Adult Social Care,Payments To Private Orgs,6002,05/06/2020,5860128,-349.58,REVENUE,Hales Group Ltd,4738023,ABB0054B
North Lincolnshire Council,http://data.ordnancesurvey.co.uk/id/7000000000025623,Adult Social Care,Payments To Private Orgs,6002,05/06/2020,5860129,"73,276.73",REVENUE,Hales Group Ltd,4738023,ABB0054B
North Lincolnshire Council,http://data.ordnancesurvey.co.uk/id/7000000000025623,Adult Social Care,Payments To Private Orgs,6002,05/06/2020,5860129,"2,741.49",REVENUE,Hales Group Ltd,4738023,ABB0054B
North Lincolnshire Council,http://data.ordnancesurvey.co.uk/id/7000000000025623,Adult Social Care,Payments To Private Orgs,6002,12/06/2020,5864009,"28,863.89",REVENUE,Hales Group Ltd,4738023,ABB0054B
North Lincolnshire Council,http://data.ordnancesurvey.co.uk/id/7000000000025623,Childrens & Education,Materials,5004,19/06/2020,5863465,500,REVENUE,Hallmark Education Ltd,,HAL0107L
North Lincolnshire Council,http://data.ordnancesurvey.co.uk/id/7000000000025623,Childrens & Education,Materials,5004,19/06/2020,5863466,400,REVENUE,Hallmark Education Ltd,,HAL0107L
North Lincolnshire Council,http://data.ordnancesurvey.co.uk/id/7000000000025623,Childrens & Education,Payments To Private Orgs,6002,10/06/2020,5862170,"7,394.10",REVENUE,Happy Days Day Nursery,,HAP0008P
North Lincolnshire Council,http://data.ordnancesurvey.co.uk/id/7000000000025623,Childrens & Education,Payments To Private Orgs,6002,10/06/2020,5862168,712.8,REVENUE,Happy Stars Day Nursery,,HAP0006P
North Lincolnshire Council,http://data.ordnancesurvey.co.uk/id/7000000000025623,Childrens & Education,Payments To Private Orgs,6002,10/06/2020,5862169,"19,105.74",REVENUE,Happy Stars Day Nursery,,HAP0006P
North Lincolnshire Council,http://data.ordnancesurvey.co.uk/id/7000000000025623,Environmental & Regulatory Svs,Repair & Maintenance Costs,3000,03/06/2020,5859534,"1,030.00",REVENUE,Harcon Services Ltd,3943245,HAR0420R
North Lincolnshire Council,http://data.ordnancesurvey.co.uk/id/7000000000025623,Central Services To Public,Repair & Maintenance Costs,3000,03/06/2020,5859535,0,REVENUE,Harrison Lightning Protection &Earthing Ltd,,HAR0369R
North Lincolnshire Council,http://data.ordnancesurvey.co.uk/id/7000000000025623,Corporate And Democratic Core,Repair & Maintenance Costs,3000,03/06/2020,5859535,160,REVENUE,Harrison Lightning Protection &Earthing Ltd,,HAR0369R
North Lincolnshire Council,http://data.ordnancesurvey.co.uk/id/7000000000025623,Corporate And Democratic Core,Repair & Maintenance Costs,3000,17/06/2020,5865619,0,REVENUE,Harrison Lightning Protection &Earthing Ltd,,HAR0369R
North Lincolnshire Council,http://data.ordnancesurvey.co.uk/id/7000000000025623,Culture & Related Services,Repair & Maintenance Costs,3000,03/06/2020,5859535,450,REVENUE,Harrison Lightning Protection &Earthing Ltd,,HAR0369R
North Lincolnshire Council,http://data.ordnancesurvey.co.uk/id/7000000000025623,Environmental & Regulatory Svs,Repair & Maintenance Costs,3000,03/06/2020,5859535,60,REVENUE,Harrison Lightning Protection &Earthing Ltd,,HAR0369R
North Lincolnshire Council,http://data.ordnancesurvey.co.uk/id/7000000000025623,Culture & Related Services,Repair & Maintenance Costs,3000,17/06/2020,5865220,315,REVENUE,Harroquip,,HAR0836R
North Lincolnshire Council,http://data.ordnancesurvey.co.uk/id/7000000000025623,Culture & Related Services,Other Supplies & Services,5799,26/06/2020,5870304,"18,866.00",REVENUE,Haxey Parish Council,,HAX0002X
North Lincolnshire Council,http://data.ordnancesurvey.co.uk/id/7000000000025623,Highways & Transport,Other Supplies & Services,5799,26/06/2020,5870305,"6,209.00",REVENUE,Haxey Parish Council,,HAX0002X
North Lincolnshire Council,http://data.ordnancesurvey.co.uk/id/7000000000025623,Childrens & Education,Payments To Voluntary Orgs,6001,10/06/2020,5862172,"3,362.02",REVENUE,Haxey Pre-School Cio,,HAX0008X
North Lincolnshire Council,http://data.ordnancesurvey.co.uk/id/7000000000025623,Childrens & Education,Payments To Private Orgs,6002,26/06/2020,5869372,"1,500.00",REVENUE,Hayleigh Smith,,SMI0673I
North Lincolnshire Council,http://data.ordnancesurvey.co.uk/id/7000000000025623,Corporate And Democratic Core,Payments To Private Orgs,6002,25/06/2020,5870265,311,REVENUE,Hcha Trinity Ltd,,HUL0247L
North Lincolnshire Council,http://data.ordnancesurvey.co.uk/id/7000000000025623,Environmental & Regulatory Svs,Materials,5004,24/06/2020,5868577,"4,108.70",REVENUE,Heil Farid European Company Limited,SC053003,FAR0008R
North Lincolnshire Council,http://data.ordnancesurvey.co.uk/id/7000000000025623,Environmental & Regulatory Svs,Materials,5004,24/06/2020,5868578,363.5,REVENUE,Heil Farid European Company Limited,SC053003,FAR0008R
North Lincolnshire Council,http://data.ordnancesurvey.co.uk/id/7000000000025623,Highways & Transport,Materials,5004,17/06/2020,5865464,292.5,REVENUE,Heil Farid European Company Limited,SC053003,FAR0008R
North Lincolnshire Council,http://data.ordnancesurvey.co.uk/id/7000000000025623,Childrens & Education,Payments To Private Orgs,6002,10/06/2020,5862131,507.99,REVENUE,Helen Allen,,ALL0291L
North Lincolnshire Council,http://data.ordnancesurvey.co.uk/id/7000000000025623,Adult Social Care,Other Supplies & Services,5799,24/06/2020,5868089,230.25,REVENUE,He Words Ltd,,HEW0030W
North Lincolnshire Council,http://data.ordnancesurvey.co.uk/id/7000000000025623,Childrens & Education,Client Related Costs,5534,19/06/2020,5865735,230.25,REVENUE,He Words Ltd,,HEW0030W
North Lincolnshire Council,http://data.ordnancesurvey.co.uk/id/7000000000025623,Childrens & Education,Client Related Costs,5534,24/06/2020,5868083,233.5,REVENUE,He Words Ltd,,HEW0030W
North Lincolnshire Council,http://data.ordnancesurvey.co.uk/id/7000000000025623,Childrens & Education,Other Supplies & Services,5799,03/06/2020,5858731,272.75,REVENUE,He Words Ltd,,HEW0030W
North Lincolnshire Council,http://data.ordnancesurvey.co.uk/id/7000000000025623,Childrens & Education,Other Supplies & Services,5799,03/06/2020,5858734,272.75,REVENUE,He Words Ltd,,HEW0030W
North Lincolnshire Council,http://data.ordnancesurvey.co.uk/id/7000000000025623,Childrens & Education,Other Supplies & Services,5799,10/06/2020,5861354,323.75,REVENUE,He Words Ltd,,HEW0030W
North Lincolnshire Council,http://data.ordnancesurvey.co.uk/id/7000000000025623,Childrens & Education,Other Supplies & Services,5799,10/06/2020,5862545,216.06,REVENUE,He Words Ltd,,HEW0030W
North Lincolnshire Council,http://data.ordnancesurvey.co.uk/id/7000000000025623,Childrens & Education,Other Supplies & Services,5799,10/06/2020,5862548,510.64,REVENUE,He Words Ltd,,HEW0030W
North Lincolnshire Council,http://data.ordnancesurvey.co.uk/id/7000000000025623,Childrens & Education,Other Supplies & Services,5799,19/06/2020,5866091,901.81,REVENUE,He Words Ltd,,HEW0030W
North Lincolnshire Council,http://data.ordnancesurvey.co.uk/id/7000000000025623,Childrens & Education,Other Supplies & Services,5799,19/06/2020,5866583,"1,972.25",REVENUE,He Words Ltd,,HEW0030W
North Lincolnshire Council,http://data.ordnancesurvey.co.uk/id/7000000000025623,Childrens & Education,Other Supplies & Services,5799,19/06/2020,5866584,354.77,REVENUE,He Words Ltd,,HEW0030W
North Lincolnshire Council,http://data.ordnancesurvey.co.uk/id/7000000000025623,Childrens & Education,Other Supplies & Services,5799,19/06/2020,5866663,315.25,REVENUE,He Words Ltd,,HEW0030W
North Lincolnshire Council,http://data.ordnancesurvey.co.uk/id/7000000000025623,Childrens & Education,Other Supplies & Services,5799,19/06/2020,5866672,272.75,REVENUE,He Words Ltd,,HEW0030W
North Lincolnshire Council,http://data.ordnancesurvey.co.uk/id/7000000000025623,Childrens & Education,Other Supplies & Services,5799,19/06/2020,5866674,"1,019.30",REVENUE,He Words Ltd,,HEW0030W
North Lincolnshire Council,http://data.ordnancesurvey.co.uk/id/7000000000025623,Childrens & Education,Other Supplies & Services,5799,24/06/2020,5866777,272.75,REVENUE,He Words Ltd,,HEW0030W
North Lincolnshire Council,http://data.ordnancesurvey.co.uk/id/7000000000025623,Childrens & Education,Other Supplies & Services,5799,24/06/2020,5867088,869.57,REVENUE,He Words Ltd,,HEW0030W
North Lincolnshire Council,http://data.ordnancesurvey.co.uk/id/7000000000025623,Childrens & Education,Other Supplies & Services,5799,24/06/2020,5868085,366.34,REVENUE,He Words Ltd,,HEW0030W
North Lincolnshire Council,http://data.ordnancesurvey.co.uk/id/7000000000025623,Childrens & Education,Other Supplies & Services,5799,24/06/2020,5868091,272.75,REVENUE,He Words Ltd,,HEW0030W
North Lincolnshire Council,http://data.ordnancesurvey.co.uk/id/7000000000025623,Childrens & Education,Payments To Private Orgs,6002,01/07/2020,5870723,"2,250.00",REVENUE,Hibaldstow Academy,,HIB0065B
North Lincolnshire Council,http://data.ordnancesurvey.co.uk/id/7000000000025623,Culture & Related Services,Other Supplies & Services,5799,26/06/2020,5870306,"8,653.00",REVENUE,Hibaldstow Parish Council,,HIB0003B
North Lincolnshire Council,http://data.ordnancesurvey.co.uk/id/7000000000025623,Highways & Transport,Other Supplies & Services,5799,26/06/2020,5870307,965,REVENUE,Hibaldstow Parish Council,,HIB0003B
North Lincolnshire Council,http://data.ordnancesurvey.co.uk/id/7000000000025623,Central Services To Public,Business Support Grants,6090,03/06/2020,5860259,"10,000.00",REVENUE,Hibaldstow Village Hall,,CD025770
North Lincolnshire Council,http://data.ordnancesurvey.co.uk/id/7000000000025623,Adult Social Care,Payments To Private Orgs,6002,03/06/2020,5860158,"1,318.80",REVENUE,Hica Ltd,,ISF0010F
North Lincolnshire Council,http://data.ordnancesurvey.co.uk/id/7000000000025623,Central Services To Public,Business Support Grants,6090,17/06/2020,5866101,"10,000.00",REVENUE,Highfield House Bowls Club,,CD026670
North Lincolnshire Council,http://data.ordnancesurvey.co.uk/id/7000000000025623,"Culture,Env,Reg & Planning Cap",External Fees,A083,03/06/2020,5858082,"25,000.00",CAPITAL,Highways England Co Ltd,,HIG0070G
North Lincolnshire Council,http://data.ordnancesurvey.co.uk/id/7000000000025623,Childrens & Education,Repair & Maintenance Costs,3000,19/06/2020,5865549,160.14,REVENUE,Hill Builders (Humberside) Ltd,1876857,HIL0003L
North Lincolnshire Council,http://data.ordnancesurvey.co.uk/id/7000000000025623,Childrens & Education Services,Building/Construction,A082,12/06/2020,5863988,"23,292.00",REVENUE,Hill Builders (Humberside) Ltd,1876857,HIL0003L
North Lincolnshire Council,http://data.ordnancesurvey.co.uk/id/7000000000025623,"Culture,Env,Reg & Planning Cap",Building/Construction,A082,12/06/2020,5863800,"3,475.40",CAPITAL,Hill Builders (Humberside) Ltd,1876857,HIL0003L
North Lincolnshire Council,http://data.ordnancesurvey.co.uk/id/7000000000025623,Culture & Related Services,Repair & Maintenance Costs,3000,19/06/2020,5865549,"2,029.61",REVENUE,Hill Builders (Humberside) Ltd,1876857,HIL0003L
North Lincolnshire Council,http://data.ordnancesurvey.co.uk/id/7000000000025623,Environmental & Regulatory Svs,Repair & Maintenance Costs,3000,19/06/2020,5865549,721.84,REVENUE,Hill Builders (Humberside) Ltd,1876857,HIL0003L
North Lincolnshire Council,http://data.ordnancesurvey.co.uk/id/7000000000025623,Fin&Inv I&E,Equipment Purchase,5001,19/06/2020,5865549,118.31,REVENUE,Hill Builders (Humberside) Ltd,1876857,HIL0003L
North Lincolnshire Council,http://data.ordnancesurvey.co.uk/id/7000000000025623,Highways & Transport,Repair & Maintenance Costs,3000,19/06/2020,5865549,101.2,REVENUE,Hill Builders (Humberside) Ltd,1876857,HIL0003L
North Lincolnshire Council,http://data.ordnancesurvey.co.uk/id/7000000000025623,Non Distributed Costs,Repair & Maintenance Costs,3000,19/06/2020,5865549,186.94,REVENUE,Hill Builders (Humberside) Ltd,1876857,HIL0003L
North Lincolnshire Council,http://data.ordnancesurvey.co.uk/id/7000000000025623,Childrens & Education,Payments To Private Orgs,6002,03/06/2020,5859524,840,REVENUE,Hill House School,,HIL0630L
North Lincolnshire Council,http://data.ordnancesurvey.co.uk/id/7000000000025623,Environmental & Regulatory Svs,Other Professional Fees,5829,05/06/2020,5860814,510.75,REVENUE,Hilton Studio,,HIL0023L
North Lincolnshire Council,http://data.ordnancesurvey.co.uk/id/7000000000025623,Central Services To Public,Business Support Grants,6090,10/06/2020,5863242,"10,000.00",REVENUE,Historic Motor And Sail Cic,,CD025970
North Lincolnshire Council,http://data.ordnancesurvey.co.uk/id/7000000000025623,Fin&Inv I&E,Other Supplies & Services,5799,19/06/2020,5862361,"5,650.00",REVENUE,Hmrc Fss Accounts Receivable,,VAL0021L
North Lincolnshire Council,http://data.ordnancesurvey.co.uk/id/7000000000025623,Adult Social Care,Repair & Maintenance Costs,3000,19/06/2020,5865719,693.64,REVENUE,Holls Electrical Ltd,1421429,HOL0021L
North Lincolnshire Council,http://data.ordnancesurvey.co.uk/id/7000000000025623,Childrens & Education,Repair & Maintenance Costs,3000,19/06/2020,5865719,74.16,REVENUE,Holls Electrical Ltd,1421429,HOL0021L
North Lincolnshire Council,http://data.ordnancesurvey.co.uk/id/7000000000025623,Corporate And Democratic Core,Repair & Maintenance Costs,3000,19/06/2020,5865719,89.9,REVENUE,Holls Electrical Ltd,1421429,HOL0021L
North Lincolnshire Council,http://data.ordnancesurvey.co.uk/id/7000000000025623,Non Distributed Costs,Repair & Maintenance Costs,3000,17/06/2020,5865226,"1,610.51",REVENUE,Holls Electrical Ltd,1421429,HOL0021L
North Lincolnshire Council,http://data.ordnancesurvey.co.uk/id/7000000000025623,Planning Services,Repair & Maintenance Costs,3000,19/06/2020,5865719,62.4,REVENUE,Holls Electrical Ltd,1421429,HOL0021L
North Lincolnshire Council,http://data.ordnancesurvey.co.uk/id/7000000000025623,Childrens & Education,Payments To Private Orgs,6002,03/06/2020,5859580,"44,820.76",REVENUE,Hollybank,,HOL0116L
North Lincolnshire Council,http://data.ordnancesurvey.co.uk/id/7000000000025623,Childrens & Education,Payments To Private Orgs,6002,03/06/2020,5859581,"13,440.16",REVENUE,Hollybank,,HOL0116L
North Lincolnshire Council,http://data.ordnancesurvey.co.uk/id/7000000000025623,Childrens & Education,Payments To Private Orgs,6002,10/06/2020,5862175,"2,616.47",REVENUE,Home Comforts Childminding,,HOM0132M
North Lincolnshire Council,http://data.ordnancesurvey.co.uk/id/7000000000025623,Childrens & Education,Home To School Transport,4201,10/06/2020,5862333,"6,360.00",REVENUE,Hornsby Travel Services Ltd,1490232,HOR0122R
North Lincolnshire Council,http://data.ordnancesurvey.co.uk/id/7000000000025623,Highways & Transport,Concessionary Fares,6010,05/06/2020,5859768,"32,400.00",REVENUE,Hornsby Travel Services Ltd,1490232,HOR0122R
North Lincolnshire Council,http://data.ordnancesurvey.co.uk/id/7000000000025623,Highways & Transport,Passenger Transport,6011,19/06/2020,5865749,"6,696.00",REVENUE,Hornsby Travel Services Ltd,1490232,HOR0122R
North Lincolnshire Council,http://data.ordnancesurvey.co.uk/id/7000000000025623,Highways & Transport,Passenger Transport,6011,19/06/2020,5866391,"25,641.33",REVENUE,Hornsby Travel Services Ltd,1490232,HOR0122R
North Lincolnshire Council,http://data.ordnancesurvey.co.uk/id/7000000000025623,Highways & Transport,Passenger Transport,6011,19/06/2020,5866392,"6,812.00",REVENUE,Hornsby Travel Services Ltd,1490232,HOR0122R
North Lincolnshire Council,http://data.ordnancesurvey.co.uk/id/7000000000025623,Highways & Transport,Passenger Transport,6011,19/06/2020,5866536,"6,943.00",REVENUE,Hornsby Travel Services Ltd,1490232,HOR0122R
North Lincolnshire Council,http://data.ordnancesurvey.co.uk/id/7000000000025623,Highways & Transport,Passenger Transport,6011,19/06/2020,5866537,"6,844.50",REVENUE,Hornsby Travel Services Ltd,1490232,HOR0122R
North Lincolnshire Council,http://data.ordnancesurvey.co.uk/id/7000000000025623,Childrens & Education,Payments To Private Orgs,6002,10/06/2020,5861026,"12,816.49",REVENUE,Horton Establishments Ltd,,HOR0164R
North Lincolnshire Council,http://data.ordnancesurvey.co.uk/id/7000000000025623,Adult Social Care,Payments To Private Orgs,6002,03/06/2020,5860160,"2,352.00",REVENUE,Housing & Support Solutions Ltd,,ISF0014F
North Lincolnshire Council,http://data.ordnancesurvey.co.uk/id/7000000000025623,Adult Social Care,Payments To Private Orgs,6002,03/06/2020,5860160,"24,018.56",REVENUE,Housing & Support Solutions Ltd,,ISF0014F
North Lincolnshire Council,http://data.ordnancesurvey.co.uk/id/7000000000025623,Adult Social Care,Payments To Private Orgs,6002,05/06/2020,5860154,"11,263.44",REVENUE,Housing & Support Solutions Ltd,,HOU0264U
North Lincolnshire Council,http://data.ordnancesurvey.co.uk/id/7000000000025623,Adult Social Care,Payments To Private Orgs,6002,12/06/2020,5864026,"13,010.51",REVENUE,Housing & Support Solutions Ltd,,HOU0264U
North Lincolnshire Council,http://data.ordnancesurvey.co.uk/id/7000000000025623,Childrens & Education,Payments To Other La'S,6003,01/07/2020,5870538,"74,299.00",REVENUE,Hull City Council,,KIN0002N
North Lincolnshire Council,http://data.ordnancesurvey.co.uk/id/7000000000025623,Corporate And Democratic Core,"Licenses, Subs & Memberships",5510,24/06/2020,5868157,"50,000.00",REVENUE,Hull City Council,,KIN0002N
North Lincolnshire Council,http://data.ordnancesurvey.co.uk/id/7000000000025623,Highways & Transport,Equipment Hire/Rent,5002,05/06/2020,5852036,240,REVENUE,Humberside Aid Plant Hire Ltd,1207398,HUM0020M
North Lincolnshire Council,http://data.ordnancesurvey.co.uk/id/7000000000025623,Highways & Transport,Equipment Hire/Rent,5002,05/06/2020,5852038,960,REVENUE,Humberside Aid Plant Hire Ltd,1207398,HUM0020M
North Lincolnshire Council,http://data.ordnancesurvey.co.uk/id/7000000000025623,Highways & Transport,Equipment Hire/Rent,5002,05/06/2020,5852043,884,REVENUE,Humberside Aid Plant Hire Ltd,1207398,HUM0020M
North Lincolnshire Council,http://data.ordnancesurvey.co.uk/id/7000000000025623,Highways & Transport,Equipment Hire/Rent,5002,05/06/2020,5861066,984,REVENUE,Humberside Aid Plant Hire Ltd,1207398,HUM0020M
North Lincolnshire Council,http://data.ordnancesurvey.co.uk/id/7000000000025623,Highways & Transport,Other Supplies & Services,5799,05/06/2020,5859808,475,REVENUE,Humberside Materials Laboratory Ltd,,HUM0312M
North Lincolnshire Council,http://data.ordnancesurvey.co.uk/id/7000000000025623,Central Services To Public,Payments To Private Orgs,6002,12/06/2020,5863470,"10,260.00",REVENUE,Humber & Wolds Rural Comm Council,4606085,HUM0307M
North Lincolnshire Council,http://data.ordnancesurvey.co.uk/id/7000000000025623,Childrens & Education,Payments To Private Orgs,6002,01/07/2020,5870537,862.5,REVENUE,Huntcliff School,,HUN0039N
North Lincolnshire Council,http://data.ordnancesurvey.co.uk/id/7000000000025623,Childrens & Education,Payments To Private Orgs,6002,01/07/2020,5871763,630,REVENUE,Huntcliff School,,HUN0039N
North Lincolnshire Council,http://data.ordnancesurvey.co.uk/id/7000000000025623,Fin&Inv I&E,Grounds Maintenance,3010,10/06/2020,5861364,482,REVENUE,Hydrainer Pump Hire Ltd,1522204,HYD0065D
North Lincolnshire Council,http://data.ordnancesurvey.co.uk/id/7000000000025623,Fin&Inv I&E,Grounds Maintenance,3010,10/06/2020,5862599,338,REVENUE,Hydrainer Pumps Ltd,,HYD0014D
North Lincolnshire Council,http://data.ordnancesurvey.co.uk/id/7000000000025623,Adult Social Care,Repair & Maintenance Costs,3000,19/06/2020,5866236,247,REVENUE,Iag Developments Ltd,5073636,IGA0021A
North Lincolnshire Council,http://data.ordnancesurvey.co.uk/id/7000000000025623,Central Services To Public,Repair & Maintenance Costs,3000,03/06/2020,5859547,0,REVENUE,Iag Developments Ltd,5073636,IGA0021A
North Lincolnshire Council,http://data.ordnancesurvey.co.uk/id/7000000000025623,Central Services To Public,Repair & Maintenance Costs,3000,03/06/2020,5859553,0,REVENUE,Iag Developments Ltd,5073636,IGA0021A
North Lincolnshire Council,http://data.ordnancesurvey.co.uk/id/7000000000025623,Childrens & Education,Repair & Maintenance Costs,3000,03/06/2020,5859547,394,REVENUE,Iag Developments Ltd,5073636,IGA0021A
North Lincolnshire Council,http://data.ordnancesurvey.co.uk/id/7000000000025623,Childrens & Education,Repair & Maintenance Costs,3000,19/06/2020,5866236,319.4,REVENUE,Iag Developments Ltd,5073636,IGA0021A
North Lincolnshire Council,http://data.ordnancesurvey.co.uk/id/7000000000025623,Culture & Related Services,Repair & Maintenance Costs,3000,03/06/2020,5859553,591,REVENUE,Iag Developments Ltd,5073636,IGA0021A
North Lincolnshire Council,http://data.ordnancesurvey.co.uk/id/7000000000025623,Central Services To Public,Business Support Grants,6090,24/06/2020,5869497,"10,000.00",REVENUE,Icc (Trailer Repair Specialists) Ltd,,CD026990
North Lincolnshire Council,http://data.ordnancesurvey.co.uk/id/7000000000025623,Corporate And Democratic Core,It Software-Maintenance,5053,10/06/2020,5861413,"4,546.34",REVENUE,Ideagen Mk Ltd,3528524,IDE0050E
North Lincolnshire Council,http://data.ordnancesurvey.co.uk/id/7000000000025623,Childrens & Education,Payments To Private Orgs,6002,10/06/2020,5862177,"8,025.83",REVENUE,I Learn Education Crowle,,ILE0012E
North Lincolnshire Council,http://data.ordnancesurvey.co.uk/id/7000000000025623,Childrens & Education,Payments To Private Orgs,6002,10/06/2020,5862130,"11,824.84",REVENUE,I Learn Education Ltd,,ABC0063C
North Lincolnshire Council,http://data.ordnancesurvey.co.uk/id/7000000000025623,Childrens & Education,Payments To Private Orgs,6002,10/06/2020,5862176,"15,110.72",REVENUE,I Learn Education Ltd,,ILE0004E
North Lincolnshire Council,http://data.ordnancesurvey.co.uk/id/7000000000025623,Childrens & Education,Materials,5004,24/06/2020,5868633,"6,118.24",REVENUE,Imperial Commercials Ltd,653665,LEX0001X
North Lincolnshire Council,http://data.ordnancesurvey.co.uk/id/7000000000025623,Central Services To Public,Business Support Grants,6090,03/06/2020,5860255,"10,000.00",REVENUE,Imperial Hall,,CD025730
North Lincolnshire Council,http://data.ordnancesurvey.co.uk/id/7000000000025623,Central Services To Public,Equipment Purchase,5001,10/06/2020,5860228,"1,346.40",REVENUE,Imperial Polythene Products,,IMP0014P
North Lincolnshire Council,http://data.ordnancesurvey.co.uk/id/7000000000025623,Childrens & Education,Payments To Private Orgs,6002,10/06/2020,5861103,"14,171.34",REVENUE,Independent Childcare Group Of Schools Ltd,,CAM0185M
North Lincolnshire Council,http://data.ordnancesurvey.co.uk/id/7000000000025623,Childrens & Education,Payments To Private Orgs,6002,24/06/2020,5868501,"14,229.00",REVENUE,Independent Childcare Group Of Schools Ltd,,CLI0011I
North Lincolnshire Council,http://data.ordnancesurvey.co.uk/id/7000000000025623,Childrens & Education,Payments To Private Orgs,6002,24/06/2020,5868531,"6,500.00",REVENUE,Independent Childcare Group Of Schools Ltd,,CLI0011I
North Lincolnshire Council,http://data.ordnancesurvey.co.uk/id/7000000000025623,Childrens & Education,Payments To Private Orgs,6002,24/06/2020,5868534,"18,055.33",REVENUE,Independent Childcare Group Of Schools Ltd,,CLI0011I
North Lincolnshire Council,http://data.ordnancesurvey.co.uk/id/7000000000025623,Central Services To Public,Equipment Purchase,5001,17/06/2020,5864646,455,REVENUE,Innovation Supplies Ltd,6885071,INN0130N
North Lincolnshire Council,http://data.ordnancesurvey.co.uk/id/7000000000025623,Highways & Transport,Stock Purchases & Adjustments,5030,03/06/2020,5854602,"1,034.40",REVENUE,Instarmac Group Plc,1324925,INS0024S
North Lincolnshire Council,http://data.ordnancesurvey.co.uk/id/7000000000025623,Highways & Transport,Stock Purchases & Adjustments,5030,03/06/2020,5854627,"1,093.04",REVENUE,Instarmac Group Plc,1324925,INS0024S
North Lincolnshire Council,http://data.ordnancesurvey.co.uk/id/7000000000025623,Highways & Transport,Stock Purchases & Adjustments,5030,03/06/2020,5854631,954.24,REVENUE,Instarmac Group Plc,1324925,INS0024S
North Lincolnshire Council,http://data.ordnancesurvey.co.uk/id/7000000000025623,Highways & Transport,Stock Purchases & Adjustments,5030,17/06/2020,5859485,"1,034.40",REVENUE,Instarmac Group Plc,1324925,INS0024S
North Lincolnshire Council,http://data.ordnancesurvey.co.uk/id/7000000000025623,Corporate And Democratic Core,Repair & Maintenance Costs,3000,03/06/2020,5859559,839.37,REVENUE,Integrated Utility Services Ltd,,INT0088T
North Lincolnshire Council,http://data.ordnancesurvey.co.uk/id/7000000000025623,Culture & Related Services,Repair & Maintenance Costs,3000,03/06/2020,5859559,838.74,REVENUE,Integrated Utility Services Ltd,,INT0088T
North Lincolnshire Council,http://data.ordnancesurvey.co.uk/id/7000000000025623,Adult Social Care Capital,Other Costs,A085,05/06/2020,5860199,"1,120.31",CAPITAL,Invacare Ltd,5178693,INV0022V
North Lincolnshire Council,http://data.ordnancesurvey.co.uk/id/7000000000025623,Childrens & Education,Home To School Transport,4201,03/06/2020,5859607,"5,195.37",REVENUE,Isle Coaches,,COA0039A
North Lincolnshire Council,http://data.ordnancesurvey.co.uk/id/7000000000025623,Highways & Transport,Concessionary Fares,6010,05/06/2020,5859775,"5,000.00",REVENUE,Isle Coaches,,COA0039A
North Lincolnshire Council,http://data.ordnancesurvey.co.uk/id/7000000000025623,Childrens & Education,Payments To Private Orgs,6002,17/06/2020,5864468,"1,936.51",REVENUE,Isle Education Trust,7814150,ISL0029L
North Lincolnshire Council,http://data.ordnancesurvey.co.uk/id/7000000000025623,Childrens & Education,Payments To Private Orgs,6002,24/06/2020,5866228,"9,000.00",REVENUE,Isle Education Trust,7814150,ISL0029L
North Lincolnshire Council,http://data.ordnancesurvey.co.uk/id/7000000000025623,Culture & Related Services,Equipment Maint.& Repair,5003,10/06/2020,5862533,993.92,REVENUE,Isle Education Trust Enterprises Limited,7814150,ISL0101L
North Lincolnshire Council,http://data.ordnancesurvey.co.uk/id/7000000000025623,Central Services To Public,Business Support Grants,6090,03/06/2020,5860254,"10,000.00",REVENUE,Ivs Motors Ltd,,CD025720
North Lincolnshire Council,http://data.ordnancesurvey.co.uk/id/7000000000025623,Highways & Transport,"Clothing, Uniforms & Laundry",5301,17/06/2020,5865506,566.25,REVENUE,Jacksons Workwear Rental Ltd,193856,JAC0171C
North Lincolnshire Council,http://data.ordnancesurvey.co.uk/id/7000000000025623,Corporate And Democratic Core,Other Professional Fees,5829,19/06/2020,5866580,0,REVENUE,Jacobs,,JAC0011C
North Lincolnshire Council,http://data.ordnancesurvey.co.uk/id/7000000000025623,Corporate And Democratic Core,Other Professional Fees,5829,19/06/2020,5866604,0,REVENUE,Jacobs,,JAC0011C
North Lincolnshire Council,http://data.ordnancesurvey.co.uk/id/7000000000025623,Central Services To Public,Business Support Grants,6090,11/06/2020,5863816,"10,000.00",REVENUE,Jc Racing Garage,,CD026270
North Lincolnshire Council,http://data.ordnancesurvey.co.uk/id/7000000000025623,Central Services To Public,Business Support Grants,6090,03/06/2020,5860230,"10,000.00",REVENUE,Jeff Taylor Motors Ltd,,CD025480
North Lincolnshire Council,http://data.ordnancesurvey.co.uk/id/7000000000025623,Central Services To Public,Business Support Grants,6090,10/06/2020,5863255,"10,000.00",REVENUE,Jennys Nails,,CD026100
North Lincolnshire Council,http://data.ordnancesurvey.co.uk/id/7000000000025623,Highways & Transport,Other Supplies & Services,5799,19/06/2020,5862089,"4,060.73",REVENUE,J Mccann & Co Ltd,8326109,JMC0004C
North Lincolnshire Council,http://data.ordnancesurvey.co.uk/id/7000000000025623,Adult Social Care,Payments To Private Orgs,6002,03/06/2020,5860164,"25,455.80",REVENUE,Jme Care Ltd,,ISF0035F
North Lincolnshire Council,http://data.ordnancesurvey.co.uk/id/7000000000025623,Central Services To Public,Business Support Grants,6090,17/06/2020,5866115,"25,000.00",REVENUE,J&N Food Equipment Ltd,,CD026810
North Lincolnshire Council,http://data.ordnancesurvey.co.uk/id/7000000000025623,Childrens & Education,Payments To Private Orgs,6002,10/06/2020,5862171,557.55,REVENUE,Joanne Hargrave,,HAR0767R
North Lincolnshire Council,http://data.ordnancesurvey.co.uk/id/7000000000025623,Central Services To Public,Business Support Grants,6090,12/06/2020,5864403,"10,000.00",REVENUE,John Jackson & Sons Ltd,,CD026480
North Lincolnshire Council,http://data.ordnancesurvey.co.uk/id/7000000000025623,Childrens & Education,Payments To Private Orgs,6002,01/07/2020,5870688,"22,000.00",REVENUE,John Leggott College,,JOH0003H
North Lincolnshire Council,http://data.ordnancesurvey.co.uk/id/7000000000025623,Housing Services,Fees & Charges Income,9002,19/06/2020,5866594,-718.94,REVENUE,Jp Developers Limited,,JPD0001D
North Lincolnshire Council,http://data.ordnancesurvey.co.uk/id/7000000000025623,Housing Services,Fees & Charges Income,9002,19/06/2020,5866597,-62.17,REVENUE,Jp Developers Limited,,JPD0001D
North Lincolnshire Council,http://data.ordnancesurvey.co.uk/id/7000000000025623,Central Services To Public,Business Support Grants,6090,17/06/2020,5866117,"25,000.00",REVENUE,J & S Venture Ltd,,CD026830
North Lincolnshire Council,http://data.ordnancesurvey.co.uk/id/7000000000025623,Childrens & Education,Payments To Private Orgs,6002,26/06/2020,5869374,"1,200.00",REVENUE,Julia Brooke,,BRO0315O
North Lincolnshire Council,http://data.ordnancesurvey.co.uk/id/7000000000025623,Fin&Inv I&E,Provisions,5201,05/06/2020,5860736,268.04,REVENUE,J W Young (Butcher) Ltd,1348637,JWY0001Y
North Lincolnshire Council,http://data.ordnancesurvey.co.uk/id/7000000000025623,Fin&Inv I&E,Provisions,5201,01/07/2020,5871634,276.72,REVENUE,J W Young (Butcher) Ltd,1348637,JWY0001Y
North Lincolnshire Council,http://data.ordnancesurvey.co.uk/id/7000000000025623,Fin&Inv I&E,It Software-Maintenance,5053,12/06/2020,5863536,"3,860.10",REVENUE,Kappa Lambda Squared Ltd (Kl2),,KAP0022P
North Lincolnshire Council,http://data.ordnancesurvey.co.uk/id/7000000000025623,Central Services To Public,Business Support Grants,6090,12/06/2020,5864399,"10,000.00",REVENUE,Karen Walker,,CD026440
North Lincolnshire Council,http://data.ordnancesurvey.co.uk/id/7000000000025623,Childrens & Education,Client Transport Costs,6092,10/06/2020,5861440,300,REVENUE,Kaths Kabs,1967063,KAT0001T
North Lincolnshire Council,http://data.ordnancesurvey.co.uk/id/7000000000025623,Childrens & Education,Client Transport Costs,6092,10/06/2020,5861442,300,REVENUE,Kaths Kabs,1967063,KAT0001T
North Lincolnshire Council,http://data.ordnancesurvey.co.uk/id/7000000000025623,Childrens & Education,Client Transport Costs,6092,10/06/2020,5861446,850.33,REVENUE,Kaths Kabs,1967063,KAT0001T
North Lincolnshire Council,http://data.ordnancesurvey.co.uk/id/7000000000025623,Childrens & Education,Client Transport Costs,6092,10/06/2020,5861450,640,REVENUE,Kaths Kabs,1967063,KAT0001T
North Lincolnshire Council,http://data.ordnancesurvey.co.uk/id/7000000000025623,Childrens & Education,Client Transport Costs,6092,10/06/2020,5861453,"1,143.33",REVENUE,Kaths Kabs,1967063,KAT0001T
North Lincolnshire Council,http://data.ordnancesurvey.co.uk/id/7000000000025623,Childrens & Education,Client Transport Costs,6092,10/06/2020,5861459,976.67,REVENUE,Kaths Kabs,1967063,KAT0001T
North Lincolnshire Council,http://data.ordnancesurvey.co.uk/id/7000000000025623,Childrens & Education,Client Transport Costs,6092,10/06/2020,5861461,"2,150.00",REVENUE,Kaths Kabs,1967063,KAT0001T
North Lincolnshire Council,http://data.ordnancesurvey.co.uk/id/7000000000025623,Childrens & Education,Client Transport Costs,6092,10/06/2020,5861462,"1,228.33",REVENUE,Kaths Kabs,1967063,KAT0001T
North Lincolnshire Council,http://data.ordnancesurvey.co.uk/id/7000000000025623,Childrens & Education,Client Transport Costs,6092,10/06/2020,5861463,519.33,REVENUE,Kaths Kabs,1967063,KAT0001T
North Lincolnshire Council,http://data.ordnancesurvey.co.uk/id/7000000000025623,Childrens & Education,Client Transport Costs,6092,10/06/2020,5861464,398.67,REVENUE,Kaths Kabs,1967063,KAT0001T
North Lincolnshire Council,http://data.ordnancesurvey.co.uk/id/7000000000025623,Childrens & Education,Client Transport Costs,6092,10/06/2020,5861465,344,REVENUE,Kaths Kabs,1967063,KAT0001T
North Lincolnshire Council,http://data.ordnancesurvey.co.uk/id/7000000000025623,Childrens & Education,Client Transport Costs,6092,10/06/2020,5861466,690,REVENUE,Kaths Kabs,1967063,KAT0001T
North Lincolnshire Council,http://data.ordnancesurvey.co.uk/id/7000000000025623,Childrens & Education,Payments To Private Orgs,6002,10/06/2020,5862174,665.91,REVENUE,Katie Holland,,HOL0470L
North Lincolnshire Council,http://data.ordnancesurvey.co.uk/id/7000000000025623,Central Services To Public,Business Support Grants,6090,11/06/2020,5863815,"10,000.00",REVENUE,Kbl Engineering Ltd,,CD026260
North Lincolnshire Council,http://data.ordnancesurvey.co.uk/id/7000000000025623,Central Services To Public,Equipment Purchase,5001,24/06/2020,5868483,415.2,REVENUE,Kdg Work Wear Ltd,4630104,KDG0001G
North Lincolnshire Council,http://data.ordnancesurvey.co.uk/id/7000000000025623,Culture & Related Services,Other Supplies & Services,5799,26/06/2020,5870308,"3,693.00",REVENUE,Keadby With Althorpe Parish Council,,KEA0023A
North Lincolnshire Council,http://data.ordnancesurvey.co.uk/id/7000000000025623,Childrens & Education,Payments To Private Orgs,6002,26/06/2020,5869373,"1,500.00",REVENUE,Keelan Cooke,,COO0652O
North Lincolnshire Council,http://data.ordnancesurvey.co.uk/id/7000000000025623,Central Services To Public,Business Support Grants,6090,03/06/2020,5860242,"10,000.00",REVENUE,Keith Anderson,,CD025600
North Lincolnshire Council,http://data.ordnancesurvey.co.uk/id/7000000000025623,Adult Social Care,Payments To Private Orgs,6002,03/06/2020,5859672,519.82,REVENUE,Kent County Council,,KEN0052N
North Lincolnshire Council,http://data.ordnancesurvey.co.uk/id/7000000000025623,Adult Social Care,Payments To Private Orgs,6002,03/06/2020,5859673,519.82,REVENUE,Kent County Council,,KEN0052N
North Lincolnshire Council,http://data.ordnancesurvey.co.uk/id/7000000000025623,Environmental & Regulatory Svs,Other Supplies & Services,5799,03/06/2020,5858091,690,REVENUE,Key Security (Uk) Ltd,6168252,KEY0017Y
North Lincolnshire Council,http://data.ordnancesurvey.co.uk/id/7000000000025623,Childrens & Education,It Software-Maintenance,5053,10/06/2020,5862588,330,REVENUE,Keysoft Solutions Ltd,,KEY0008Y
North Lincolnshire Council,http://data.ordnancesurvey.co.uk/id/7000000000025623,Childrens & Education,It Software-Maintenance,5053,19/06/2020,5866370,"2,815.00",REVENUE,Keysoft Solutions Ltd,,KEY0008Y
North Lincolnshire Council,http://data.ordnancesurvey.co.uk/id/7000000000025623,Childrens & Education,Payments To Private Orgs,6002,24/06/2020,5868535,"11,088.00",REVENUE,Keys Pce Ltd,10660100,KEY0164Y
North Lincolnshire Council,http://data.ordnancesurvey.co.uk/id/7000000000025623,Childrens & Education,Payments To Private Orgs,6002,24/06/2020,5868536,"3,696.00",REVENUE,Keys Pce Ltd,10660100,KEY0164Y
North Lincolnshire Council,http://data.ordnancesurvey.co.uk/id/7000000000025623,Childrens & Education,Payments To Private Orgs,6002,10/06/2020,5862179,"2,019.45",REVENUE,Kidz Club,,KID0044D
North Lincolnshire Council,http://data.ordnancesurvey.co.uk/id/7000000000025623,Culture & Related Services,Repair & Maintenance Costs,3000,03/06/2020,5859417,950,REVENUE,Kingspan Light & Air (Uk & Ireland) Ltd,,AIR0002R
North Lincolnshire Council,http://data.ordnancesurvey.co.uk/id/7000000000025623,Culture & Related Services,Repair & Maintenance Costs,3000,03/06/2020,5859419,583,REVENUE,Kingspan Light & Air (Uk & Ireland) Ltd,,AIR0002R
North Lincolnshire Council,http://data.ordnancesurvey.co.uk/id/7000000000025623,Environmental & Regulatory Svs,Other Premises Costs,3390,03/06/2020,5859409,"3,165.29",REVENUE,Kingspan Water & Energy Ltd,,KIN0061N
North Lincolnshire Council,http://data.ordnancesurvey.co.uk/id/7000000000025623,Environmental & Regulatory Svs,Other Premises Costs,3390,03/06/2020,5859414,"1,596.27",REVENUE,Kingspan Water & Energy Ltd,,KIN0061N
North Lincolnshire Council,http://data.ordnancesurvey.co.uk/id/7000000000025623,Childrens & Education,Payments To Private Orgs,6002,10/06/2020,5862180,"10,312.07",REVENUE,Kingsway Consulting Ltd,2808435,KIN0105N
North Lincolnshire Council,http://data.ordnancesurvey.co.uk/id/7000000000025623,Housing Services,Other Supplies & Services,5799,03/06/2020,5859400,280,REVENUE,Kirks Korner Ltd,,KIR0182R
North Lincolnshire Council,http://data.ordnancesurvey.co.uk/id/7000000000025623,Housing Services,Other Supplies & Services,5799,03/06/2020,5859401,280,REVENUE,Kirks Korner Ltd,,KIR0182R
North Lincolnshire Council,http://data.ordnancesurvey.co.uk/id/7000000000025623,Housing Services,Other Supplies & Services,5799,03/06/2020,5859413,280,REVENUE,Kirks Korner Ltd,,KIR0182R
North Lincolnshire Council,http://data.ordnancesurvey.co.uk/id/7000000000025623,Housing Services,Other Supplies & Services,5799,03/06/2020,5859415,280,REVENUE,Kirks Korner Ltd,,KIR0182R
North Lincolnshire Council,http://data.ordnancesurvey.co.uk/id/7000000000025623,Housing Services,Other Supplies & Services,5799,19/06/2020,5865764,331,REVENUE,Kirks Korner Ltd,,KIR0182R
North Lincolnshire Council,http://data.ordnancesurvey.co.uk/id/7000000000025623,Housing Services,Other Supplies & Services,5799,19/06/2020,5865766,280,REVENUE,Kirks Korner Ltd,,KIR0182R
North Lincolnshire Council,http://data.ordnancesurvey.co.uk/id/7000000000025623,Housing Services,Other Supplies & Services,5799,19/06/2020,5865767,280,REVENUE,Kirks Korner Ltd,,KIR0182R
North Lincolnshire Council,http://data.ordnancesurvey.co.uk/id/7000000000025623,Housing Services,Other Supplies & Services,5799,19/06/2020,5866129,280,REVENUE,Kirks Korner Ltd,,KIR0182R
North Lincolnshire Council,http://data.ordnancesurvey.co.uk/id/7000000000025623,Housing Services,Other Supplies & Services,5799,19/06/2020,5866173,280,REVENUE,Kirks Korner Ltd,,KIR0182R
North Lincolnshire Council,http://data.ordnancesurvey.co.uk/id/7000000000025623,Housing Services,Other Supplies & Services,5799,19/06/2020,5866202,280,REVENUE,Kirks Korner Ltd,,KIR0182R
North Lincolnshire Council,http://data.ordnancesurvey.co.uk/id/7000000000025623,Housing Services,Other Supplies & Services,5799,19/06/2020,5866206,280,REVENUE,Kirks Korner Ltd,,KIR0182R
North Lincolnshire Council,http://data.ordnancesurvey.co.uk/id/7000000000025623,Culture & Related Services,Other Supplies & Services,5799,26/06/2020,5870313,483,REVENUE,Kirmington And Croxton Parish Council,,KIR0007R
North Lincolnshire Council,http://data.ordnancesurvey.co.uk/id/7000000000025623,Highways & Transport,Other Supplies & Services,5799,26/06/2020,5870312,784,REVENUE,Kirmington And Croxton Parish Council,,KIR0007R
North Lincolnshire Council,http://data.ordnancesurvey.co.uk/id/7000000000025623,Culture & Related Services,Other Supplies & Services,5799,26/06/2020,5870310,"8,139.00",REVENUE,Kirton Lindsey Town Council,,KIR0003R
North Lincolnshire Council,http://data.ordnancesurvey.co.uk/id/7000000000025623,Highways & Transport,Other Supplies & Services,5799,26/06/2020,5870311,521,REVENUE,Kirton Lindsey Town Council,,KIR0003R
North Lincolnshire Council,http://data.ordnancesurvey.co.uk/id/7000000000025623,Childrens & Education,Payments To Private Orgs,6002,01/07/2020,5870689,"1,800.00",REVENUE,Kmec Scunthorpe,,KIP0010P
North Lincolnshire Council,http://data.ordnancesurvey.co.uk/id/7000000000025623,Childrens & Education,Payments To Private Orgs,6002,01/07/2020,5870731,"1,800.00",REVENUE,Kmec Scunthorpe,,KIP0010P
North Lincolnshire Council,http://data.ordnancesurvey.co.uk/id/7000000000025623,Culture & Related Services,Repair & Maintenance Costs,3000,03/06/2020,5859424,"4,450.00",REVENUE,Kole Architectural Glazing,7679371,KOL0020L
North Lincolnshire Council,http://data.ordnancesurvey.co.uk/id/7000000000025623,Central Services To Public,Business Support Grants,6090,03/06/2020,5860235,"10,000.00",REVENUE,Kvt Autos,,CD025530
North Lincolnshire Council,http://data.ordnancesurvey.co.uk/id/7000000000025623,Highways & Transport,Rents,3201,05/06/2020,5860330,425,REVENUE,Lambert Smith Hampton Group Ltd,,LAM0004M
North Lincolnshire Council,http://data.ordnancesurvey.co.uk/id/7000000000025623,Housing Services,Other Supplies & Services,5799,10/07/2020,5868088,602.4,REVENUE,Landlord Vision Ltd,8657841,LAN0321N
North Lincolnshire Council,http://data.ordnancesurvey.co.uk/id/7000000000025623,Adult Social Care Capital,Other Costs,A085,24/06/2020,5867067,318.69,CAPITAL,Langham,231734,LAN0155N
North Lincolnshire Council,http://data.ordnancesurvey.co.uk/id/7000000000025623,Public Health,Materials,5004,01/07/2020,5868669,955.14,REVENUE,Langham,231734,LAN0155N
North Lincolnshire Council,http://data.ordnancesurvey.co.uk/id/7000000000025623,Environmental & Regulatory Svs,Payments To Private Orgs,6002,12/06/2020,5863448,833,REVENUE,Las Metals,,LAS0020S
North Lincolnshire Council,http://data.ordnancesurvey.co.uk/id/7000000000025623,Childrens & Education,Payments To Private Orgs,6002,10/06/2020,5862183,475.2,REVENUE,Laurens Little Learners,,LAU0005U
North Lincolnshire Council,http://data.ordnancesurvey.co.uk/id/7000000000025623,Culture & Related Services,Materials,5004,24/06/2020,5864651,221.6,REVENUE,Lbs Horticulture Ltd,2961161,LBS0002S
North Lincolnshire Council,http://data.ordnancesurvey.co.uk/id/7000000000025623,Culture & Related Services,Equipment Purchase,5001,05/06/2020,5860865,30,REVENUE,Ld Golf Ltd,10458739,LDG0120G
North Lincolnshire Council,http://data.ordnancesurvey.co.uk/id/7000000000025623,Culture & Related Services,Other Supplies & Services,5799,05/06/2020,5860865,"1,833.33",REVENUE,Ld Golf Ltd,10458739,LDG0120G
North Lincolnshire Council,http://data.ordnancesurvey.co.uk/id/7000000000025623,Central Services To Public,Business Support Grants,6090,10/06/2020,5863257,"10,000.00",REVENUE,Led Automation,,CD026120
North Lincolnshire Council,http://data.ordnancesurvey.co.uk/id/7000000000025623,Housing Services,Other Supplies & Services,5799,10/06/2020,5862571,840,REVENUE,Lee Cruz,,CRU0021U
North Lincolnshire Council,http://data.ordnancesurvey.co.uk/id/7000000000025623,Culture & Related Services,Other Professional Fees,5829,12/06/2020,5861098,402.48,REVENUE,Les Mills Fitness Uk Ltd,7880229,MIL0298L
North Lincolnshire Council,http://data.ordnancesurvey.co.uk/id/7000000000025623,Culture & Related Services,Other Professional Fees,5829,12/06/2020,5861100,254.57,REVENUE,Les Mills Fitness Uk Ltd,7880229,MIL0298L
North Lincolnshire Council,http://data.ordnancesurvey.co.uk/id/7000000000025623,Central Services To Public,Other Premises Costs,3390,12/06/2020,5863802,"3,685.50",REVENUE,Lewis Removals Ltd,5115077,LEW0003W
North Lincolnshire Council,http://data.ordnancesurvey.co.uk/id/7000000000025623,Childrens & Education,Legal Fees,5823,17/06/2020,5865654,717,REVENUE,Lextox,,LEX0011X
North Lincolnshire Council,http://data.ordnancesurvey.co.uk/id/7000000000025623,Childrens & Education,Legal Fees,5823,17/06/2020,5865655,717,REVENUE,Lextox,,LEX0011X
North Lincolnshire Council,http://data.ordnancesurvey.co.uk/id/7000000000025623,Childrens & Education,Other Professional Fees,5829,10/06/2020,5862652,537.5,REVENUE,Liam Fletcher,,FLE0167E
North Lincolnshire Council,http://data.ordnancesurvey.co.uk/id/7000000000025623,Central Services To Public,Business Support Grants,6090,17/06/2020,5866122,"10,000.00",REVENUE,Lincoln Gardens Community Association,,CD026880
North Lincolnshire Council,http://data.ordnancesurvey.co.uk/id/7000000000025623,Childrens & Education,Payments To Private Orgs,6002,10/06/2020,5862185,"7,862.43",REVENUE,Lincoln Gardens Pre School,,LIN0248N
North Lincolnshire Council,http://data.ordnancesurvey.co.uk/id/7000000000025623,Childrens & Education,Payments To Private Orgs,6002,03/06/2020,5859518,"2,530.00",REVENUE,Lincoln Minster School,,LIN0203N
North Lincolnshire Council,http://data.ordnancesurvey.co.uk/id/7000000000025623,Childrens & Education,Payments To Other La'S,6003,01/07/2020,5870686,"12,739.84",REVENUE,Lincolnshire County Council,,LIN0003N
North Lincolnshire Council,http://data.ordnancesurvey.co.uk/id/7000000000025623,Highways & Transport,Other Supplies & Services,5799,01/07/2020,5871362,"21,000.00",REVENUE,Lincolnshire County Council,,LIN0003N
North Lincolnshire Council,http://data.ordnancesurvey.co.uk/id/7000000000025623,Highways & Transport,Passenger Transport,6011,01/07/2020,5871360,"11,184.36",REVENUE,Lincolnshire County Council,,LIN0003N
North Lincolnshire Council,http://data.ordnancesurvey.co.uk/id/7000000000025623,Childrens & Education,Advertising & Publicity,5610,03/06/2020,5858738,300,REVENUE,Lincolnshire Today,,LIN0214N
North Lincolnshire Council,http://data.ordnancesurvey.co.uk/id/7000000000025623,Childrens & Education,Advertising & Publicity,5610,01/07/2020,5871393,300,REVENUE,Lincolnshire Today,,LIN0214N
North Lincolnshire Council,http://data.ordnancesurvey.co.uk/id/7000000000025623,Central Services To Public,Business Support Grants,6090,11/06/2020,5863824,"10,000.00",REVENUE,Lincolnshire Wildlife Trust,,CD026350
North Lincolnshire Council,http://data.ordnancesurvey.co.uk/id/7000000000025623,Environmental & Regulatory Svs,Payments To Private Orgs,6002,19/06/2020,5865743,"4,588.50",REVENUE,Lincolnshire Wildlife Trust,461863,LIN0026N
North Lincolnshire Council,http://data.ordnancesurvey.co.uk/id/7000000000025623,Environmental & Regulatory Svs,Payments To Private Orgs,6002,24/06/2020,5865740,"4,588.50",REVENUE,Lincolnshire Wildlife Trust,461863,LIN0026N
North Lincolnshire Council,http://data.ordnancesurvey.co.uk/id/7000000000025623,Childrens & Education,Payments To Private Orgs,6002,10/06/2020,5862245,"3,390.36",REVENUE,Linda Wood T/As Tiddly Peeps,,WOO0052O
North Lincolnshire Council,http://data.ordnancesurvey.co.uk/id/7000000000025623,Central Services To Public,Business Support Grants,6090,03/06/2020,5860247,"10,000.00",REVENUE,Lindsey Lodge Hospice Shop - Barton 2,,CD025650
North Lincolnshire Council,http://data.ordnancesurvey.co.uk/id/7000000000025623,Central Services To Public,Business Support Grants,6090,03/06/2020,5860246,"10,000.00",REVENUE,Lindsey Lodge Retail Distribution Centre,,CD025640
North Lincolnshire Council,http://data.ordnancesurvey.co.uk/id/7000000000025623,Childrens & Education,Payments To Private Orgs,6002,10/06/2020,5862137,771.68,REVENUE,Lisa Backhouse,,BAC0163C
North Lincolnshire Council,http://data.ordnancesurvey.co.uk/id/7000000000025623,Childrens & Education,Payments To Voluntary Orgs,6001,10/06/2020,5862187,"13,566.22",REVENUE,Little Acorns Pre-School,,LIT0009T
North Lincolnshire Council,http://data.ordnancesurvey.co.uk/id/7000000000025623,Childrens & Education,Payments To Private Orgs,6002,10/06/2020,5862194,"5,815.65",REVENUE,Little Angels Pre-School,,LIT0045T
North Lincolnshire Council,http://data.ordnancesurvey.co.uk/id/7000000000025623,Childrens & Education,Payments To Private Orgs,6002,10/06/2020,5862184,"6,689.84",REVENUE,Little Cygnets Nursery,,LCN0002N
North Lincolnshire Council,http://data.ordnancesurvey.co.uk/id/7000000000025623,Childrens & Education,Payments To Private Orgs,6002,10/06/2020,5862190,"7,343.13",REVENUE,Little Imps Playgroup,,LIT0035T
North Lincolnshire Council,http://data.ordnancesurvey.co.uk/id/7000000000025623,Childrens & Education,Payments To Private Orgs,6002,10/06/2020,5862196,769.5,REVENUE,Little Learners,,LIT0112T
North Lincolnshire Council,http://data.ordnancesurvey.co.uk/id/7000000000025623,Childrens & Education,Payments To Private Orgs,6002,10/06/2020,5862191,"17,155.98",REVENUE,Little Owls Pre-School,,LIT0041T
